Workbook

Sheet INDICE
A1: CRUSCOTTO DELTA: ANALISI DEGLI ACQUISTI
A4: SINTESI ECONOMICA
A5: FATT. PROGR. 2022 | D5: =ACQUISTI!D5 -> 587659.104
A6: BUDGET PROGR. | D6: =SUM(BUDGET!B4:K66) -> 400846.5951
A7: Δ € BDG | D7: =D5-D6 -> 186812.5089
A8: BUDGET PROGR. 4° TRIM. | D8: =IF(MONTH(TODAY())<=3,BUDGET!$U$5,IF(MONTH(TODAY())<=6,BUDGET!$V$5,IF(MONTH(TODAY())<=9,BUDGET!$W$5,BUDGET!$X$5))) -> 494500
A9: STIMA PREMI MATURATI | D9: =SUM(PREMI!F6:F102) -> 27575.90458
A10: % SU FATTURATO | D10: =IFERROR(D9/D5,0) -> 0.04692500191
A13: INDICE
A15: CAPITOLO | C15: DESCRIZIONE
A17: ACQUISTI | C17: Analisi mensile degli acquisti in accordo
A18: STAGIONALITA' | C18: Analisi della stagionalità mensile degli acquisti propri e del gruppo
A19: BUDGET | C19: Verifica dei dati di budget e degli scostamenti degli acquisti rispetto agli obiettivi
A20: PREMI | C20: Stima dei premi maturati secondo gli accordi commerciali vigenti

Sheet ACQUISTI
B1: ANALISI FATT. PROGRESSIVO OTTOBRE 2022 | H1: ANDAMENTO MENSILE 2022 | Y1: ANDAMENTO MENSILE 2022
A4: SOCIO | B4: FORNITORE | C4: Fatt. Progr.2021 | D4: Fatt. Progr.2022 | E4: Δ € Fatt. Progr | F4: Δ % Fatt. Progr | H4: GRAFICO | I4: SOCIO | J4: FORNITORE | K4: Fatt. Progr.2022 | L4: GEN 22 | M4: FEB 22 | N4: MAR 22 | O4: APR 22 | P4: MAG 22 | Q4: GIU 22 | R4: LUG 22 | S4: AGO 22 | T4: SET 22 | U4: OTT 22 | V4: NOV 22 | Y4: SOCIO | Z4: FORNITORE | AA4: Fatt. Progr.2022 | AB4: Somma di GEN 21 | AC4: Somma di FEB 21 | AD4: Somma di MAR 21 | AE4: Somma di APR 21 | AF4: Somma di MAG 21 | AG4: Somma di GIU 21 | AH4: Somma di LUG 21 | AI4: Somma di AGO 21 | AJ4: Somma di SET 21 | AK4: Somma di OTT 21 | AL4: Somma di NOV 21 | AM4: Somma di DIC 21 | AN4: Somma di GEN 22 | AO4: Somma di FEB 22 | AP4: Somma di MAR 22 | AQ4: Somma di APR 22 | AR4: Somma di MAG 22 | AS4: Somma di GIU 22 | AT4: Somma di LUG 22 | AU4: Somma di AGO 22 | AV4: Somma di SET 22 | AW4: Somma di OTT 22 | AX4: Somma di NOV 22 | BB4: GEN | BC4: FEB | BD4: MAR | BE4: APR | BF4: MAG | BG4: GIU | BH4: LUG | BI4: AGO | BJ4: SET | BK4: OTT | BL4: NOV | BM4: DIC
A5: CALLIPO Srl | C5: 406418.4344 | D5: 587659.104 | E5: 181240.6696 | F5: 0.4459459862 | I5: CALLIPO Srl | K5: 587659.104 | L5: 78690.43 | M5: 63919.66 | N5: 71475.65 | O5: 85631.85 | P5: 52233.97 | Q5: 60859.534 | R5: 75499.01 | S5: 10087.28 | T5: 25683.54 | U5: 63578.18 | Y5: CALLIPO Srl | AA5: 587659.104 | AB5: 29307.39 | AC5: 49808.45 | AD5: 31623.92 | AE5: 58540.5252 | AF5: 36935.24 | AG5: 45605.17 | AH5: 51737.55 | AI5: 7140.8 | AJ5: 52123.89764 | AK5: 43595.4916 | AN5: 78690.43 | AO5: 63919.66 | AP5: 71475.65 | AQ5: 85631.85 | AR5: 52233.97 | AS5: 60859.534 | AT5: 75499.01 | AU5: 10087.28 | AV5: 25683.54 | AW5: 63578.18 | BA5: 2021 | BB5: =AB5 -> 29307.39 | BC5: =AC5 -> 49808.45 | BD5: 31623.92 | BE5: 58540.5252 | BF5: 36935.24 | BG5: 45605.17 | BH5: 51737.55 | BI5: 7140.8 | BJ5: 52123.89764 | BK5: 43595.4916 | BL5: 0 | BM5: 0
B6: Immergas | C6: 135291 | D6: 108115 | E6: -27176 | F6: -0.2008707157 | J6: Immergas | K6: 108115 | L6: 37595.49 | M6: 6887.89 | N6: 0 | O6: 18949.62 | P6: 1180 | Q6: 30173 | R6: 0 | S6: 0 | T6: 0 | U6: 13329 | Z6: Albatros | AA6: 6117 | AB6: 3609 | AC6: 194 | AD6: 5320 | AE6: 7098 | AF6: 7577 | AG6: 1135 | AH6: 6054 | AI6: 5010 | AJ6: -168 | AK6: 0 | AN6: 744 | AO6: 0 | AP6: 0 | AQ6: 1153 | AR6: 294 | AS6: 0 | AT6: 0 | AU6: 0 | AV6: 0 | AW6: 3926 | BA6: 2022 | BB6: =AN5 -> 78690.43 | BC6: =AO5 -> 63919.66 | BD6: 71475.65 | BE6: 85631.85 | BF6: 52233.97 | BG6: 60859.534 | BH6: 75499.01 | BI6: 10087.28 | BJ6: 25683.54 | BK6: 63578.18 | BL6: 0 | BM6: 0
B7: Haier | C7: 55313.66 | D7: 100088.61 | E7: 44774.95 | F7: 0.8094736454 | J7: Haier | K7: 100088.61 | L7: 9237.52 | M7: 5457.47 | N7: 26408.02 | O7: 13464.92 | P7: 11123.58 | Q7: 0 | R7: 28146.94 | S7: 0 | T7: 0 | U7: 6250.16 | Z7: Arbi arredobagno | AA7: 0 | AC7: 0 | AD7: 0 | AE7: 0 | AF7: 0 | AG7: 0 | AH7: 0 | AI7: 0 | AJ7: 0 | AK7: 0 | AO7: 0 | AP7: 0 | AQ7: 0 | AR7: 0 | AS7: 0 | AT7: 0 | AU7: 0 | AV7: 0 | AW7: 0
B8: Giacomini | C8: 3797.22 | D8: 72924.08 | E8: 69126.86 | F8: 18.20459705 | J8: Giacomini | K8: 72924.08 | L8: 3071.36 | M8: 5949.24 | N8: 16680.47 | O8: 3630.97 | P8: 5193.51 | Q8: 7534.42 | R8: 13078.84 | S8: 1149.95 | T8: 92.34 | U8: 16542.98 | Z8: Arblu | AA8: 46001.85 | AB8: 411.83 | AC8: 0 | AD8: 3677.5 | AE8: 1192.26 | AF8: 1642.55 | AG8: 3418.61 | AH8: 487.36 | AI8: 0 | AJ8: 1234.07 | AK8: 2038.18 | AN8: 8092.66 | AO8: 3447.11 | AP8: 1061.74 | AQ8: 5092.59 | AR8: 9479.7 | AS8: 964.14 | AT8: 11226.17 | AU8: 2356.49 | AV8: 3571.4 | AW8: 709.85
B9: Tiemme Raccorderie | C9: 43785.7 | D9: 56947.95 | E9: 13162.25 | F9: 0.300606134 | J9: Tiemme Raccorderie | K9: 56947.95 | L9: 5497.95 | M9: 8363.9 | N9: 9014.12 | O9: 7999.36 | P9: 8655.82 | Q9: 4463.24 | R9: 2831.53 | S9: 0 | T9: 5417.81 | U9: 4704.22 | Z9: Ariston | AA9: 0 | AC9: 0 | AD9: 0 | AE9: 0 | AF9: 0 | AG9: 0 | AH9: 0 | AI9: 0 | AJ9: 0 | AK9: 0 | AO9: 0 | AP9: 0 | AQ9: 0 | AR9: 0 | AS9: 0 | AT9: 0 | AU9: 0 | AV9: 0 | AW9: 0
B10: Novellini | C10: 32684.32 | D10: 47680.96 | E10: 14996.64 | F10: 0.4588328593 | J10: Novellini | K10: 47680.96 | L10: 11198.3 | M10: 7645.15 | N10: 4319.54 | O10: 4504.01 | P10: 7252 | Q10: 4568 | R10: 3762 | S10: 226.03 | T10: 2957.15 | U10: 1248.78 | Z10: Arredamenti Montegrappa | AA10: 1958.57 | AC10: 236.54 | AD10: -236.54 | AE10: 0 | AF10: 0 | AG10: 236.54 | AH10: 0 | AI10: 0 | AJ10: 0 | AK10: 0 | AN10: 471.82 | AO10: 0 | AP10: 545.41 | AQ10: 0 | AR10: 0 | AS10: 880 | AT10: 61.34 | AU10: 0 | AV10: 0 | AW10: 0
B11: Arblu | C11: 14102.36 | D11: 46001.85 | E11: 31899.49 | F11: 2.261996574 | J11: Arblu | K11: 46001.85 | L11: 8092.66 | M11: 3447.11 | N11: 1061.74 | O11: 5092.59 | P11: 9479.7 | Q11: 964.14 | R11: 11226.17 | S11: 2356.49 | T11: 3571.4 | U11: 709.85 | Z11: Atusa | AA11: 0 | AC11: 0 | AD11: 0 | AE11: 0 | AF11: 0 | AG11: 0 | AH11: 0 | AI11: 0 | AJ11: 0 | AK11: 0 | AO11: 0 | AP11: 0 | AQ11: 0 | AR11: 0 | AS11: 0 | AT11: 0 | AU11: 0 | AV11: 0 | AW11: 0
B12: LG | C12: 0 | D12: 25547.13 | E12: 25547.13 | J12: LG | K12: 25547.13 | M12: 0 | N12: 0 | O12: 13892.6 | P12: 2405.11 | Q12: 1206.74 | R12: 7411.5 | S12: 631.18 | T12: 0 | U12: 0 | Z12: Bernasconi | AA12: 0 | AC12: 0 | AD12: 0 | AE12: 0 | AF12: 0 | AG12: 0 | AH12: 0 | AI12: 0 | AJ12: 0 | AK12: 0 | AO12: 0 | AP12: 0 | AQ12: 0 | AR12: 0 | AS12: 0 | AT12: 0 | AU12: 0 | AV12: 0 | AW12: 0
B13: Valsir | C13: 0 | D13: 19094 | E13: 19094 | J13: Valsir | K13: 19094 | M13: 4661 | N13: 6047.15 | O13: -0.15 | P13: 3609 | Q13: 2608 | R13: 0 | S13: 0 | T13: 2079 | U13: 90 | Z13: Beza | AA13: 0 | AC13: 0 | AD13: 0 | AE13: 0 | AF13: 0 | AG13: 0 | AH13: 0 | AI13: 0 | AJ13: 0 | AK13: 0 | AO13: 0 | AP13: 0 | AQ13: 0 | AR13: 0 | AS13: 0 | AT13: 0 | AU13: 0 | AV13: 0 | AW13: 0
B14: Galassia | C14: 21503 | D14: 16964 | E14: -4539 | F14: -0.2110868251 | J14: Galassia | K14: 16964 | M14: 3646 | N14: 0 | O14: 4597 | P14: 1605 | Q14: 2248 | R14: 0 | S14: 0 | T14: 0 | U14: 4868 | Z14: Bmeters | AA14: 0 | AC14: 0 | AD14: 0 | AE14: 0 | AF14: 0 | AG14: 0 | AH14: 0 | AI14: 0 | AJ14: 0 | AK14: 0 | AO14: 0 | AP14: 0 | AQ14: 0 | AR14: 0 | AS14: 0 | AT14: 0 | AU14: 0 | AV14: 0 | AW14: 0
B15: Global | C15: 10820 | D15: 16184 | E15: 5364 | F15: 0.4957486137 | J15: Global | K15: 16184 | M15: 10662.93 | N15: 1167.08 | O15: 0 | P15: 0 | Q15: 0 | R15: 4353.93 | S15: 0.06 | T15: 0 | U15: 0 | Z15: Bosch | AA15: 0 | AC15: 0 | AD15: 0 | AE15: 0 | AF15: 0 | AG15: 0 | AH15: 0 | AI15: 0 | AJ15: 0 | AK15: 0 | AO15: 0 | AP15: 0 | AQ15: 0 | AR15: 0 | AS15: 0 | AT15: 0 | AU15: 0 | AV15: 0 | AW15: 0
B16: Isoclima | C16: 1061.5 | D16: 13271.25 | E16: 12209.75 | F16: 11.50235516 | J16: Isoclima | K16: 13271.25 | M16: 1689.05 | N16: 1689.05 | O16: 3629.56 | P16: 0 | Q16: 3733.59 | R16: 0 | S16: 0 | T16: 2530 | U16: 0 | Z16: Bossini | AA16: 0 | AC16: 0 | AD16: 0 | AE16: 0 | AF16: 0 | AG16: 0 | AH16: 0 | AI16: 0 | AJ16: 0 | AK16: 0 | AO16: 0 | AP16: 0 | AQ16: 0 | AR16: 0 | AS16: 0 | AT16: 0 | AU16: 0 | AV16: 0 | AW16: 0
B17: Rubinetterie Bresciane | C17: 0 | D17: 12724.55 | E17: 12724.55 | J17: Rubinetterie Bresciane | K17: 12724.55 | M17: 0 | N17: 0 | O17: 0 | P17: 0 | Q17: 0 | R17: 0 | S17: 5669.57 | T17: 2727.54 | U17: 4327.44 | Z17: BT-Flex | AA17: 8308.24 | AC17: 0 | AD17: 0 | AE17: 0 | AF17: 0 | AG17: 0 | AH17: 0 | AI17: 0 | AJ17: 0 | AK17: 0 | AO17: 2749.86 | AP17: 0 | AQ17: 3556.08 | AR17: 0 | AS17: 2002.3 | AT17: 0 | AU17: 0 | AV17: 0 | AW17: 0
B18: Mut Meccanica Tovo | C18: 9042.9 | D18: 8669.05 | E18: -373.85 | F18: -0.04134182618 | J18: Mut Meccanica Tovo | K18: 8669.05 | L18: 1821.73 | M18: 0 | N18: 1713.35 | O18: 1799.86 | P18: 0 | Q18: 0 | R18: 0 | S18: 0 | T18: 1323 | U18: 2011.11 | Z18: Bwt/Cillichemie | AA18: 0 | AC18: 0 | AD18: 0 | AE18: 0 | AF18: 0 | AG18: 0 | AH18: 0 | AI18: 0 | AJ18: 0 | AK18: 0 | AO18: 0 | AP18: 0 | AQ18: 0 | AR18: 0 | AS18: 0 | AT18: 0 | AU18: 0 | AV18: 0 | AW18: 0
B19: BT-Flex | C19: 0 | D19: 8308.24 | E19: 8308.24 | J19: BT-Flex | K19: 8308.24 | M19: 2749.86 | N19: 0 | O19: 3556.08 | P19: 0 | Q19: 2002.3 | R19: 0 | S19: 0 | T19: 0 | U19: 0 | Z19: Caleffi | AA19: 2392.78 | AC19: 0 | AD19: 0 | AE19: 0 | AF19: 266.57 | AG19: 0 | AH19: 0 | AI19: 0 | AJ19: 0 | AK19: 0 | AO19: 0 | AP19: 0 | AQ19: 0 | AR19: 0 | AS19: 0 | AT19: 1173.08 | AU19: 0 | AV19: 1089.06 | AW19: 130.64
B20: Albatros | C20: 35829 | D20: 6117 | E20: -29712 | F20: -0.8292723771 | J20: Albatros | K20: 6117 | L20: 744 | M20: 0 | N20: 0 | O20: 1153 | P20: 294 | Q20: 0 | R20: 0 | S20: 0 | T20: 0 | U20: 3926 | Z20: Carlo Nobili | AA20: 0 | AC20: 0 | AD20: 0 | AE20: 0 | AF20: 0 | AG20: 0 | AH20: 0 | AI20: 0 | AJ20: 0 | AK20: 0 | AO20: 0 | AP20: 0 | AQ20: 0 | AR20: 0 | AS20: 0 | AT20: 0 | AU20: 0 | AV20: 0 | AW20: 0
B21: Galletti | C21: 3232.36 | D21: 6012.66 | E21: 2780.3 | F21: 0.8601455283 | J21: Galletti | K21: 6012.66 | M21: 956.63 | N21: 0 | O21: 68.13 | P21: 0 | Q21: 0 | R21: 0 | S21: 0 | T21: 4987.9 | U21: 0 | Z21: Carrier | AA21: 0 | AB21: 0 | AC21: 0 | AD21: 0 | AE21: 0 | AF21: 0 | AG21: 0 | AH21: 0 | AI21: 0 | AJ21: 149 | AK21: 0 | AN21: 0 | AO21: 0 | AP21: 0 | AQ21: 0 | AR21: 0 | AS21: 0 | AT21: 0 | AU21: 0 | AV21: 0 | AW21: 0
B22: First Corporation | C22: 4335.11 | D22: 4656.96 | E22: 321.85 | F22: 0.07424263744 | J22: First Corporation | K22: 4656.96 | M22: 580.23 | N22: 1315.27 | O22: 206 | P22: 360.45 | Q22: 364.08 | R22: 881.23 | S22: 54 | T22: 0 | U22: 895.7 | Z22: Cordivari | AA22: 0 | AC22: 0 | AD22: 0 | AE22: 0 | AF22: 0 | AG22: 0 | AH22: 0 | AI22: 0 | AJ22: 0 | AK22: 0 | AO22: 0 | AP22: 0 | AQ22: 0 | AR22: 0 | AS22: 0 | AT22: 0 | AU22: 0 | AV22: 0 | AW22: 0
B23: Olimpia Splendid | C23: 0 | D23: 4544.3 | E23: 4544.3 | J23: Olimpia Splendid | K23: 4544.3 | M23: 0 | N23: 0 | O23: 0 | P23: 0 | Q23: 0 | R23: 0 | S23: 0 | T23: 0 | U23: 4544.3 | Z23: Dab Pumps | AA23: 2706.67 | AB23: 5207.16 | AC23: 5162.84 | AD23: 185 | AE23: 111.82 | AF23: 0 | AG23: 0 | AH23: 0 | AI23: 0 | AJ23: 0 | AK23: 0 | AN23: 265 | AO23: 563 | AP23: 0 | AQ23: 1878.67 | AR23: 0 | AS23: 0 | AT23: 0 | AU23: 0 | AV23: 0 | AW23: 0
B24: Omp Tea | C24: 4651.55 | D24: 3160.77 | E24: -1490.78 | F24: -0.3204910191 | J24: Omp Tea | K24: 3160.77 | M24: 0 | N24: 0 | O24: 1209.63 | P24: 1075.8 | Q24: 0 | R24: 0 | S24: 0 | T24: 875.34 | U24: 0 | Z24: Ebara | AA24: 0 | AC24: 0 | AD24: 0 | AE24: 0 | AF24: 0 | AG24: 0 | AH24: 0 | AI24: 0 | AJ24: 0 | AK24: 0 | AO24: 0 | AP24: 0 | AQ24: 0 | AR24: 0 | AS24: 0 | AT24: 0 | AU24: 0 | AV24: 0 | AW24: 0
B25: Dab Pumps | C25: 10666.82 | D25: 2706.67 | E25: -7960.15 | F25: -0.7462533351 | J25: Dab Pumps | K25: 2706.67 | L25: 265 | M25: 563 | N25: 0 | O25: 1878.67 | P25: 0 | Q25: 0 | R25: 0 | S25: 0 | T25: 0 | U25: 0 | Z25: Effebi | AA25: 0 | AC25: 0 | AD25: 0 | AE25: 0 | AF25: 0 | AG25: 0 | AH25: 0 | AI25: 0 | AJ25: 0 | AK25: 0 | AO25: 0 | AP25: 0 | AQ25: 0 | AR25: 0 | AS25: 0 | AT25: 0 | AU25: 0 | AV25: 0 | AW25: 0
B26: Caleffi | C26: 266.57 | D26: 2392.78 | E26: 2126.21 | F26: 7.976178865 | J26: Caleffi | K26: 2392.78 | M26: 0 | N26: 0 | O26: 0 | P26: 0 | Q26: 0 | R26: 1173.08 | S26: 0 | T26: 1089.06 | U26: 130.64 | Z26: Enolgas | AA26: 0 | AC26: 0 | AD26: 0 | AE26: 0 | AF26: 0 | AG26: 0 | AH26: 0 | AI26: 0 | AJ26: 0 | AK26: 0 | AO26: 0 | AP26: 0 | AQ26: 0 | AR26: 0 | AS26: 0 | AT26: 0 | AU26: 0 | AV26: 0 | AW26: 0
B27: Arredamenti Montegrappa | C27: 236.54 | D27: 1958.57 | E27: 1722.03 | F27: 7.280079479 | J27: Arredamenti Montegrappa | K27: 1958.57 | L27: 471.82 | M27: 0 | N27: 545.41 | O27: 0 | P27: 0 | Q27: 880 | R27: 61.34 | S27: 0 | T27: 0 | U27: 0 | Z27: Ercos | AA27: 0 | AC27: 0 | AD27: 0 | AE27: 0 | AF27: 0 | AG27: 0 | AH27: 0 | AI27: 0 | AJ27: 0 | AK27: 0 | AO27: 0 | AP27: 0 | AQ27: 0 | AR27: 0 | AS27: 0 | AT27: 0 | AU27: 0 | AV27: 0 | AW27: 0
B28: Rizzo Aquae | C28: 625.28 | D28: 1234.59 | E28: 609.31 | F28: 0.9744594422 | J28: Rizzo Aquae | K28: 1234.59 | M28: 0 | N28: 629.14 | O28: 0 | P28: 0 | Q28: 0 | R28: 605.45 | S28: 0 | T28: 0 | U28: 0 | Z28: Euroacque | AA28: 0 | AB28: 2724 | AC28: 82.8 | AD28: 0 | AE28: 0 | AF28: 0 | AG28: 0 | AH28: 0 | AI28: 0 | AJ28: 0 | AK28: 0 | AO28: 0 | AP28: 0 | AQ28: 0 | AR28: 0 | AS28: 0 | AT28: 0 | AU28: 0 | AV28: 0 | AW28: 0
B29: Geberit | C29: 4445.5 | D29: 885.31 | E29: -3560.19 | F29: -0.8008525475 | J29: Geberit | K29: 885.31 | M29: 0 | N29: 885.31 | O29: 0 | P29: 0 | Q29: 0 | R29: 0 | S29: 0 | T29: 0 | U29: 0 | Z29: Eurocornici | AA29: 0 | AC29: 0 | AD29: 0 | AE29: 0 | AF29: 0 | AG29: 0 | AH29: 0 | AI29: 0 | AJ29: 0 | AK29: 0 | AO29: 0 | AP29: 0 | AQ29: 0 | AR29: 0 | AS29: 0 | AT29: 0 | AU29: 0 | AV29: 0 | AW29: 0
B30: Neoperl | C30: 584.94 | D30: 694.6 | E30: 109.66 | F30: 0.1874722194 | J30: Neoperl | K30: 694.6 | L30: 694.6 | M30: 0 | N30: 0 | O30: 0 | P30: 0 | Q30: 0 | R30: 0 | S30: 0 | T30: 0 | U30: 0 | Z30: Farg | AA30: 0 | AC30: 0 | AD30: 0 | AE30: 0 | AF30: 0 | AG30: 0 | AH30: 0 | AI30: 0 | AJ30: 0 | AK30: 0 | AO30: 0 | AP30: 0 | AQ30: 0 | AR30: 0 | AS30: 0 | AT30: 0 | AU30: 0 | AV30: 0 | AW30: 0
B31: GBD | C31: 5982.174444 | D31: 660.204 | E31: -5321.970444 | F31: -0.889638123 | J31: GBD | K31: 660.204 | M31: 660.2 | N31: 0 | O31: 0 | P31: 0 | Q31: 0.004 | R31: 0 | S31: 0 | T31: 0 | U31: 0 | Z31: Ferrari | AA31: 0 | AB31: 1234 | AC31: 0 | AD31: 745 | AE31: 0 | AF31: 0 | AG31: 0 | AH31: 0 | AI31: 0 | AJ31: 0 | AK31: 0 | AO31: 0 | AP31: 0 | AQ31: 0 | AR31: 0 | AS31: 0 | AT31: 0 | AU31: 0 | AV31: 0 | AW31: 0
B32: Negrari | C32: 1111.42 | D32: 114.02 | E32: -997.4 | F32: -0.8974105199 | J32: Negrari | K32: 114.02 | M32: 0 | N32: 0 | O32: 0 | P32: 0 | Q32: 114.02 | R32: 0 | S32: 0 | T32: 0 | U32: 0 | Z32: Ferroli | AA32: 0 | AC32: 0 | AD32: 0 | AE32: 0 | AF32: 0 | AG32: 0 | AH32: 0 | AI32: 0 | AJ32: 0 | AK32: 0 | AO32: 0 | AP32: 0 | AQ32: 0 | AR32: 0 | AS32: 0 | AT32: 0 | AU32: 0 | AV32: 0 | AW32: 0
B33: Planus | C33: 0 | D33: 0 | E33: 0 | J33: Planus | K33: 0 | M33: 0 | N33: 0 | O33: 0 | P33: 0 | Q33: 0 | R33: 0 | S33: 0 | T33: 0 | U33: 0 | Z33: Fima Carlo Frattini | AA33: 0 | AC33: 0 | AD33: 0 | AE33: 0 | AF33: 0 | AG33: 0 | AH33: 0 | AI33: 0 | AJ33: 0 | AK33: 0 | AO33: 0 | AP33: 0 | AQ33: 0 | AR33: 0 | AS33: 0 | AT33: 0 | AU33: 0 | AV33: 0 | AW33: 0
B34: Ercos | C34: 0 | D34: 0 | E34: 0 | J34: Ercos | K34: 0 | M34: 0 | N34: 0 | O34: 0 | P34: 0 | Q34: 0 | R34: 0 | S34: 0 | T34: 0 | U34: 0 | Z34: Fimi | AA34: 0 | AC34: 0 | AD34: 0 | AE34: 0 | AF34: 0 | AG34: 0 | AH34: 0 | AI34: 0 | AJ34: 0 | AK34: 0 | AO34: 0 | AP34: 0 | AQ34: 0 | AR34: 0 | AS34: 0 | AT34: 0 | AU34: 0 | AV34: 0 | AW34: 0
B35: Samsung | C35: 0 | D35: 0 | E35: 0 | J35: Samsung | K35: 0 | M35: 0 | N35: 0 | O35: 0 | P35: 0 | Q35: 0 | R35: 0 | S35: 0 | T35: 0 | U35: 0 | Z35: First Corporation | AA35: 4656.96 | AC35: 0 | AD35: 551.22 | AE35: 0 | AF35: 621 | AG35: 721.48 | AH35: 1457.71 | AI35: 367.7 | AJ35: 0 | AK35: 616 | AO35: 580.23 | AP35: 1315.27 | AQ35: 206 | AR35: 360.45 | AS35: 364.08 | AT35: 881.23 | AU35: 54 | AV35: 0 | AW35: 895.7
B36: Fimi | C36: 0 | D36: 0 | E36: 0 | J36: Fimi | K36: 0 | M36: 0 | N36: 0 | O36: 0 | P36: 0 | Q36: 0 | R36: 0 | S36: 0 | T36: 0 | U36: 0 | Z36: Fluidmaster | AA36: 0 | AC36: 0 | AD36: 0 | AE36: 0 | AF36: 0 | AG36: 0 | AH36: 0 | AI36: 0 | AJ36: 0 | AK36: 0 | AO36: 0 | AP36: 0 | AQ36: 0 | AR36: 0 | AS36: 0 | AT36: 0 | AU36: 0 | AV36: 0 | AW36: 0
B37: Fima Carlo Frattini | C37: 0 | D37: 0 | E37: 0 | J37: Fima Carlo Frattini | K37: 0 | M37: 0 | N37: 0 | O37: 0 | P37: 0 | Q37: 0 | R37: 0 | S37: 0 | T37: 0 | U37: 0 | Z37: Galassia | AA37: 16964 | AC37: 9215 | AD37: 1435 | AE37: 0 | AF37: 2370 | AG37: 2017 | AH37: 824 | AI37: 0 | AJ37: 2259 | AK37: 3383 | AO37: 3646 | AP37: 0 | AQ37: 4597 | AR37: 1605 | AS37: 2248 | AT37: 0 | AU37: 0 | AV37: 0 | AW37: 4868
B38: Cordivari | C38: 0 | D38: 0 | E38: 0 | J38: Cordivari | K38: 0 | M38: 0 | N38: 0 | O38: 0 | P38: 0 | Q38: 0 | R38: 0 | S38: 0 | T38: 0 | U38: 0 | Z38: Galletti | AA38: 6012.66 | AC38: 537.01 | AD38: 0 | AE38: 2600.74 | AF38: 94.61 | AG38: 0 | AH38: 0 | AI38: 0 | AJ38: 0 | AK38: 0 | AO38: 956.63 | AP38: 0 | AQ38: 68.13 | AR38: 0 | AS38: 0 | AT38: 0 | AU38: 0 | AV38: 4987.9 | AW38: 0
B39: Eurocornici | C39: 0 | D39: 0 | E39: 0 | J39: Eurocornici | K39: 0 | M39: 0 | N39: 0 | O39: 0 | P39: 0 | Q39: 0 | R39: 0 | S39: 0 | T39: 0 | U39: 0 | Z39: GBD | AA39: 660.204 | AB39: 71.1 | AC39: 0 | AD39: 0 | AE39: 1771.2252 | AF39: 0 | AG39: 108.32 | AH39: 0 | AI39: 0 | AJ39: 1159.267644 | AK39: 2872.2616 | AO39: 660.2 | AP39: 0 | AQ39: 0 | AR39: 0 | AS39: 0.004 | AT39: 0 | AU39: 0 | AV39: 0 | AW39: 0
B40: Fluidmaster | C40: 0 | D40: 0 | E40: 0 | J40: Fluidmaster | K40: 0 | M40: 0 | N40: 0 | O40: 0 | P40: 0 | Q40: 0 | R40: 0 | S40: 0 | T40: 0 | U40: 0 | Z40: Geberit | AA40: 885.31 | AC40: 4445.5 | AD40: 0 | AE40: 0 | AF40: 0 | AG40: 0 | AH40: 0 | AI40: 0 | AJ40: 0 | AK40: 0 | AO40: 0 | AP40: 885.31 | AQ40: 0 | AR40: 0 | AS40: 0 | AT40: 0 | AU40: 0 | AV40: 0 | AW40: 0
B41: System Group (Sab) | C41: 0 | D41: 0 | E41: 0 | J41: System Group (Sab) | K41: 0 | M41: 0 | N41: 0 | O41: 0 | P41: 0 | Q41: 0 | R41: 0 | S41: 0 | T41: 0 | U41: 0 | Z41: General d'aspirazione | AA41: 0 | AC41: 0 | AD41: 0 | AE41: 998.1 | AF41: 0 | AG41: 25.44 | AH41: 0 | AI41: 0 | AJ41: 0 | AK41: 0 | AO41: 0 | AP41: 0 | AQ41: 0 | AR41: 0 | AS41: 0 | AT41: 0 | AU41: 0 | AV41: 0 | AW41: 0
B42: Ariston | C42: 0 | D42: 0 | E42: 0 | J42: Ariston | K42: 0 | M42: 0 | N42: 0 | O42: 0 | P42: 0 | Q42: 0 | R42: 0 | S42: 0 | T42: 0 | U42: 0 | Z42: General Fittings | AA42: 0 | AC42: 0 | AD42: 0 | AE42: 0 | AF42: 0 | AG42: 0 | AH42: 0 | AI42: 0 | AJ42: 0 | AK42: 0 | AO42: 0 | AP42: 0 | AQ42: 0 | AR42: 0 | AS42: 0 | AT42: 0 | AU42: 0 | AV42: 0 | AW42: 0
B43: Sctubes | C43: 0 | D43: 0 | E43: 0 | J43: Sctubes | K43: 0 | M43: 0 | N43: 0 | O43: 0 | P43: 0 | Q43: 0 | R43: 0 | S43: 0 | T43: 0 | U43: 0 | Z43: Giacomini | AA43: 72924.08 | AC43: 0 | AD43: 0 | AE43: 0 | AF43: 0 | AG43: 1704.49 | AH43: 1959.92 | AI43: 132.81 | AJ43: 0 | AK43: 0 | AN43: 3071.36 | AO43: 5949.24 | AP43: 16680.47 | AQ43: 3630.97 | AR43: 5193.51 | AS43: 7534.42 | AT43: 13078.84 | AU43: 1149.95 | AV43: 92.34 | AW43: 16542.98
B44: Ebara | C44: 0 | D44: 0 | E44: 0 | J44: Ebara | K44: 0 | M44: 0 | N44: 0 | O44: 0 | P44: 0 | Q44: 0 | R44: 0 | S44: 0 | T44: 0 | U44: 0 | Z44: Giuseppe Tirinnanzi | AA44: 0 | AC44: 0 | AD44: 0 | AE44: 0 | AF44: 0 | AG44: 0 | AH44: 0 | AI44: 0 | AJ44: 0 | AK44: 0 | AO44: 0 | AP44: 0 | AQ44: 0 | AR44: 0 | AS44: 0 | AT44: 0 | AU44: 0 | AV44: 0 | AW44: 0
B45: Paini | C45: 0 | D45: 0 | E45: 0 | J45: Paini | K45: 0 | M45: 0 | N45: 0 | O45: 0 | P45: 0 | Q45: 0 | R45: 0 | S45: 0 | T45: 0 | U45: 0 | Z45: Global | AA45: 16184 | AC45: 3205.44 | AD45: 0 | AE45: 7323.05 | AF45: 0 | AG45: 0 | AH45: 0 | AI45: 0 | AJ45: 291.51 | AK45: 0 | AO45: 10662.93 | AP45: 1167.08 | AQ45: 0 | AR45: 0 | AS45: 0 | AT45: 4353.93 | AU45: 0.06 | AV45: 0 | AW45: 0
B46: Farg | C46: 0 | D46: 0 | E46: 0 | J46: Farg | K46: 0 | M46: 0 | N46: 0 | O46: 0 | P46: 0 | Q46: 0 | R46: 0 | S46: 0 | T46: 0 | U46: 0 | Z46: Griffon - Bostik | AA46: 0 | AC46: 0 | AD46: 0 | AE46: 0 | AF46: 0 | AG46: 0 | AH46: 0 | AI46: 0 | AJ46: 0 | AK46: 0 | AO46: 0 | AP46: 0 | AQ46: 0 | AR46: 0 | AS46: 0 | AT46: 0 | AU46: 0 | AV46: 0 | AW46: 0
B47: Raccorderie Metalliche | C47: 0 | D47: 0 | E47: 0 | J47: Raccorderie Metalliche | K47: 0 | M47: 0 | N47: 0 | O47: 0 | P47: 0 | Q47: 0 | R47: 0 | S47: 0 | T47: 0 | U47: 0 | Z47: Grohe | AA47: 0 | AC47: 0 | AD47: 0 | AE47: 0 | AF47: 0 | AG47: 0 | AH47: 0 | AI47: 0 | AJ47: 0 | AK47: 0 | AO47: 0 | AP47: 0 | AQ47: 0 | AR47: 0 | AS47: 0 | AT47: 0 | AU47: 0 | AV47: 0 | AW47: 0
B48: Ferrari | C48: 1979 | D48: 0 | E48: -1979 | F48: -1 | J48: Ferrari | K48: 0 | M48: 0 | N48: 0 | O48: 0 | P48: 0 | Q48: 0 | R48: 0 | S48: 0 | T48: 0 | U48: 0 | Z48: Gruppo Salteco | AA48: 0 | AC48: 0 | AD48: 0 | AE48: 0 | AF48: 0 | AG48: 0 | AH48: 0 | AI48: 0 | AJ48: 0 | AK48: 0 | AO48: 0 | AP48: 0 | AQ48: 0 | AR48: 0 | AS48: 0 | AT48: 0 | AU48: 0 | AV48: 0 | AW48: 0
B49: Bwt/Cillichemie | C49: 0 | D49: 0 | E49: 0 | J49: Bwt/Cillichemie | K49: 0 | M49: 0 | N49: 0 | O49: 0 | P49: 0 | Q49: 0 | R49: 0 | S49: 0 | T49: 0 | U49: 0 | Z49: Haier | AA49: 100088.61 | AC49: 703.38 | AD49: 0 | AE49: 19168.19 | AF49: 1361.4 | AG49: 12003.07 | AH49: 13252.12 | AI49: 0 | AJ49: 4975.34 | AK49: 3850.16 | AN49: 9237.52 | AO49: 5457.47 | AP49: 26408.02 | AQ49: 13464.92 | AR49: 11123.58 | AS49: 0 | AT49: 28146.94 | AU49: 0 | AV49: 0 | AW49: 6250.16
B50: General d'aspirazione | C50: 1023.54 | D50: 0 | E50: -1023.54 | F50: -1 | J50: General d'aspirazione | K50: 0 | M50: 0 | N50: 0 | O50: 0 | P50: 0 | Q50: 0 | R50: 0 | S50: 0 | T50: 0 | U50: 0 | Z50: Ibp Banninger | AA50: 0 | AC50: 0 | AD50: 0 | AE50: 0 | AF50: 0 | AG50: 0 | AH50: 0 | AI50: 0 | AJ50: 0 | AK50: 0 | AO50: 0 | AP50: 0 | AQ50: 0 | AR50: 0 | AS50: 0 | AT50: 0 | AU50: 0 | AV50: 0 | AW50: 0
B51: System Group (Rototec) | C51: 0 | D51: 0 | E51: 0 | J51: System Group (Rototec) | K51: 0 | M51: 0 | N51: 0 | O51: 0 | P51: 0 | Q51: 0 | R51: 0 | S51: 0 | T51: 0 | U51: 0 | Z51: Ideal Standard | AA51: 0 | AC51: 0 | AD51: 0 | AE51: 0 | AF51: 0 | AG51: 0 | AH51: 0 | AI51: 0 | AJ51: 0 | AK51: 0 | AO51: 0 | AP51: 0 | AQ51: 0 | AR51: 0 | AS51: 0 | AT51: 0 | AU51: 0 | AV51: 0 | AW51: 0
B52: General Fittings | C52: 0 | D52: 0 | E52: 0 | J52: General Fittings | K52: 0 | M52: 0 | N52: 0 | O52: 0 | P52: 0 | Q52: 0 | R52: 0 | S52: 0 | T52: 0 | U52: 0 | Z52: Immergas | AA52: 108115 | AB52: 10363.21 | AC52: 19075 | AD52: 12519.89 | AE52: 11257.9 | AF52: 12570 | AG52: 12473 | AH52: 14564 | AI52: 0 | AJ52: 28374 | AK52: 14094 | AN52: 37595.49 | AO52: 6887.89 | AP52: 0 | AQ52: 18949.62 | AR52: 1180 | AS52: 30173 | AT52: 0 | AU52: 0 | AV52: 0 | AW52: 13329
B53: Tecnosystemi | C53: 0 | D53: 0 | E53: 0 | J53: Tecnosystemi | K53: 0 | M53: 0 | N53: 0 | O53: 0 | P53: 0 | Q53: 0 | R53: 0 | S53: 0 | T53: 0 | U53: 0 | Z53: Isoclima | AA53: 13271.25 | AC53: 0 | AD53: 0 | AE53: 0 | AF53: 0 | AG53: 0 | AH53: 0 | AI53: 0 | AJ53: 1061.5 | AK53: 0 | AO53: 1689.05 | AP53: 1689.05 | AQ53: 3629.56 | AR53: 0 | AS53: 3733.59 | AT53: 0 | AU53: 0 | AV53: 2530 | AW53: 0
B54: Euroacque | C54: 2806.8 | D54: 0 | E54: -2806.8 | F54: -1 | J54: Euroacque | K54: 0 | M54: 0 | N54: 0 | O54: 0 | P54: 0 | Q54: 0 | R54: 0 | S54: 0 | T54: 0 | U54: 0 | Z54: Italkero | AA54: 0 | AC54: 0 | AD54: 0 | AE54: 0 | AF54: 0 | AG54: 0 | AH54: 0 | AI54: 0 | AJ54: 0 | AK54: 0 | AO54: 0 | AP54: 0 | AQ54: 0 | AR54: 0 | AS54: 0 | AT54: 0 | AU54: 0 | AV54: 0 | AW54: 0
B55: Wilo | C55: 0 | D55: 0 | E55: 0 | J55: Wilo | K55: 0 | M55: 0 | N55: 0 | O55: 0 | P55: 0 | Q55: 0 | R55: 1967 | S55: 0 | T55: -1967 | U55: 0 | Z55: Itap | AA55: 0 | AC55: 0 | AD55: 0 | AE55: 0 | AF55: 0 | AG55: 0 | AH55: 516.22 | AI55: 0 | AJ55: 0 | AK55: 522.95 | AO55: 0 | AP55: 0 | AQ55: 0 | AR55: 0 | AS55: 0 | AT55: 0 | AU55: 0 | AV55: 0 | AW55: 0
B56: Bossini | C56: 0 | D56: 0 | E56: 0 | J56: Bossini | K56: 0 | M56: 0 | N56: 0 | O56: 0 | P56: 0 | Q56: 0 | R56: 0 | S56: 0 | T56: 0 | U56: 0 | Z56: KINEDO | AA56: 0 | AC56: 0 | AD56: 0 | AE56: 0 | AF56: 0 | AG56: 0 | AH56: 0 | AI56: 0 | AJ56: 0 | AK56: 0 | AO56: 0 | AP56: 0 | AQ56: 0 | AR56: 0 | AS56: 0 | AT56: 0 | AU56: 0 | AV56: 0 | AW56: 0
B57: Megius | C57: 0 | D57: 0 | E57: 0 | J57: Megius | K57: 0 | M57: 0 | N57: 0 | O57: 0 | P57: 0 | Q57: 0 | R57: 0 | S57: 0 | T57: 0 | U57: 0 | Z57: LG | AA57: 25547.13 | AC57: 0 | AD57: 0 | AE57: 0 | AF57: 0 | AG57: 0 | AH57: 0 | AI57: 0 | AJ57: 0 | AK57: 0 | AO57: 0 | AP57: 0 | AQ57: 13892.6 | AR57: 2405.11 | AS57: 1206.74 | AT57: 7411.5 | AU57: 631.18 | AV57: 0 | AW57: 0
B58: Ferroli | C58: 0 | D58: 0 | E58: 0 | J58: Ferroli | K58: 0 | M58: 0 | N58: 0 | O58: 0 | P58: 0 | Q58: 0 | R58: 0 | S58: 0 | T58: 0 | U58: 0 | Z58: L'isolante K-Flex | AA58: 0 | AC58: 0 | AD58: 0 | AE58: 0 | AF58: 0 | AG58: 0 | AH58: 0 | AI58: 0 | AJ58: 0 | AK58: 0 | AO58: 0 | AP58: 0 | AQ58: 0 | AR58: 0 | AS58: 0 | AT58: 0 | AU58: 0 | AV58: 0 | AW58: 0
B59: Effebi | C59: 0 | D59: 0 | E59: 0 | J59: Effebi | K59: 0 | M59: 0 | N59: 0 | O59: 0 | P59: 0 | Q59: 0 | R59: 0 | S59: 0 | T59: 0 | U59: 0 | Z59: Megius | AA59: 0 | AC59: 0 | AD59: 0 | AE59: 0 | AF59: 0 | AG59: 0 | AH59: 0 | AI59: 0 | AJ59: 0 | AK59: 0 | AO59: 0 | AP59: 0 | AQ59: 0 | AR59: 0 | AS59: 0 | AT59: 0 | AU59: 0 | AV59: 0 | AW59: 0
B60: Giuseppe Tirinnanzi | C60: 0 | D60: 0 | E60: 0 | J60: Giuseppe Tirinnanzi | K60: 0 | M60: 0 | N60: 0 | O60: 0 | P60: 0 | Q60: 0 | R60: 0 | S60: 0 | T60: 0 | U60: 0 | Z60: Mut Meccanica Tovo | AA60: 8669.05 | AB60: 798.32 | AC60: 0.61 | AD60: 1012.69 | AE60: 92 | AF60: 1666.7 | AG60: 0 | AH60: 919.72 | AI60: 0 | AJ60: 0 | AK60: 4552.86 | AN60: 1821.73 | AO60: 0 | AP60: 1713.35 | AQ60: 1799.86 | AR60: 0 | AS60: 0 | AT60: 0 | AU60: 0 | AV60: 1323 | AW60: 2011.11
B61: Arbi arredobagno | C61: 0 | D61: 0 | E61: 0 | J61: Arbi arredobagno | K61: 0 | M61: 0 | N61: 0 | O61: 0 | P61: 0 | Q61: 0 | R61: 0 | S61: 0 | T61: 0 | U61: 0 | Z61: Negrari | AA61: 114.02 | AC61: 0 | AD61: 0 | AE61: 0 | AF61: 0 | AG61: 0 | AH61: 0 | AI61: 102.42 | AJ61: 582 | AK61: 427 | AO61: 0 | AP61: 0 | AQ61: 0 | AR61: 0 | AS61: 114.02 | AT61: 0 | AU61: 0 | AV61: 0 | AW61: 0
B62: Atusa | C62: 0 | D62: 0 | E62: 0 | J62: Atusa | K62: 0 | M62: 0 | N62: 0 | O62: 0 | P62: 0 | Q62: 0 | R62: 0 | S62: 0 | T62: 0 | U62: 0 | Z62: Neoperl | AA62: 694.6 | AC62: 0 | AD62: 0 | AE62: 584.94 | AF62: 0 | AG62: 0 | AH62: 0 | AI62: 0 | AJ62: 0 | AK62: 0 | AN62: 694.6 | AO62: 0 | AP62: 0 | AQ62: 0 | AR62: 0 | AS62: 0 | AT62: 0 | AU62: 0 | AV62: 0 | AW62: 0
B63: Enolgas | C63: 0 | D63: 0 | E63: 0 | J63: Enolgas | K63: 0 | M63: 0 | N63: 0 | O63: 0 | P63: 0 | Q63: 0 | R63: 0 | S63: 0 | T63: 0 | U63: 0 | Z63: Novellini | AA63: 47680.96 | AB63: 1093.71 | AC63: 3482.13 | AD63: 1710.79 | AE63: 3540.37 | AF63: 2067 | AG63: 7587 | AH63: 4471 | AI63: 1527.87 | AJ63: 1820.86 | AK63: 5383.59 | AN63: 11198.3 | AO63: 7645.15 | AP63: 4319.54 | AQ63: 4504.01 | AR63: 7252 | AS63: 4568 | AT63: 3762 | AU63: 226.03 | AV63: 2957.15 | AW63: 1248.78
B64: Griffon - Bostik | C64: 0 | D64: 0 | E64: 0 | J64: Griffon - Bostik | K64: 0 | M64: 0 | N64: 0 | O64: 0 | P64: 0 | Q64: 0 | R64: 0 | S64: 0 | T64: 0 | U64: 0 | Z64: Olimpia Splendid | AA64: 4544.3 | AC64: 0 | AD64: 0 | AE64: 0 | AF64: 0 | AG64: 0 | AH64: 0 | AI64: 0 | AJ64: 0 | AK64: 0 | AO64: 0 | AP64: 0 | AQ64: 0 | AR64: 0 | AS64: 0 | AT64: 0 | AU64: 0 | AV64: 0 | AW64: 4544.3
B65: Panasonic | C65: 0 | D65: 0 | E65: 0 | J65: Panasonic | K65: 0 | M65: 0 | N65: 0 | O65: 0 | P65: 0 | Q65: 0 | R65: 0 | S65: 0 | T65: 0 | U65: 0 | Z65: Omp Tea | AA65: 3160.77 | AC65: 0 | AD65: 0 | AE65: 746.63 | AF65: 1217.67 | AG65: 0 | AH65: 1455.46 | AI65: 0 | AJ65: 0 | AK65: 1231.79 | AO65: 0 | AP65: 0 | AQ65: 1209.63 | AR65: 1075.8 | AS65: 0 | AT65: 0 | AU65: 0 | AV65: 875.34 | AW65: 0
B66: Grohe | C66: 0 | D66: 0 | E66: 0 | J66: Grohe | K66: 0 | M66: 0 | N66: 0 | O66: 0 | P66: 0 | Q66: 0 | R66: 0 | S66: 0 | T66: 0 | U66: 0 | Z66: Paini | AA66: 0 | AC66: 0 | AD66: 0 | AE66: 0 | AF66: 0 | AG66: 0 | AH66: 0 | AI66: 0 | AJ66: 0 | AK66: 0 | AO66: 0 | AP66: 0 | AQ66: 0 | AR66: 0 | AS66: 0 | AT66: 0 | AU66: 0 | AV66: 0 | AW66: 0
B67: Polieco | C67: 0 | D67: 0 | E67: 0 | J67: Polieco | K67: 0 | M67: 0 | N67: 0 | O67: 0 | P67: 0 | Q67: 0 | R67: 0 | S67: 0 | T67: 0 | U67: 0 | Z67: Panasonic | AA67: 0 | AC67: 0 | AD67: 0 | AE67: 0 | AF67: 0 | AG67: 0 | AH67: 0 | AI67: 0 | AJ67: 0 | AK67: 0 | AO67: 0 | AP67: 0 | AQ67: 0 | AR67: 0 | AS67: 0 | AT67: 0 | AU67: 0 | AV67: 0 | AW67: 0
B68: Gruppo Salteco | C68: 0 | D68: 0 | E68: 0 | J68: Gruppo Salteco | K68: 0 | M68: 0 | N68: 0 | O68: 0 | P68: 0 | Q68: 0 | R68: 0 | S68: 0 | T68: 0 | U68: 0 | Z68: Planus | AA68: 0 | AC68: 0 | AD68: 0 | AE68: 0 | AF68: 0 | AG68: 0 | AH68: 0 | AI68: 0 | AJ68: 0 | AK68: 0 | AO68: 0 | AP68: 0 | AQ68: 0 | AR68: 0 | AS68: 0 | AT68: 0 | AU68: 0 | AV68: 0 | AW68: 0
B69: Rems | C69: 0 | D69: 0 | E69: 0 | J69: Rems | K69: 0 | M69: 0 | N69: 0 | O69: 0 | P69: 0 | Q69: 0 | R69: 0 | S69: 0 | T69: 0 | U69: 0 | Z69: Polieco | AA69: 0 | AC69: 0 | AD69: 0 | AE69: 0 | AF69: 0 | AG69: 0 | AH69: 0 | AI69: 0 | AJ69: 0 | AK69: 0 | AO69: 0 | AP69: 0 | AQ69: 0 | AR69: 0 | AS69: 0 | AT69: 0 | AU69: 0 | AV69: 0 | AW69: 0
B70: River | C70: 0 | D70: 0 | E70: 0 | J70: River | K70: 0 | M70: 0 | N70: 0 | O70: 0 | P70: 0 | Q70: 0 | R70: 0 | S70: 0 | T70: 0 | U70: 0 | Z70: Raccorderie Metalliche | AA70: 0 | AC70: 0 | AD70: 0 | AE70: 0 | AF70: 0 | AG70: 0 | AH70: 0 | AI70: 0 | AJ70: 0 | AK70: 0 | AO70: 0 | AP70: 0 | AQ70: 0 | AR70: 0 | AS70: 0 | AT70: 0 | AU70: 0 | AV70: 0 | AW70: 0
B71: RM Manfredi | C71: 0 | D71: 0 | E71: 0 | J71: RM Manfredi | K71: 0 | M71: 0 | N71: 0 | O71: 0 | P71: 0 | Q71: 0 | R71: 0 | S71: 0 | T71: 0 | U71: 0 | Z71: Rems | AA71: 0 | AC71: 0 | AD71: 0 | AE71: 0 | AF71: 0 | AG71: 0 | AH71: 0 | AI71: 0 | AJ71: 0 | AK71: 0 | AO71: 0 | AP71: 0 | AQ71: 0 | AR71: 0 | AS71: 0 | AT71: 0 | AU71: 0 | AV71: 0 | AW71: 0
B72: Bernasconi | C72: 0 | D72: 0 | E72: 0 | J72: Bernasconi | K72: 0 | M72: 0 | N72: 0 | O72: 0 | P72: 0 | Q72: 0 | R72: 0 | S72: 0 | T72: 0 | U72: 0 | Z72: River | AA72: 0 | AC72: 0 | AD72: 0 | AE72: 0 | AF72: 0 | AG72: 0 | AH72: 0 | AI72: 0 | AJ72: 0 | AK72: 0 | AO72: 0 | AP72: 0 | AQ72: 0 | AR72: 0 | AS72: 0 | AT72: 0 | AU72: 0 | AV72: 0 | AW72: 0
B73: Royo | C73: 0 | D73: 0 | E73: 0 | J73: Royo | K73: 0 | M73: 0 | N73: 0 | O73: 0 | P73: 0 | Q73: 0 | R73: 0 | S73: 0 | T73: 0 | U73: 0 | Z73: Rizzo Aquae | AA73: 1234.59 | AC73: 0 | AD73: 0 | AE73: 323.78 | AF73: 0 | AG73: 0 | AH73: 301.5 | AI73: 0 | AJ73: 0 | AK73: 0 | AO73: 0 | AP73: 629.14 | AQ73: 0 | AR73: 0 | AS73: 0 | AT73: 605.45 | AU73: 0 | AV73: 0 | AW73: 0
B74: Ibp Banninger | C74: 0 | D74: 0 | E74: 0 | J74: Ibp Banninger | K74: 0 | M74: 0 | N74: 0 | O74: 0 | P74: 0 | Q74: 0 | R74: 0 | S74: 0 | T74: 0 | U74: 0 | Z74: RM Manfredi | AA74: 0 | AC74: 0 | AD74: 0 | AE74: 0 | AF74: 0 | AG74: 0 | AH74: 0 | AI74: 0 | AJ74: 0 | AK74: 0 | AO74: 0 | AP74: 0 | AQ74: 0 | AR74: 0 | AS74: 0 | AT74: 0 | AU74: 0 | AV74: 0 | AW74: 0
B75: Sabiana | C75: 0 | D75: 0 | E75: 0 | J75: Sabiana | K75: 0 | M75: 0 | N75: 0 | O75: 0 | P75: 0 | Q75: 0 | R75: 0 | S75: 0 | T75: 0 | U75: 0 | Z75: Royo | AA75: 0 | AC75: 0 | AD75: 0 | AE75: 0 | AF75: 0 | AG75: 0 | AH75: 0 | AI75: 0 | AJ75: 0 | AK75: 0 | AO75: 0 | AP75: 0 | AQ75: 0 | AR75: 0 | AS75: 0 | AT75: 0 | AU75: 0 | AV75: 0 | AW75: 0
B76: System Group Sicilia | C76: 0 | D76: 0 | E76: 0 | J76: System Group Sicilia | K76: 0 | M76: 0 | N76: 0 | O76: 0 | P76: 0 | Q76: 0 | R76: 0 | S76: 0 | T76: 0 | U76: 0 | Z76: Rubinetterie Bresciane | AA76: 12724.55 | AC76: 0 | AD76: 0 | AE76: 0 | AF76: 0 | AG76: 0 | AH76: 0 | AI76: 0 | AJ76: 0 | AK76: 0 | AO76: 0 | AP76: 0 | AQ76: 0 | AR76: 0 | AS76: 0 | AT76: 0 | AU76: 5669.57 | AV76: 2727.54 | AW76: 4327.44
B77: Silmet | C77: 0 | D77: 0 | E77: 0 | J77: Silmet | K77: 0 | M77: 0 | N77: 0 | O77: 0 | P77: 0 | Q77: 0 | R77: 0 | S77: 0 | T77: 0 | U77: 0 | Z77: Sabiana | AA77: 0 | AC77: 0 | AD77: 0 | AE77: 0 | AF77: 0 | AG77: 0 | AH77: 0 | AI77: 0 | AJ77: 0 | AK77: 0 | AO77: 0 | AP77: 0 | AQ77: 0 | AR77: 0 | AS77: 0 | AT77: 0 | AU77: 0 | AV77: 0 | AW77: 0
B78: Beza | C78: 0 | D78: 0 | E78: 0 | J78: Beza | K78: 0 | M78: 0 | N78: 0 | O78: 0 | P78: 0 | Q78: 0 | R78: 0 | S78: 0 | T78: 0 | U78: 0 | Z78: Samsung | AA78: 0 | AC78: 0 | AD78: 0 | AE78: 0 | AF78: 0 | AG78: 0 | AH78: 0 | AI78: 0 | AJ78: 0 | AK78: 0 | AO78: 0 | AP78: 0 | AQ78: 0 | AR78: 0 | AS78: 0 | AT78: 0 | AU78: 0 | AV78: 0 | AW78: 0
B79: System Group (Sa.Mi. Plastic) | C79: 0 | D79: 0 | E79: 0 | J79: System Group (Sa.Mi. Plastic) | K79: 0 | M79: 0 | N79: 0 | O79: 0 | P79: 0 | Q79: 0 | R79: 0 | S79: 0 | T79: 0 | U79: 0 | Z79: Silmet | AA79: 0 | AC79: 0 | AD79: 0 | AE79: 0 | AF79: 0 | AG79: 0 | AH79: 0 | AI79: 0 | AJ79: 0 | AK79: 0 | AO79: 0 | AP79: 0 | AQ79: 0 | AR79: 0 | AS79: 0 | AT79: 0 | AU79: 0 | AV79: 0 | AW79: 0
B80: Thermomat Saniline | C80: 52 | D80: 0 | E80: -52 | F80: -1 | J80: Thermomat Saniline | K80: 0 | M80: 0 | N80: 0 | O80: 0 | P80: 0 | Q80: 0 | R80: 0 | S80: 0 | T80: 0 | U80: 0 | Z80: System Group (Rototec) | AA80: 0 | AC80: 0 | AD80: 0 | AE80: 0 | AF80: 0 | AG80: 0 | AH80: 0 | AI80: 0 | AJ80: 0 | AK80: 0 | AO80: 0 | AP80: 0 | AQ80: 0 | AR80: 0 | AS80: 0 | AT80: 0 | AU80: 0 | AV80: 0 | AW80: 0
B81: Tecnocontrol | C81: 0 | D81: 0 | E81: 0 | J81: Tecnocontrol | K81: 0 | M81: 0 | N81: 0 | O81: 0 | P81: 0 | Q81: 0 | R81: 0 | S81: 0 | T81: 0 | U81: 0 | Z81: System Group (Sa.Mi. Plastic) | AA81: 0 | AC81: 0 | AD81: 0 | AE81: 0 | AF81: 0 | AG81: 0 | AH81: 0 | AI81: 0 | AJ81: 0 | AK81: 0 | AO81: 0 | AP81: 0 | AQ81: 0 | AR81: 0 | AS81: 0 | AT81: 0 | AU81: 0 | AV81: 0 | AW81: 0
B82: Unidelta | C82: 0 | D82: 0 | E82: 0 | J82: Unidelta | K82: 0 | L82: 0 | M82: 0 | N82: 0 | O82: 0 | P82: 0 | Q82: 0 | R82: 0 | S82: 0 | T82: 0 | U82: 0 | Z82: System Group (Sab) | AA82: 0 | AC82: 0 | AD82: 0 | AE82: 0 | AF82: 0 | AG82: 0 | AH82: 0 | AI82: 0 | AJ82: 0 | AK82: 0 | AO82: 0 | AP82: 0 | AQ82: 0 | AR82: 0 | AS82: 0 | AT82: 0 | AU82: 0 | AV82: 0 | AW82: 0
B83: Tenaris Dalmine | C83: 0 | D83: 0 | E83: 0 | J83: Tenaris Dalmine | K83: 0 | M83: 0 | N83: 0 | O83: 0 | P83: 0 | Q83: 0 | R83: 0 | S83: 0 | T83: 0 | U83: 0 | Z83: Tecnocontrol | AA83: 0 | AC83: 0 | AD83: 0 | AE83: 0 | AF83: 0 | AG83: 0 | AH83: 0 | AI83: 0 | AJ83: 0 | AK83: 0 | AO83: 0 | AP83: 0 | AQ83: 0 | AR83: 0 | AS83: 0 | AT83: 0 | AU83: 0 | AV83: 0 | AW83: 0
B84: Carlo Nobili | C84: 0 | D84: 0 | E84: 0 | J84: Carlo Nobili | K84: 0 | M84: 0 | N84: 0 | O84: 0 | P84: 0 | Q84: 0 | R84: 0 | S84: 0 | T84: 0 | U84: 0 | Z84: Tecnosystemi | AA84: 0 | AC84: 0 | AD84: 0 | AE84: 0 | AF84: 0 | AG84: 0 | AH84: 0 | AI84: 0 | AJ84: 0 | AK84: 0 | AO84: 0 | AP84: 0 | AQ84: 0 | AR84: 0 | AS84: 0 | AT84: 0 | AU84: 0 | AV84: 0 | AW84: 0
B85: Vortice | C85: 0 | D85: 0 | E85: 0 | J85: Vortice | K85: 0 | M85: 0 | N85: 0 | O85: 0 | P85: 0 | Q85: 0 | R85: 0 | S85: 0 | T85: 0 | U85: 0 | Z85: Tenaris Dalmine | AA85: 0 | AC85: 0 | AD85: 0 | AE85: 0 | AF85: 0 | AG85: 0 | AH85: 0 | AI85: 0 | AJ85: 0 | AK85: 0 | AO85: 0 | AP85: 0 | AQ85: 0 | AR85: 0 | AS85: 0 | AT85: 0 | AU85: 0 | AV85: 0 | AW85: 0
B86: Bmeters | C86: 0 | D86: 0 | E86: 0 | J86: Bmeters | K86: 0 | M86: 0 | N86: 0 | O86: 0 | P86: 0 | Q86: 0 | R86: 0 | S86: 0 | T86: 0 | U86: 0 | Z86: Thermomat Saniline | AA86: 0 | AC86: 52 | AD86: 0 | AE86: 0 | AF86: 0 | AG86: 0 | AH86: 0 | AI86: 0 | AJ86: 0 | AK86: 0 | AO86: 0 | AP86: 0 | AQ86: 0 | AR86: 0 | AS86: 0 | AT86: 0 | AU86: 0 | AV86: 0 | AW86: 0
B87: Va-Albertoni | C87: 0 | D87: 0 | E87: 0 | J87: Va-Albertoni | K87: 0 | M87: 0 | N87: 0 | O87: 0 | P87: 0 | Q87: 0 | R87: 0 | S87: 0 | T87: 0 | U87: 0 | Z87: Tiemme Raccorderie | AA87: 56947.95 | AB87: 3795.06 | AC87: 3416.2 | AD87: 4703.37 | AE87: 1731.52 | AF87: 5480.74 | AG87: 4175.22 | AH87: 5474.54 | AI87: 0 | AJ87: 10385.35 | AK87: 4623.7 | AN87: 5497.95 | AO87: 8363.9 | AP87: 9014.12 | AQ87: 7999.36 | AR87: 8655.82 | AS87: 4463.24 | AT87: 2831.53 | AU87: 0 | AV87: 5417.81 | AW87: 4704.22
B88: Italkero | C88: 0 | D88: 0 | E88: 0 | J88: Italkero | K88: 0 | M88: 0 | N88: 0 | O88: 0 | P88: 0 | Q88: 0 | R88: 0 | S88: 0 | T88: 0 | U88: 0 | Z88: Unidelta | AA88: 0 | AB88: 0 | AC88: 0 | AD88: 0 | AE88: 0 | AF88: 0 | AG88: 0 | AH88: 0 | AI88: 0 | AJ88: 0 | AK88: 0 | AN88: 0 | AO88: 0 | AP88: 0 | AQ88: 0 | AR88: 0 | AS88: 0 | AT88: 0 | AU88: 0 | AV88: 0 | AW88: 0
B89: Varem | C89: 0 | D89: 0 | E89: 0 | J89: Varem | K89: 0 | M89: 0 | N89: 0 | O89: 0 | P89: 0 | Q89: 0 | R89: 0 | S89: 0 | T89: 0 | U89: 0 | Z89: Va-Albertoni | AA89: 0 | AC89: 0 | AD89: 0 | AE89: 0 | AF89: 0 | AG89: 0 | AH89: 0 | AI89: 0 | AJ89: 0 | AK89: 0 | AO89: 0 | AP89: 0 | AQ89: 0 | AR89: 0 | AS89: 0 | AT89: 0 | AU89: 0 | AV89: 0 | AW89: 0
B90: Itap | C90: 1039.17 | D90: 0 | E90: -1039.17 | F90: -1 | J90: Itap | K90: 0 | M90: 0 | N90: 0 | O90: 0 | P90: 0 | Q90: 0 | R90: 0 | S90: 0 | T90: 0 | U90: 0 | Z90: Valsir | AA90: 19094 | AC90: 0 | AD90: 0 | AE90: 0 | AF90: 0 | AG90: 0 | AH90: 0 | AI90: 0 | AJ90: 0 | AK90: 0 | AO90: 4661 | AP90: 6047.15 | AQ90: -0.15 | AR90: 3609 | AS90: 2608 | AT90: 0 | AU90: 0 | AV90: 2079 | AW90: 90
B91: Wavin | C91: 0 | D91: 0 | E91: 0 | J91: Wavin | K91: 0 | M91: 0 | N91: 0 | O91: 0 | P91: 0 | Q91: 0 | R91: 0 | S91: 0 | T91: 0 | U91: 0 | Z91: Varem | AA91: 0 | AC91: 0 | AD91: 0 | AE91: 0 | AF91: 0 | AG91: 0 | AH91: 0 | AI91: 0 | AJ91: 0 | AK91: 0 | AO91: 0 | AP91: 0 | AQ91: 0 | AR91: 0 | AS91: 0 | AT91: 0 | AU91: 0 | AV91: 0 | AW91: 0
B92: KINEDO | C92: 0 | D92: 0 | E92: 0 | J92: KINEDO | K92: 0 | M92: 0 | N92: 0 | O92: 0 | P92: 0 | Q92: 0 | R92: 0 | S92: 0 | T92: 0 | U92: 0 | Z92: Vortice | AA92: 0 | AC92: 0 | AD92: 0 | AE92: 0 | AF92: 0 | AG92: 0 | AH92: 0 | AI92: 0 | AJ92: 0 | AK92: 0 | AO92: 0 | AP92: 0 | AQ92: 0 | AR92: 0 | AS92: 0 | AT92: 0 | AU92: 0 | AV92: 0 | AW92: 0
B93: Xylem | C93: 0 | D93: 0 | E93: 0 | J93: Xylem | K93: 0 | M93: 0 | N93: 0 | O93: 0 | P93: 0 | Q93: 0 | R93: 0 | S93: 0 | T93: 0 | U93: 0 | Z93: Wavin | AA93: 0 | AC93: 0 | AD93: 0 | AE93: 0 | AF93: 0 | AG93: 0 | AH93: 0 | AI93: 0 | AJ93: 0 | AK93: 0 | AO93: 0 | AP93: 0 | AQ93: 0 | AR93: 0 | AS93: 0 | AT93: 0 | AU93: 0 | AV93: 0 | AW93: 0
B94: Bosch | C94: 0 | D94: 0 | E94: 0 | J94: Bosch | K94: 0 | M94: 0 | N94: 0 | O94: 0 | P94: 0 | Q94: 0 | R94: 0 | S94: 0 | T94: 0 | U94: 0 | Z94: Wilo | AA94: 0 | AC94: 0 | AD94: 0 | AE94: 0 | AF94: 0 | AG94: 0 | AH94: 0 | AI94: 0 | AJ94: 0 | AK94: 0 | AO94: 0 | AP94: 0 | AQ94: 0 | AR94: 0 | AS94: 0 | AT94: 1967 | AU94: 0 | AV94: -1967 | AW94: 0
B95: Carrier | C95: 149 | D95: 0 | E95: -149 | F95: -1 | J95: Carrier | K95: 0 | L95: 0 | M95: 0 | N95: 0 | O95: 0 | P95: 0 | Q95: 0 | R95: 0 | S95: 0 | T95: 0 | U95: 0 | Z95: Xylem | AA95: 0 | AC95: 0 | AD95: 0 | AE95: 0 | AF95: 0 | AG95: 0 | AH95: 0 | AI95: 0 | AJ95: 0 | AK95: 0 | AO95: 0 | AP95: 0 | AQ95: 0 | AR95: 0 | AS95: 0 | AT95: 0 | AU95: 0 | AV95: 0 | AW95: 0
B96: L'isolante K-Flex | C96: 0 | D96: 0 | E96: 0 | J96: L'isolante K-Flex | K96: 0 | M96: 0 | N96: 0 | O96: 0 | P96: 0 | Q96: 0 | R96: 0 | S96: 0 | T96: 0 | U96: 0 | Z96: Sctubes | AA96: 0 | AC96: 0 | AD96: 0 | AE96: 0 | AF96: 0 | AG96: 0 | AH96: 0 | AI96: 0 | AJ96: 0 | AK96: 0 | AO96: 0 | AP96: 0 | AQ96: 0 | AR96: 0 | AS96: 0 | AT96: 0 | AU96: 0 | AV96: 0 | AW96: 0
B97: Ideal Standard | C97: 0 | D97: 0 | E97: 0 | J97: Ideal Standard | K97: 0 | M97: 0 | N97: 0 | O97: 0 | P97: 0 | Q97: 0 | R97: 0 | S97: 0 | T97: 0 | U97: 0 | Z97: System Group Sicilia | AA97: 0 | AC97: 0 | AD97: 0 | AE97: 0 | AF97: 0 | AG97: 0 | AH97: 0 | AI97: 0 | AJ97: 0 | AK97: 0 | AO97: 0 | AP97: 0 | AQ97: 0 | AR97: 0 | AS97: 0 | AT97: 0 | AU97: 0 | AV97: 0 | AW97: 0
A98: Totale complessivo | C98: 406418.4344 | D98: 587659.104 | E98: 181240.6696 | F98: 0.4459459862 | I98: Totale complessivo | K98: 587659.104 | L98: 78690.43 | M98: 63919.66 | N98: 71475.65 | O98: 85631.85 | P98: 52233.97 | Q98: 60859.534 | R98: 75499.01 | S98: 10087.28 | T98: 25683.54 | U98: 63578.18 | Y98: CASAÉ F.lli LARUFFA srl | AA98: 186324.11 | AB98: 20115.47 | AC98: 24920.53 | AD98: 28574.92 | AE98: 17539.28 | AF98: 14230.24 | AG98: 20876.11 | AH98: 51623.81 | AI98: 11143.4 | AJ98: 19604.71 | AK98: 34069.01 | AN98: 26635.6 | AO98: 5668.28 | AP98: 12697.15 | AQ98: 15061.05 | AR98: 19207.43 | AS98: 31023.1 | AT98: 13127.86 | AU98: 8003.99 | AV98: 27710.2 | AW98: 27189.45
Z99: Albatros | AA99: 0 | AB99: 0 | AC99: 0 | AD99: 0 | AE99: 0 | AF99: 0 | AG99: 0 | AH99: 0 | AI99: 0 | AJ99: 0 | AK99: 0 | AN99: 0 | AO99: 0 | AP99: 0 | AQ99: 0 | AR99: 0 | AS99: 0 | AT99: 0 | AU99: 0 | AV99: 0 | AW99: 0
Z100: Arbi arredobagno | AA100: 0 | AC100: 0 | AD100: 0 | AE100: 0 | AF100: 0 | AG100: 0 | AH100: 0 | AI100: 0 | AJ100: 0 | AK100: 0 | AO100: 0 | AP100: 0 | AQ100: 0 | AR100: 0 | AS100: 0 | AT100: 0 | AU100: 0 | AV100: 0 | AW100: 0
Z101: Arblu | AA101: 0 | AC101: 0 | AD101: 0 | AE101: 0 | AF101: 0 | AG101: 0 | AH101: 0 | AI101: 0 | AJ101: 0 | AK101: 0 | AO101: 0 | AP101: 0 | AQ101: 0 | AR101: 0 | AS101: 0 | AT101: 0 | AU101: 0 | AV101: 0 | AW101: 0
Z102: Ariston | AA102: 37377.88 | AB102: 2809.45 | AC102: 5580.18 | AD102: 13365.75 | AE102: 5316.28 | AF102: 4729.3 | AG102: 0 | AH102: 14120.29 | AI102: 751.09 | AJ102: 1056.97 | AK102: 9702.24 | AN102: 2044.59 | AO102: 517.63 | AP102: 276.38 | AQ102: 4918.85 | AR102: 8944.29 | AS102: 5823.6 | AT102: 0 | AU102: 4382.88 | AV102: 9043.32 | AW102: 1426.34
Z103: Arredamenti Montegrappa | AA103: 0 | AC103: 0 | AD103: 0 | AE103: 147.26 | AF103: 0 | AG103: 0 | AH103: 0 | AI103: 0 | AJ103: 0 | AK103: 0 | AO103: 0 | AP103: 0 | AQ103: 0 | AR103: 0 | AS103: 0 | AT103: 0 | AU103: 0 | AV103: 0 | AW103: 0
Z104: Atusa | AA104: 0 | AC104: 0 | AD104: 0 | AE104: 0 | AF104: 0 | AG104: 0 | AH104: 0 | AI104: 0 | AJ104: 0 | AK104: 0 | AO104: 0 | AP104: 0 | AQ104: 0 | AR104: 0 | AS104: 0 | AT104: 0 | AU104: 0 | AV104: 0 | AW104: 0
Z105: Bernasconi | AA105: 0 | AC105: 0 | AD105: 0 | AE105: 0 | AF105: 0 | AG105: 0 | AH105: 0 | AI105: 0 | AJ105: 0 | AK105: 0 | AO105: 0 | AP105: 0 | AQ105: 0 | AR105: 0 | AS105: 0 | AT105: 0 | AU105: 0 | AV105: 0 | AW105: 0
Z106: Beza | AA106: 0 | AC106: 0 | AD106: 0 | AE106: 0 | AF106: 0 | AG106: 0 | AH106: 0 | AI106: 0 | AJ106: 0 | AK106: 0 | AO106: 0 | AP106: 0 | AQ106: 0 | AR106: 0 | AS106: 0 | AT106: 0 | AU106: 0 | AV106: 0 | AW106: 0
Z107: Bmeters | AA107: 0 | AC107: 0 | AD107: 0 | AE107: 0 | AF107: 0 | AG107: 0 | AH107: 0 | AI107: 0 | AJ107: 0 | AK107: 0 | AO107: 0 | AP107: 0 | AQ107: 0 | AR107: 0 | AS107: 0 | AT107: 0 | AU107: 0 | AV107: 0 | AW107: 0
Z108: Bosch | AA108: 0 | AC108: 0 | AD108: 0 | AE108: 0 | AF108: 0 | AG108: 0 | AH108: 0 | AI108: 0 | AJ108: 0 | AK108: 0 | AO108: 0 | AP108: 0 | AQ108: 0 | AR108: 0 | AS108: 0 | AT108: 0 | AU108: 0 | AV108: 0 | AW108: 0
Z109: Bossini | AA109: 0 | AC109: 0 | AD109: 0 | AE109: 0 | AF109: 0 | AG109: 0 | AH109: 0 | AI109: 0 | AJ109: 0 | AK109: 0 | AO109: 0 | AP109: 0 | AQ109: 0 | AR109: 0 | AS109: 0 | AT109: 0 | AU109: 0 | AV109: 0 | AW109: 0
Z110: BT-Flex | AA110: 0 | AC110: 0 | AD110: 0 | AE110: 0 | AF110: 0 | AG110: 0 | AH110: 0 | AI110: 0 | AJ110: 0 | AK110: 0 | AO110: 0 | AP110: 0 | AQ110: 0 | AR110: 0 | AS110: 0 | AT110: 0 | AU110: 0 | AV110: 0 | AW110: 0
Z111: Bwt/Cillichemie | AA111: 0 | AB111: 934.08 | AC111: 0 | AD111: 0 | AE111: 0 | AF111: 0 | AG111: -0.08 | AH111: 0 | AI111: 0.08 | AJ111: 0 | AK111: 0 | AO111: 0 | AP111: 0 | AQ111: 0 | AR111: 0 | AS111: 0 | AT111: 0 | AU111: 0 | AV111: 0 | AW111: 0
Z112: Caleffi | AA112: 0 | AC112: 0 | AD112: 0 | AE112: 0 | AF112: 0 | AG112: 0 | AH112: 0 | AI112: 0 | AJ112: 0 | AK112: 0 | AO112: 0 | AP112: 0 | AQ112: 0 | AR112: 0 | AS112: 0 | AT112: 0 | AU112: 0 | AV112: 0 | AW112: 0
Z113: Carlo Nobili | AA113: 164 | AC113: 1517 | AD113: 0 | AE113: 0 | AF113: 0 | AG113: 0 | AH113: 0 | AI113: 0 | AJ113: 0 | AK113: 0 | AO113: 0 | AP113: 0 | AQ113: 0 | AR113: 0 | AS113: 0 | AT113: 0 | AU113: 164 | AV113: 0 | AW113: 0
Z114: Carrier | AA114: 0 | AB114: 0 | AC114: 0 | AD114: 0 | AE114: 0 | AF114: 0 | AG114: 0 | AH114: 0 | AI114: 0 | AJ114: 0 | AK114: 0 | AN114: 0 | AO114: 0 | AP114: 0 | AQ114: 0 | AR114: 0 | AS114: 0 | AT114: 0 | AU114: 0 | AV114: 0 | AW114: 0
Z115: Cordivari | AA115: 0 | AB115: 114.57 | AC115: 497.67 | AD115: 159.57 | AE115: 0 | AF115: 0 | AG115: 0 | AH115: 1212 | AI115: 0 | AJ115: 0 | AK115: 0 | AO115: 0 | AP115: 0 | AQ115: 0 | AR115: 0 | AS115: 0 | AT115: 0 | AU115: 0 | AV115: 0 | AW115: 0
Z116: Dab Pumps | AA116: 2087.48 | AC116: 0 | AD116: 0 | AE116: 0 | AF116: 0 | AG116: 1899.25 | AH116: 0 | AI116: 279.1 | AJ116: 0 | AK116: 880.65 | AO116: 0 | AP116: 0 | AQ116: 0 | AR116: 717.33 | AS116: 858.4 | AT116: 52.51 | AU116: 0 | AV116: 459.24 | AW116: 0
Z117: Ebara | AA117: 927.3 | AC117: 0 | AD117: 753 | AE117: 0 | AF117: 0 | AG117: 1450 | AH117: 0 | AI117: 1092.2 | AJ117: 0 | AK117: 1493.2 | AN117: 927.3 | AO117: 0 | AP117: 0 | AQ117: 0 | AR117: 0 | AS117: 0 | AT117: 0 | AU117: 0 | AV117: 0 | AW117: 0
Z118: Effebi | AA118: 0 | AC118: 0 | AD118: 0 | AE118: 0 | AF118: 0 | AG118: 0 | AH118: 0 | AI118: 0 | AJ118: 0 | AK118: 0 | AO118: 0 | AP118: 0 | AQ118: 0 | AR118: 0 | AS118: 0 | AT118: 0 | AU118: 0 | AV118: 0 | AW118: 0
Z119: Enolgas | AA119: 0 | AC119: 0 | AD119: 0 | AE119: 0 | AF119: 0 | AG119: 0 | AH119: 0 | AI119: 0 | AJ119: 0 | AK119: 0 | AO119: 0 | AP119: 0 | AQ119: 0 | AR119: 0 | AS119: 0 | AT119: 0 | AU119: 0 | AV119: 0 | AW119: 0
Z120: Ercos | AA120: 0 | AC120: 0 | AD120: 0 | AE120: 0 | AF120: 0 | AG120: 0 | AH120: 0 | AI120: 0 | AJ120: 0 | AK120: 0 | AO120: 0 | AP120: 0 | AQ120: 0 | AR120: 0 | AS120: 0 | AT120: 0 | AU120: 0 | AV120: 0 | AW120: 0
Z121: Euroacque | AA121: 0 | AC121: 0 | AD121: 0 | AE121: 0 | AF121: 0 | AG121: 0 | AH121: 0 | AI121: 0 | AJ121: 0 | AK121: 0 | AO121: 0 | AP121: 0 | AQ121: 0 | AR121: 0 | AS121: 0 | AT121: 0 | AU121: 0 | AV121: 0 | AW121: 0
Z122: Eurocornici | AA122: 0 | AC122: 0 | AD122: 0 | AE122: 0 | AF122: 0 | AG122: 0 | AH122: 0 | AI122: 0 | AJ122: 0 | AK122: 0 | AO122: 0 | AP122: 0 | AQ122: 0 | AR122: 0 | AS122: 0 | AT122: 0 | AU122: 0 | AV122: 0 | AW122: 0
Z123: Farg | AA123: 1828.76 | AC123: 0 | AD123: 0 | AE123: 0 | AF123: 0 | AG123: 0 | AH123: 1026.49 | AI123: 0 | AJ123: 0 | AK123: 0 | AO123: 0 | AP123: 0 | AQ123: 0 | AR123: 0 | AS123: 0 | AT123: 599.06 | AU123: 0 | AV123: 0 | AW123: 1229.7
Z124: Ferrari | AA124: 3885 | AC124: 737 | AD124: 0 | AE124: 890 | AF124: 0 | AG124: 0 | AH124: 921 | AI124: 0 | AJ124: 401 | AK124: 0 | AO124: 0 | AP124: 0 | AQ124: 1308 | AR124: 0 | AS124: 390 | AT124: 0 | AU124: 0 | AV124: 2187 | AW124: 0
Z125: Ferroli | AA125: 0 | AC125: 0 | AD125: 0 | AE125: 0 | AF125: 0 | AG125: 0 | AH125: 0 | AI125: 0 | AJ125: 0 | AK125: 0 | AO125: 0 | AP125: 0 | AQ125: 0 | AR125: 0 | AS125: 0 | AT125: 0 | AU125: 0 | AV125: 0 | AW125: 0
Z126: Fima Carlo Frattini | AA126: 0 | AC126: 0 | AD126: 0 | AE126: 0 | AF126: 0 | AG126: 0 | AH126: 0 | AI126: 0 | AJ126: 0 | AK126: 0 | AO126: 0 | AP126: 0 | AQ126: 0 | AR126: 0 | AS126: 0 | AT126: 0 | AU126: 0 | AV126: 0 | AW126: 0
Z127: Fimi | AA127: 0 | AC127: 0 | AD127: 0 | AE127: 0 | AF127: 0 | AG127: 0 | AH127: 0 | AI127: 0 | AJ127: 0 | AK127: 0 | AO127: 0 | AP127: 0 | AQ127: 0 | AR127: 0 | AS127: 0 | AT127: 0 | AU127: 0 | AV127: 0 | AW127: 0
Z128: First Corporation | AA128: 0 | AC128: 0 | AD128: 104.3 | AE128: 0 | AF128: 0 | AG128: 0 | AH128: 315.81 | AI128: 0 | AJ128: 0 | AK128: 0 | AO128: 0 | AP128: 0 | AQ128: 0 | AR128: 0 | AS128: 0 | AT128: 0 | AU128: 0 | AV128: 0 | AW128: 0
Z129: Fluidmaster | AA129: 4407 | AB129: 364 | AC129: 0 | AD129: 0 | AE129: 2227 | AF129: 0 | AG129: 1340 | AH129: 0 | AI129: 0 | AJ129: 2623 | AK129: 0 | AN129: 1962 | AO129: 0 | AP129: -0.46 | AQ129: 584.46 | AR129: 546 | AS129: 0 | AT129: 683 | AU129: 0 | AV129: 159 | AW129: 473
Z130: Galassia | AA130: 739 | AB130: 2318 | AC130: 196 | AD130: 449 | AE130: 251 | AF130: 0 | AG130: 0 | AH130: 364 | AI130: 551 | AJ130: 0 | AK130: 50 | AO130: 0 | AP130: 632 | AQ130: 0 | AR130: 0 | AS130: 0 | AT130: 0 | AU130: 0 | AV130: 107 | AW130: 0
Z131: Galletti | AA131: 0 | AC131: 0 | AD131: 0 | AE131: 0 | AF131: 0 | AG131: 0 | AH131: 0 | AI131: 0 | AJ131: 0 | AK131: 0 | AO131: 0 | AP131: 0 | AQ131: 0 | AR131: 0 | AS131: 0 | AT131: 0 | AU131: 0 | AV131: 0 | AW131: 0
Z132: GBD | AA132: 0 | AC132: 0 | AD132: 0 | AE132: 0 | AF132: 0 | AG132: 0 | AH132: 0 | AI132: 0 | AJ132: 0 | AK132: 0 | AO132: 0 | AP132: 0 | AQ132: 0 | AR132: 0 | AS132: 0 | AT132: 0 | AU132: 0 | AV132: 0 | AW132: 0
Z133: Geberit | AA133: 0 | AC133: 4944.41 | AD133: 0 | AE133: 0 | AF133: 0 | AG133: 0 | AH133: 627.07 | AI133: 0 | AJ133: 0 | AK133: 0 | AO133: 0 | AP133: 0 | AQ133: 0 | AR133: 0 | AS133: 0 | AT133: 0 | AU133: 0 | AV133: 0 | AW133: 0
Z134: General d'aspirazione | AA134: 0 | AC134: 0 | AD134: 0 | AE134: 0 | AF134: 0 | AG134: 0 | AH134: 0 | AI134: 0 | AJ134: 0 | AK134: 0 | AO134: 0 | AP134: 0 | AQ134: 0 | AR134: 0 | AS134: 0 | AT134: 0 | AU134: 0 | AV134: 0 | AW134: 0
Z135: General Fittings | AA135: 0 | AC135: 0 | AD135: 0 | AE135: 0 | AF135: 0 | AG135: 0 | AH135: 0 | AI135: 0 | AJ135: 0 | AK135: 0 | AO135: 0 | AP135: 0 | AQ135: 0 | AR135: 0 | AS135: 0 | AT135: 0 | AU135: 0 | AV135: 0 | AW135: 0
Z136: Giacomini | AA136: 33776.78 | AB136: 10130.75 | AC136: 4397.95 | AD136: 7598.8 | AE136: 4358.7 | AF136: 4704.67 | AG136: 5875.73 | AH136: 4453.03 | AI136: 4076.18 | AJ136: 3878.16 | AK136: 5131.08 | AN136: 17216.27 | AO136: 771.03 | AP136: 3197.26 | AQ136: 1490.31 | AR136: 1232.07 | AS136: 1302.76 | AT136: 136.75 | AU136: 2613.4 | AV136: 5816.93 | AW136: 0
Z137: Giuseppe Tirinnanzi | AA137: 0 | AC137: 0 | AD137: 0 | AE137: 0 | AF137: 0 | AG137: 0 | AH137: 0 | AI137: 0 | AJ137: 0 | AK137: 0 | AO137: 0 | AP137: 0 | AQ137: 0 | AR137: 0 | AS137: 0 | AT137: 0 | AU137: 0 | AV137: 0 | AW137: 0
Z138: Global | AA138: 9585 | AB138: 491.21 | AC138: 815.22 | AD138: 232.88 | AE138: 0 | AF138: 0 | AG138: 1389.53 | AH138: 0 | AI138: 0 | AJ138: 476.16 | AK138: 8229 | AO138: 219.4 | AP138: 0 | AQ138: 1737.44 | AR138: 0 | AS138: 1785.33 | AT138: 0 | AU138: 0 | AV138: -0.17 | AW138: 5843
Z139: Griffon - Bostik | AA139: 0 | AC139: 0 | AD139: 0 | AE139: 0 | AF139: 0 | AG139: 0 | AH139: 0 | AI139: 0 | AJ139: 0 | AK139: 0 | AO139: 0 | AP139: 0 | AQ139: 0 | AR139: 0 | AS139: 0 | AT139: 0 | AU139: 0 | AV139: 0 | AW139: 0
Z140: Grohe | AA140: 0 | AC140: 0 | AD140: 0 | AE140: 0 | AF140: 0 | AG140: 0 | AH140: 0 | AI140: 0 | AJ140: 0 | AK140: 0 | AO140: 0 | AP140: 0 | AQ140: 0 | AR140: 0 | AS140: 0 | AT140: 0 | AU140: 0 | AV140: 0 | AW140: 0
Z141: Gruppo Salteco | AA141: 0 | AC141: 0 | AD141: 664 | AE141: 0 | AF141: 0 | AG141: 0 | AH141: 0 | AI141: 0 | AJ141: 0 | AK141: 0 | AO141: 0 | AP141: 0 | AQ141: 0 | AR141: 0 | AS141: 0 | AT141: 0 | AU141: 0 | AV141: 0 | AW141: 0
Z142: Haier | AA142: 7562 | AC142: 0 | AD142: 0 | AE142: 0 | AF142: 0 | AG142: 1837.68 | AH142: 18011.62 | AI142: 94.62 | AJ142: 2955.26 | AK142: 1038.54 | AO142: 855 | AP142: 0 | AQ142: 0 | AR142: 0 | AS142: 6183.36 | AT142: 450.68 | AU142: 0 | AV142: 0 | AW142: 72.96
Z143: Ibp Banninger | AA143: 0 | AC143: 0 | AD143: 0 | AE143: 0 | AF143: 0 | AG143: 0 | AH143: 0 | AI143: 0 | AJ143: 0 | AK143: 0 | AO143: 0 | AP143: 0 | AQ143: 0 | AR143: 0 | AS143: 0 | AT143: 0 | AU143: 0 | AV143: 0 | AW143: 0
Z144: Ideal Standard | AA144: 10479.98 | AB144: 1641.61 | AC144: 180.81 | AD144: 4464.81 | AE144: 960.12 | AF144: 0 | AG144: 1446.61 | AH144: 798.63 | AI144: 2410.33 | AJ144: 0 | AK144: 2788.17 | AO144: 508.83 | AP144: -284.97 | AQ144: 0 | AR144: 498.16 | AS144: 4201.33 | AT144: 722.57 | AU144: 0 | AV144: 1374.57 | AW144: 3459.49
Z145: Immergas | AA145: 0 | AC145: 0 | AD145: 0 | AE145: 0 | AF145: 0 | AG145: 0 | AH145: 0 | AI145: 0 | AJ145: 0 | AK145: 0 | AO145: 0 | AP145: 0 | AQ145: 0 | AR145: 0 | AS145: 0 | AT145: 0 | AU145: 0 | AV145: 0 | AW145: 0
Z146: Isoclima | AA146: 10681.76 | AC146: 1099.9 | AD146: 0 | AE146: 0 | AF146: 3408.87 | AG146: 0 | AH146: 0 | AI146: 0 | AJ146: 0 | AK146: 0 | AO146: 0 | AP146: 0 | AQ146: 0 | AR146: 3658.66 | AS146: 0 | AT146: 4559.5 | AU146: 0 | AV146: 2463.6 | AW146: 0
Z147: Italkero | AA147: 0 | AC147: 0 | AD147: 0 | AE147: 0 | AF147: 0 | AG147: 0 | AH147: 0 | AI147: 0 | AJ147: 0 | AK147: 0 | AO147: 0 | AP147: 0 | AQ147: 0 | AR147: 0 | AS147: 0 | AT147: 0 | AU147: 0 | AV147: 0 | AW147: 0
Z148: Itap | AA148: 0 | AC148: 0 | AD148: 0 | AE148: 0 | AF148: 0 | AG148: 0 | AH148: 0 | AI148: 0 | AJ148: 0 | AK148: 0 | AO148: 0 | AP148: 0 | AQ148: 0 | AR148: 0 | AS148: 0 | AT148: 0 | AU148: 0 | AV148: 0 | AW148: 0
Z149: KINEDO | AA149: 0 | AC149: 0 | AD149: 0 | AE149: 0 | AF149: 0 | AG149: 0 | AH149: 0 | AI149: 0 | AJ149: 0 | AK149: 0 | AO149: 0 | AP149: 0 | AQ149: 0 | AR149: 0 | AS149: 0 | AT149: 0 | AU149: 0 | AV149: 0 | AW149: 0
Z150: LG | AA150: 0 | AC150: 0 | AD150: 0 | AE150: 0 | AF150: 0 | AG150: 0 | AH150: 0 | AI150: 0 | AJ150: 0 | AK150: 0 | AO150: 0 | AP150: 0 | AQ150: 0 | AR150: 0 | AS150: 0 | AT150: 0 | AU150: 0 | AV150: 0 | AW150: 0
Z151: L'isolante K-Flex | AA151: 0 | AC151: 0 | AD151: 0 | AE151: 0 | AF151: 0 | AG151: 0 | AH151: 0 | AI151: 0 | AJ151: 0 | AK151: 0 | AO151: 0 | AP151: 0 | AQ151: 0 | AR151: 0 | AS151: 0 | AT151: 0 | AU151: 0 | AV151: 0 | AW151: 0
Z152: Megius | AA152: 0 | AC152: 0 | AD152: 0 | AE152: 0 | AF152: 0 | AG152: 0 | AH152: 0 | AI152: 0 | AJ152: 0 | AK152: 0 | AO152: 0 | AP152: 0 | AQ152: 0 | AR152: 0 | AS152: 0 | AT152: 0 | AU152: 0 | AV152: 0 | AW152: 0
Z153: Mut Meccanica Tovo | AA153: 0 | AC153: 0 | AD153: 0 | AE153: 0 | AF153: 0 | AG153: 0 | AH153: 0 | AI153: 0 | AJ153: 0 | AK153: 0 | AO153: 0 | AP153: 0 | AQ153: 0 | AR153: 0 | AS153: 0 | AT153: 0 | AU153: 0 | AV153: 0 | AW153: 0
Z154: Negrari | AA154: 8594.45 | AC154: 1380.8 | AD154: 0 | AE154: 0 | AF154: 0 | AG154: 1848.17 | AH154: 0 | AI154: 0 | AJ154: 2979.22 | AK154: 0 | AN154: 1734.6 | AO154: 0 | AP154: 0 | AQ154: 0 | AR154: 0 | AS154: 3335.95 | AT154: 0 | AU154: 0 | AV154: 3523.9 | AW154: 0
Z155: Neoperl | AA155: 0 | AC155: 0 | AD155: 0 | AE155: 0 | AF155: 0 | AG155: 0 | AH155: 0 | AI155: 0 | AJ155: 0 | AK155: 0 | AO155: 0 | AP155: 0 | AQ155: 0 | AR155: 0 | AS155: 0 | AT155: 0 | AU155: 0 | AV155: 0 | AW155: 0
Z156: Novellini | AA156: 11601.57 | AB156: 506.7 | AC156: 2909.84 | AD156: 708.83 | AE156: 344.63 | AF156: 296 | AG156: 1892 | AH156: 8611 | AI156: 1134.21 | AJ156: 1742.47 | AK156: 870.47 | AN156: 1179.87 | AO156: 132.61 | AP156: 1709.39 | AQ156: 1724.13 | AR156: 2565 | AS156: 1400 | AT156: 981 | AU156: 843.71 | AV156: 1065.86 | AW156: 0
Z157: Olimpia Splendid | AA157: 17196.29 | AC157: 0 | AD157: 0 | AE157: 0 | AF157: 0 | AG157: 0 | AH157: 0 | AI157: 0 | AJ157: 0 | AK157: 2969 | AO157: 1131 | AP157: 0 | AQ157: 193 | AR157: 313 | AS157: 4032.81 | AT157: 0 | AU157: 0 | AV157: 349.25 | AW157: 11177.23
Z158: Omp Tea | AA158: 5997.64 | AC158: 0 | AD158: 0 | AE158: 0 | AF158: 0 | AG158: 0 | AH158: 1024.69 | AI158: 0 | AJ158: 829.42 | AK158: 0 | AO158: 652.66 | AP158: 0 | AQ158: 2223.31 | AR158: 0 | AS158: 0 | AT158: 1244.87 | AU158: 0 | AV158: 1160.7 | AW158: 716.1
Z159: Paini | AA159: 0 | AC159: 0 | AD159: 0 | AE159: 0 | AF159: 0 | AG159: 0 | AH159: 0 | AI159: 0 | AJ159: 752.78 | AK159: 0 | AO159: 0 | AP159: 0 | AQ159: 0 | AR159: 0 | AS159: 0 | AT159: 0 | AU159: 0 | AV159: 0 | AW159: 0
Z160: Panasonic | AA160: 0 | AC160: 0 | AD160: 0 | AE160: 0 | AF160: 0 | AG160: 0 | AH160: 0 | AI160: 0 | AJ160: 0 | AK160: 0 | AO160: 0 | AP160: 0 | AQ160: 0 | AR160: 0 | AS160: 0 | AT160: 0 | AU160: 0 | AV160: 0 | AW160: 0
Z161: Planus | AA161: 0 | AC161: 0 | AD161: 0 | AE161: 0 | AF161: 0 | AG161: 0 | AH161: 0 | AI161: 0 | AJ161: 0 | AK161: 0 | AO161: 0 | AP161: 0 | AQ161: 0 | AR161: 0 | AS161: 0 | AT161: 0 | AU161: 0 | AV161: 0 | AW161: 0
Z162: Polieco | AA162: 0 | AC162: 0 | AD162: 0 | AE162: 0 | AF162: 0 | AG162: 0 | AH162: 0 | AI162: 0 | AJ162: 0 | AK162: 0 | AO162: 0 | AP162: 0 | AQ162: 0 | AR162: 0 | AS162: 0 | AT162: 0 | AU162: 0 | AV162: 0 | AW162: 0
Z163: Raccorderie Metalliche | AA163: 0 | AC163: 0 | AD163: 0 | AE163: 0 | AF163: 0 | AG163: 0 | AH163: 0 | AI163: 0 | AJ163: 0 | AK163: 0 | AO163: 0 | AP163: 0 | AQ163: 0 | AR163: 0 | AS163: 0 | AT163: 0 | AU163: 0 | AV163: 0 | AW163: 0
Z164: Rems | AA164: 0 | AC164: 0 | AD164: 0 | AE164: 0 | AF164: 0 | AG164: 0 | AH164: 0 | AI164: 0 | AJ164: 0 | AK164: 0 | AO164: 0 | AP164: 0 | AQ164: 0 | AR164: 0 | AS164: 0 | AT164: 0 | AU164: 0 | AV164: 0 | AW164: 0
Z165: River | AA165: 0 | AC165: 0 | AD165: 0 | AE165: 0 | AF165: 0 | AG165: 0 | AH165: 0 | AI165: 0 | AJ165: 0 | AK165: 0 | AO165: 0 | AP165: 0 | AQ165: 0 | AR165: 0 | AS165: 0 | AT165: 0 | AU165: 0 | AV165: 0 | AW165: 0
Z166: Rizzo Aquae | AA166: 0 | AC166: 0 | AD166: 0 | AE166: 0 | AF166: 0 | AG166: 0 | AH166: 0 | AI166: 0 | AJ166: 0 | AK166: 0 | AO166: 0 | AP166: 0 | AQ166: 0 | AR166: 0 | AS166: 0 | AT166: 0 | AU166: 0 | AV166: 0 | AW166: 0
Z167: RM Manfredi | AA167: 0 | AC167: 0 | AD167: 0 | AE167: 0 | AF167: 0 | AG167: 0 | AH167: 0 | AI167: 0 | AJ167: 0 | AK167: 0 | AO167: 0 | AP167: 0 | AQ167: 0 | AR167: 0 | AS167: 0 | AT167: 0 | AU167: 0 | AV167: 0 | AW167: 0
Z168: Royo | AA168: 0 | AC168: 0 | AD168: 0 | AE168: 0 | AF168: 0 | AG168: 0 | AH168: 0 | AI168: 0 | AJ168: 0 | AK168: 0 | AO168: 0 | AP168: 0 | AQ168: 0 | AR168: 0 | AS168: 0 | AT168: 0 | AU168: 0 | AV168: 0 | AW168: 0
Z169: Rubinetterie Bresciane | AA169: 0 | AC169: 0 | AD169: 0 | AE169: 0 | AF169: 0 | AG169: 0 | AH169: 0 | AI169: 0 | AJ169: 0 | AK169: 0 | AO169: 0 | AP169: 0 | AQ169: 0 | AR169: 0 | AS169: 0 | AT169: 0 | AU169: 0 | AV169: 0 | AW169: 0
Z170: Sabiana | AA170: 0 | AC170: 0 | AD170: 0 | AE170: 0 | AF170: 0 | AG170: 0 | AH170: 0 | AI170: 0 | AJ170: 0 | AK170: 0 | AO170: 0 | AP170: 0 | AQ170: 0 | AR170: 0 | AS170: 0 | AT170: 0 | AU170: 0 | AV170: 0 | AW170: 0
Z171: Samsung | AA171: 0 | AC171: 0 | AD171: 0 | AE171: 0 | AF171: 0 | AG171: 0 | AH171: 0 | AI171: 0 | AJ171: 0 | AK171: 0 | AO171: 0 | AP171: 0 | AQ171: 0 | AR171: 0 | AS171: 0 | AT171: 0 | AU171: 0 | AV171: 0 | AW171: 0
Z172: Silmet | AA172: 0 | AC172: 0 | AD172: 0 | AE172: 0 | AF172: 0 | AG172: 0 | AH172: 0 | AI172: 0 | AJ172: 0 | AK172: 0 | AO172: 0 | AP172: 0 | AQ172: 0 | AR172: 0 | AS172: 0 | AT172: 0 | AU172: 0 | AV172: 0 | AW172: 0
Z173: System Group (Rototec) | AA173: 0 | AC173: 0 | AD173: 0 | AE173: 0 | AF173: 0 | AG173: 0 | AH173: 0 | AI173: 0 | AJ173: 0 | AK173: 0 | AO173: 0 | AP173: 0 | AQ173: 0 | AR173: 0 | AS173: 0 | AT173: 0 | AU173: 0 | AV173: 0 | AW173: 0
Z174: System Group (Sa.Mi. Plastic) | AA174: 0 | AC174: 0 | AD174: 0 | AE174: 0 | AF174: 0 | AG174: 0 | AH174: 0 | AI174: 0 | AJ174: 0 | AK174: 0 | AO174: 0 | AP174: 0 | AQ174: 0 | AR174: 0 | AS174: 0 | AT174: 0 | AU174: 0 | AV174: 0 | AW174: 0
Z175: System Group (Sab) | AA175: 0 | AC175: 0 | AD175: 0 | AE175: 0 | AF175: 0 | AG175: 0 | AH175: 0 | AI175: 0 | AJ175: 0 | AK175: 0 | AO175: 0 | AP175: 0 | AQ175: 0 | AR175: 0 | AS175: 0 | AT175: 0 | AU175: 0 | AV175: 0 | AW175: 0
Z176: Tecnocontrol | AA176: 0 | AC176: 0 | AD176: 0 | AE176: 0 | AF176: 0 | AG176: 0 | AH176: 0 | AI176: 0 | AJ176: 0 | AK176: 0 | AO176: 0 | AP176: 0 | AQ176: 0 | AR176: 0 | AS176: 0 | AT176: 0 | AU176: 0 | AV176: 0 | AW176: 0
Z177: Tecnosystemi | AA177: 6390.67 | AC177: 0 | AD177: 0 | AE177: 2079.82 | AF177: 229.25 | AG177: 464.55 | AH177: 0 | AI177: 754.59 | AJ177: 0 | AK177: 0 | AO177: 778.62 | AP177: 5612.05 | AQ177: 0 | AR177: 0 | AS177: 0 | AT177: 0 | AU177: 0 | AV177: 0 | AW177: 0
Z178: Tenaris Dalmine | AA178: 0 | AC178: 0 | AD178: 0 | AE178: 0 | AF178: 0 | AG178: 0 | AH178: 0 | AI178: 0 | AJ178: 0 | AK178: 0 | AO178: 0 | AP178: 0 | AQ178: 0 | AR178: 0 | AS178: 0 | AT178: 0 | AU178: 0 | AV178: 0 | AW178: 0
Z179: Thermomat Saniline | AA179: 0 | AC179: 0 | AD179: 0 | AE179: 0 | AF179: 0 | AG179: 0 | AH179: 0 | AI179: 0 | AJ179: 0 | AK179: 0 | AO179: 0 | AP179: 0 | AQ179: 0 | AR179: 0 | AS179: 0 | AT179: 0 | AU179: 0 | AV179: 0 | AW179: 0
Z180: Tiemme Raccorderie | AA180: 11180.09 | AB180: 805.1 | AC180: 663.75 | AD180: 73.98 | AE180: 964.47 | AF180: 862.15 | AG180: 1432.67 | AH180: 138.18 | AI180: 0 | AJ180: 854.26 | AK180: 687.4 | AN180: 1570.97 | AO180: 101.5 | AP180: 1555.5 | AQ180: 881.55 | AR180: 732.92 | AS180: 1709.56 | AT180: 1836.46 | AU180: 0 | AV180: 0 | AW180: 2791.63
Z181: Unidelta | AA181: 0 | AB181: 0 | AC181: 0 | AD181: 0 | AE181: 0 | AF181: 0 | AG181: 0 | AH181: 0 | AI181: 0 | AJ181: 0 | AK181: 0 | AN181: 0 | AO181: 0 | AP181: 0 | AQ181: 0 | AR181: 0 | AS181: 0 | AT181: 0 | AU181: 0 | AV181: 0 | AW181: 0
Z182: Va-Albertoni | AA182: 0 | AC182: 0 | AD182: 0 | AE182: 0 | AF182: 0 | AG182: 0 | AH182: 0 | AI182: 0 | AJ182: 0 | AK182: 0 | AO182: 0 | AP182: 0 | AQ182: 0 | AR182: 0 | AS182: 0 | AT182: 0 | AU182: 0 | AV182: 0 | AW182: 0
Z183: Valsir | AA183: 0 | AC183: 0 | AD183: 0 | AE183: 0 | AF183: 0 | AG183: 0 | AH183: 0 | AI183: 0 | AJ183: 0 | AK183: 0 | AO183: 0 | AP183: 0 | AQ183: 0 | AR183: 0 | AS183: 0 | AT183: 0 | AU183: 0 | AV183: 0 | AW183: 0
Z184: Varem | AA184: 1861.46 | AC184: 0 | AD184: 0 | AE184: 0 | AF184: 0 | AG184: 0 | AH184: 0 | AI184: 0 | AJ184: 1056.01 | AK184: 229.26 | AO184: 0 | AP184: 0 | AQ184: 0 | AR184: 0 | AS184: 0 | AT184: 1861.46 | AU184: 0 | AV184: 0 | AW184: 0
Z185: Vortice | AA185: 0 | AC185: 0 | AD185: 0 | AE185: 0 | AF185: 0 | AG185: 0 | AH185: 0 | AI185: 0 | AJ185: 0 | AK185: 0 | AO185: 0 | AP185: 0 | AQ185: 0 | AR185: 0 | AS185: 0 | AT185: 0 | AU185: 0 | AV185: 0 | AW185: 0
Z186: Wavin | AA186: 0 | AC186: 0 | AD186: 0 | AE186: 0 | AF186: 0 | AG186: 0 | AH186: 0 | AI186: 0 | AJ186: 0 | AK186: 0 | AO186: 0 | AP186: 0 | AQ186: 0 | AR186: 0 | AS186: 0 | AT186: 0 | AU186: 0 | AV186: 0 | AW186: 0
Z187: Wilo | AA187: 0 | AC187: 0 | AD187: 0 | AE187: 0 | AF187: 0 | AG187: 0 | AH187: 0 | AI187: 0 | AJ187: 0 | AK187: 0 | AO187: 0 | AP187: 0 | AQ187: 0 | AR187: 0 | AS187: 0 | AT187: 0 | AU187: 0 | AV187: 0 | AW187: 0
Z188: Xylem | AA188: 0 | AC188: 0 | AD188: 0 | AE188: 0 | AF188: 0 | AG188: 0 | AH188: 0 | AI188: 0 | AJ188: 0 | AK188: 0 | AO188: 0 | AP188: 0 | AQ188: 0 | AR188: 0 | AS188: 0 | AT188: 0 | AU188: 0 | AV188: 0 | AW188: 0
Z189: Sctubes | AA189: 0 | AC189: 0 | AD189: 0 | AE189: 0 | AF189: 0 | AG189: 0 | AH189: 0 | AI189: 0 | AJ189: 0 | AK189: 0 | AO189: 0 | AP189: 0 | AQ189: 0 | AR189: 0 | AS189: 0 | AT189: 0 | AU189: 0 | AV189: 0 | AW189: 0
Z190: System Group Sicilia | AA190: 0 | AC190: 0 | AD190: 0 | AE190: 0 | AF190: 0 | AG190: 0 | AH190: 0 | AI190: 0 | AJ190: 0 | AK190: 0 | AO190: 0 | AP190: 0 | AQ190: 0 | AR190: 0 | AS190: 0 | AT190: 0 | AU190: 0 | AV190: 0 | AW190: 0
Y191: COICO +3 snc | AA191: 533789.92 | AB191: 26565.62 | AC191: 56824.59 | AD191: 51967.49 | AE191: 89815.81 | AF191: 53289.68 | AG191: 32817.67 | AH191: 72836.35 | AI191: 13677.69 | AJ191: 41885.71 | AK191: 84622.28 | AN191: 49294.5 | AO191: 38763.56 | AP191: 62371.96 | AQ191: 54915.07 | AR191: 35333.17 | AS191: 41631.71 | AT191: 78753.47 | AU191: 27818.48 | AV191: 43390.3 | AW191: 101517.7
Z192: Albatros | AA192: 0 | AB192: 0 | AC192: 0 | AD192: 0 | AE192: 0 | AF192: 0 | AG192: 0 | AH192: 0 | AI192: 0 | AJ192: 0 | AK192: 0 | AN192: 0 | AO192: 0 | AP192: 0 | AQ192: 0 | AR192: 0 | AS192: 0 | AT192: 0 | AU192: 0 | AV192: 0 | AW192: 0
Z193: Arbi arredobagno | AA193: 0 | AC193: 0 | AD193: 0 | AE193: 0 | AF193: 0 | AG193: 0 | AH193: 0 | AI193: 0 | AJ193: 0 | AK193: 0 | AO193: 0 | AP193: 0 | AQ193: 0 | AR193: 0 | AS193: 0 | AT193: 0 | AU193: 0 | AV193: 0 | AW193: 0
Z194: Arblu | AA194: 0 | AC194: 0 | AD194: 0 | AE194: 0 | AF194: 0 | AG194: 0 | AH194: 0 | AI194: 0 | AJ194: 0 | AK194: 0 | AO194: 0 | AP194: 0 | AQ194: 0 | AR194: 0 | AS194: 0 | AT194: 0 | AU194: 0 | AV194: 0 | AW194: 0
Z195: Ariston | AA195: 46107.88 | AB195: 1859.77 | AC195: 7215.76 | AD195: 6163.19 | AE195: 8826.62 | AF195: 4396.35 | AG195: 11552.3 | AH195: 9879.65 | AI195: 0 | AJ195: 826.34 | AK195: 11362.13 | AN195: 9736.25 | AO195: 0 | AP195: 9610.87 | AQ195: 15411.41 | AR195: 1173.47 | AS195: 1524.24 | AT195: 4043.01 | AU195: 0 | AV195: 2 | AW195: 4606.63
Z196: Arredamenti Montegrappa | AA196: 0 | AC196: 0 | AD196: 0 | AE196: 0 | AF196: 0 | AG196: 0 | AH196: 0 | AI196: 0 | AJ196: 0 | AK196: 0 | AO196: 0 | AP196: 0 | AQ196: 0 | AR196: 0 | AS196: 0 | AT196: 0 | AU196: 0 | AV196: 0 | AW196: 0
Z197: Atusa | AA197: 8109.98 | AC197: 0 | AD197: 0 | AE197: 3353.97 | AF197: 0 | AG197: 0 | AH197: 0 | AI197: 0 | AJ197: 0 | AK197: 0 | AO197: 4052.85 | AP197: 23.93 | AQ197: 0 | AR197: 0 | AS197: 0 | AT197: 0 | AU197: 0 | AV197: 3925.37 | AW197: 107.83
Z198: Bernasconi | AA198: 3428.8 | AB198: 1491.04 | AC198: 343.49 | AD198: 1800.03 | AE198: 0 | AF198: 0 | AG198: 1111.31 | AH198: 541.54 | AI198: 0 | AJ198: 1960.91 | AK198: 0 | AN198: 912.69 | AO198: 0 | AP198: 0 | AQ198: 683.19 | AR198: 0 | AS198: 571.05 | AT198: 209.12 | AU198: 0 | AV198: 1052.75 | AW198: 0
Z199: Beza | AA199: 0 | AC199: 0 | AD199: 0 | AE199: 0 | AF199: 0 | AG199: 0 | AH199: 0 | AI199: 0 | AJ199: 0 | AK199: 0 | AO199: 0 | AP199: 0 | AQ199: 0 | AR199: 0 | AS199: 0 | AT199: 0 | AU199: 0 | AV199: 0 | AW199: 0
Z200: Bmeters | AA200: 2977.19 | AC200: 1840.69 | AD200: 0 | AE200: -0.01 | AF200: 0 | AG200: 0.01 | AH200: 840 | AI200: 0 | AJ200: 0 | AK200: 0 | AN200: 64.35 | AO200: 0 | AP200: 0 | AQ200: 1578.54 | AR200: 0 | AS200: 0 | AT200: 667.15 | AU200: 0 | AV200: 667.15 | AW200: 0
Z201: Bosch | AA201: 1173.55 | AB201: 2126.18 | AC201: 345.8 | AD201: 0 | AE201: 15480.05 | AF201: 11149.45 | AG201: 0 | AH201: 5777.47 | AI201: 0 | AJ201: 1258.92 | AK201: 9880.49 | AN201: 1173.55 | AO201: 0 | AP201: 0 | AQ201: 0 | AR201: 0 | AS201: 0 | AT201: 0 | AU201: 0 | AV201: 0 | AW201: 0
Z202: Bossini | AA202: 0 | AC202: 0 | AD202: 0 | AE202: 0 | AF202: 0 | AG202: 0 | AH202: 0 | AI202: 0 | AJ202: 0 | AK202: 0 | AO202: 0 | AP202: 0 | AQ202: 0 | AR202: 0 | AS202: 0 | AT202: 0 | AU202: 0 | AV202: 0 | AW202: 0
... 923 more rows

Sheet STAGIONALITA
A1: STAGIONALITA' 2021 GRUPPO DELTA
A2: Fornitori | B2: GEN 21 | C2: FEB 21 | D2: MAR 21 | E2: APR 21 | F2: MAG 21 | G2: GIU 21 | H2: LUG 21 | I2: AGO 21 | J2: SET 21 | K2: OTT 21 | L2: NOV 21 | M2: DIC 21 | O2: Socio | P2: GEN 21 | Q2: FEB 21 | R2: MAR 21 | S2: APR 21 | T2: MAG 21 | U2: GIU 21 | V2: LUG 21 | W2: AGO 21 | X2: SET 21 | Y2: OTT 21 | Z2: NOV 21 | AA2: DIC 21 | AD2: GEN 21 | AE2: FEB 21 | AF2: MAR 21 | AG2: APR 21 | AH2: MAG 21 | AI2: GIU 21 | AJ2: LUG 21 | AK2: AGO 21 | AL2: SET 21 | AM2: OTT 21 | AN2: NOV 21 | AO2: DIC 21
A3: Albatros | B3: 0.006582473895 | C3: 0.005671219366 | D3: 0.2138982397 | E3: 0.05442869701 | F3: 0.1696970347 | G3: 0.007525890349 | H3: 0.1385428504 | I3: 0.05957460494 | J3: 0.09932674371 | K3: 0.0109993782 | L3: 0.1124702502 | M3: 0.1212826176 | O3: CALLIPO Srl | P3: 0.05023261877 | Q3: 0.09926122863 | R3: 0.06029554769 | S3: 0.1106188185 | T3: 0.06979038031 | U3: 0.09538625065 | V3: 0.1004875533 | W3: 0.02342472778 | X3: 0.08936497337 | Y3: 0.09390515963 | Z3: 0.1259938592 | AA3: 0.08123888222 | AC3: DELTA | AD3: 0.05691964938 | AE3: 0.09867268163 | AF3: 0.09638550002 | AG3: 0.09148599676 | AH3: 0.08260968324 | AI3: 0.0939396319 | AJ3: 0.08749367695 | AK3: 0.02999469754 | AL3: 0.08608224029 | AM3: 0.1063367596 | AN3: 0.1016884552 | AO3: 0.06839102746
A4: Arbi Arredobagno | B4: 0.005100171884 | C4: 0.06940178647 | D4: 0.09236664882 | E4: 0.05376313787 | F4: 0.07892586435 | G4: 0.1184028854 | H4: 0.06993716363 | I4: 0.07481191355 | J4: 0.08613936713 | K4: 0.04099861929 | L4: 0.2084307814 | M4: 0.1017216602 | O4: CASAÉ F.lli LARUFFA srl | P4: 0.06846732326 | Q4: 0.1015594214 | R4: 0.07925918275 | S4: 0.05838235869 | T4: 0.04794468325 | U4: 0.06869900461 | V4: 0.1751474035 | W4: 0.03648013922 | X4: 0.06484177362 | Y4: 0.1205726461 | Z4: 0.07444936394 | AA4: 0.1041966997 | AC4: =ACQUISTI!A5 -> CALLIPO Srl | AD4: =VLOOKUP($AC$4,$O$2:$AA$23,2,FALSE) -> 0.05023261877 | AE4: =VLOOKUP($AC$4,$O$2:$AA$23,3,FALSE) -> 0.09926122863 | AF4: =VLOOKUP($AC$4,$O$2:$AA$23,4,FALSE) -> 0.06029554769 | AG4: =VLOOKUP($AC$4,$O$2:$AA$23,5,FALSE) -> 0.1106188185 | AH4: =VLOOKUP($AC$4,$O$2:$AA$23,6,FALSE) -> 0.06979038031 | AI4: =VLOOKUP($AC$4,$O$2:$AA$23,7,FALSE) -> 0.09538625065 | AJ4: =VLOOKUP($AC$4,$O$2:$AA$23,8,FALSE) -> 0.1004875533 | AK4: =VLOOKUP($AC$4,$O$2:$AA$23,9,FALSE) -> 0.02342472778 | AL4: =VLOOKUP($AC$4,$O$2:$AA$23,10,FALSE) -> 0.08936497337 | AM4: =VLOOKUP($AC$4,$O$2:$AA$23,11,FALSE) -> 0.09390515963 | AN4: =VLOOKUP($AC$4,$O$2:$AA$23,12,FALSE) -> 0.1259938592 | AO4: =VLOOKUP($AC$4,$O$2:$AA$23,13,FALSE) -> 0.08123888222
A5: Arblu | B5: 0.04182637457 | C5: 0.06987616743 | D5: 0.1136707678 | E5: 0.1029330369 | F5: 0.07574855299 | G5: 0.1049147632 | H5: 0.1176450051 | I5: 0.02332169958 | J5: 0.1015607665 | K5: 0.07096922042 | L5: 0.08332034142 | M5: 0.09421330409 | O5: COICO +3 snc | P5: 0.04927515004 | Q5: 0.09241472198 | R5: 0.088153259 | S5: 0.1223484802 | T5: 0.07953834363 | U5: 0.06098026409 | V5: 0.1140890572 | W5: 0.01838268811 | X5: 0.07653624888 | Y5: 0.1390822455 | Z5: 0.1226091635 | AA5: 0.03659037787
A6: Ariston | B6: 0.08014351868 | C6: 0.1221844306 | D6: 0.09694702204 | E6: 0.09841197759 | F6: 0.09350379707 | G6: 0.1049548407 | H6: 0.08775993385 | I6: 0.0141492384 | J6: 0.08232210294 | K6: 0.1020744519 | L6: 0.06116577926 | M6: 0.05638290705 | O6: COLONNA SAVERIO srl | P6: 0.04031171886 | Q6: 0.09148769059 | R6: 0.08999733141 | S6: 0.0848533574 | T6: 0.053408275 | U6: 0.1039265733 | V6: 0.06701873918 | W6: 0.03443013312 | X6: 0.05821573947 | Y6: 0.1181346229 | Z6: 0.1263880004 | AA6: 0.1318278184
A7: Arredamenti Montegrappa | B7: 0.1103357095 | C7: 0.03295759674 | D7: 0.1329170782 | E7: 0.03716558225 | F7: 0.05639394476 | G7: 0.1936992976 | H7: 0.04213375595 | I7: 0.02973097888 | J7: 0.1894268788 | K7: 0.07697850284 | L7: 0.02429752291 | M7: 0.07396315163 | O7: DELIZIA ALESSANDRO srl | P7: 0.0470004903 | Q7: 0.08531278276 | R7: 0.1230429957 | S7: 0.05494853181 | T7: 0.1108882784 | U7: 0.07012004918 | V7: 0.06216099775 | W7: 0.005456262185 | X7: 0.1160519337 | Y7: 0.1820428588 | Z7: 0.04030010647 | AA7: 0.1026747129
A8: Atusa | B8: 0.05637102347 | C8: 0.06831343377 | D8: 0.08194690243 | E8: 0.05809740401 | F8: 0.06813993623 | G8: 0.117812569 | H8: 0.07708026685 | I8: 0.04832894221 | J8: 0 | K8: 0.1358761558 | L8: 0.1234171775 | M8: 0.1646161887 | O8: F.LLI CARERE Srl | P8: 0.05592701997 | Q8: 0.08048764237 | R8: 0.06162502234 | S8: 0.04559725983 | T8: 0.1092238496 | U8: 0.09754447589 | V8: 0.09990761833 | W8: 0.03701756123 | X8: 0.1009778635 | Y8: 0.1227115588 | Z8: 0.1071981724 | AA8: 0.08178195576
A9: Bernasconi | B9: 0.135486241 | C9: 0.05648410868 | D9: 0.06751345969 | E9: 0.06484408818 | F9: 0.069769753 | G9: 0.196934773 | H9: 0.1159781894 | I9: 0.02002577033 | J9: 0.1058081211 | K9: 0.06615105753 | L9: 0.05143386825 | M9: 0.04957056986 | O9: F.LLI CRUSCO srl | P9: 0.05553515119 | Q9: 0.1243594821 | R9: 0.1414176471 | S9: 0.1501514283 | T9: 0.05188138467 | U9: 0.1216590292 | V9: 0.0582534194 | W9: 0.03095301203 | X9: 0.0461809641 | Y9: 0.08640689692 | Z9: 0.07440499172 | AA9: 0.05879659323
A10: Beza | B10: 0 | C10: 0 | D10: 0 | E10: 0 | F10: 0 | G10: 0 | H10: 0 | I10: 0 | J10: 0 | K10: 0 | L10: 0 | M10: 1 | O10: F.LLI ZANGRILLO srl | P10: 0.0477431398 | Q10: 0.08134734374 | R10: 0.07029738381 | S10: 0.09704848386 | T10: 0.1098075931 | U10: 0.1192294342 | V10: 0.08546989982 | W10: 0.05001900469 | X10: 0.09476053463 | Y10: 0.09312332398 | Z10: 0.07990464797 | AA10: 0.07124921036
A11: Bmeters | B11: 0.02610242599 | C11: 0.2090633482 | D11: 0.1521970513 | E11: 0.009326455047 | F11: 0.1134017162 | G11: 0.01788872142 | H11: 0.1168370354 | I11: 0.02576674773 | J11: 0.1722385963 | K11: 0.01768752625 | L11: 0.1233700544 | M11: 0.01612032177 | O11: GIUSEPPE MIELE Srl | P11: 0.04595454452 | Q11: 0.09990769333 | R11: 0.1107780607 | S11: 0.1895277952 | T11: 0.184203052 | U11: 0.05952831547 | V11: 0.07852921737 | W11: 0.02400117685 | X11: 0.05490582536 | Y11: 0.05966377675 | Z11: 0.05390332288 | AA11: 0.03909721945
A12: Bosch | B12: 0.07276153238 | C12: 0.04981907736 | D12: 0.09487311343 | E12: 0.1085321314 | F12: 0.07178066296 | G12: 0.05610763677 | H12: 0.07491980467 | I12: 0.01327191225 | J12: 0.0995620837 | K12: 0.2257638444 | L12: 0.08055121955 | M12: 0.05205698116 | O12: IDROPLAST SRL | P12: 0.03951414584 | Q12: 0.08122434815 | R12: 0.07429067368 | S12: 0.06759605024 | T12: 0.0942638988 | U12: 0.08515042209 | V12: 0.07673608091 | W12: 0.04608460117 | X12: 0.1044142089 | Y12: 0.1297068466 | Z12: 0.112184996 | AA12: 0.08883372757
A13: Bossini | B13: 0.103298099 | C13: 0.1090835924 | D13: 0.107154173 | E13: 0.03884530852 | F13: 0.1159272477 | G13: 0.03866451185 | H13: 0.1156636395 | I13: 0.05390228905 | J13: 0.0614096585 | K13: 0.1154447161 | L13: 0.1184270896 | M13: 0.02217967485 | O13: IDROSANITARIA FORNITURE SRL | P13: 0.07441761242 | Q13: 0.1185895875 | R13: 0.08106192215 | S13: 0.07401835415 | T13: 0.09340085476 | U13: 0.1002201758 | V13: 0.09064448109 | W13: 0.03407316178 | X13: 0.06835077838 | Y13: 0.1230847458 | Z13: 0.1021574663 | AA13: 0.03998085989
A14: BT-Flex | B14: 0 | C14: 0 | D14: 0 | E14: 0 | F14: 0 | G14: 0.5089369325 | H14: 0 | I14: 0.1208315455 | J14: 0.07242981629 | K14: 0.2978017056 | L14: 0 | M14: 0 | O14: IDROSANITARIA ROMAGNOLA SRL | P14: 0.03463295228 | Q14: 0.08859080962 | R14: 0.1341865534 | S14: 0.08985805549 | T14: 0.08514780617 | U14: 0.09331424794 | V14: 0.08250370945 | W14: 0.01987353644 | X14: 0.09530110859 | Y14: 0.09120101777 | Z14: 0.1315609084 | AA14: 0.05382929438
A15: Bwt/Cillichemie | B15: 0.04933651896 | C15: 0.06435394472 | D15: 0.09950170362 | E15: 0.171345677 | F15: 0.08092080004 | G15: 0.06763974827 | H15: 0.1202402854 | I15: 0.02827192496 | J15: 0.1092085643 | K15: 0.04475907132 | L15: 0.1353351647 | M15: 0.02908659674 | O15: ITER DI RUGGERI Srl | P15: 0.05004244393 | Q15: 0.08015487443 | R15: 0.07805695547 | S15: 0.07376541405 | T15: 0.08302709903 | U15: 0.06987436694 | V15: 0.1073837728 | W15: 0.03475925875 | X15: 0.08642572085 | Y15: 0.1104762186 | Z15: 0.1227053284 | AA15: 0.1033285467
A16: Caleffi | B16: 0.06770008034 | C16: 0.08809064902 | D16: 0.07661676843 | E16: 0.07676831239 | F16: 0.07081432623 | G16: 0.09114287456 | H16: 0.09321193999 | I16: 0.03934505917 | J16: 0.07677791599 | K16: 0.1135217445 | L16: 0.09982364282 | M16: 0.1061866866 | O16: LA FENICE SRL | P16: 0.06705321188 | Q16: 0.1142497847 | R16: 0.1136405088 | S16: 0.07428398228 | T16: 0.09341156649 | U16: 0.09327172778 | V16: 0.07404553519 | W16: 0.03199973578 | X16: 0.08847453131 | Y16: 0.09905144374 | Z16: 0.09637738469 | AA16: 0.05414058739
A17: Camon | B17: 0 | C17: 0 | D17: 0 | E17: 0 | F17: 0 | G17: 0.4924252227 | H17: 0 | I17: 0 | J17: 0 | K17: 0.3336617338 | L17: 0 | M17: 0.1739130435 | O17: NIGRELLI E NIGRELLI SRL | P17: 0.04128049275 | Q17: 0.06623858774 | R17: 0.0913536391 | S17: 0.07764121171 | T17: 0.0836417849 | U17: 0.08017458278 | V17: 0.1002152786 | W17: 0.03217500355 | X17: 0.09158002201 | Y17: 0.112746904 | Z17: 0.1296671264 | AA17: 0.09328536651
A18: Carlo Nobili | B18: 0.03403715675 | C18: 0.2402683911 | D18: 0.04253650389 | E18: 0.03750803649 | F18: 0.1019612348 | G18: 0.0676545381 | H18: 0.1076635522 | I18: 0.04025425133 | J18: 0.1160590602 | K18: 0.03065686012 | L18: 0.1307224776 | M18: 0.05067793727 | O18: RAFFAELE SpA | P18: 0.07422170595 | Q18: 0.1332451634 | R18: 0.1047126228 | S18: 0.08166653106 | T18: 0.07014977978 | U18: 0.1109462912 | V18: 0.08835713245 | W18: 0.02064426472 | X18: 0.07566697568 | Y18: 0.09802960432 | Z18: 0.09421695776 | AA18: 0.04814297086
A19: Carrier | B19: 0 | C19: 0 | D19: 0 | E19: 0 | F19: 0.3070295277 | G19: 0.04340671283 | H19: 0.003236873971 | I19: 0.2074859503 | J19: 0.08668922905 | K19: 0.1410640544 | L19: 0.1340857578 | M19: 0.077001894 | O19: REGINE GIUSEPPA & C. snc | P19: 0.03725243075 | Q19: 0.101096341 | R19: 0.07200717449 | S19: 0.08910603736 | T19: 0.07995810086 | U19: 0.08437411769 | V19: 0.06166155261 | W19: 0.03774145828 | X19: 0.14093502 | Y19: 0.07149820358 | Z19: 0.1364993406 | AA19: 0.08787022273
A20: Cordivari | B20: 0.0475053856 | C20: 0.06620869753 | D20: 0.08567446119 | E20: 0.08796447648 | F20: 0.08317164181 | G20: 0.08675078605 | H20: 0.09983849264 | I20: 0.04575586945 | J20: 0.07968456465 | K20: 0.1004302527 | L20: 0.1336746896 | M20: 0.08334068225 | O20: REGINE Srl | P20: 0.09042079117 | Q20: 0.06342221505 | R20: 0.0871269379 | S20: 0.0581952612 | T20: 0.06033793304 | U20: 0.152994151 | V20: 0.1352401777 | W20: 0.03186889246 | X20: 0.1559832274 | Y20: 0.01901652509 | Z20: 0.05525678297 | AA20: 0.09013710505
A21: Cuprumfoma | B21: 0.1578545181 | C21: 0.1981138467 | D21: 0.2543340817 | E21: 0.07718871633 | F21: 0 | G21: 0.07424023245 | H21: 0.2382686048 | I21: 0 | J21: 0 | K21: 0 | L21: 0 | M21: 0 | O21: TERMOIDRAULICA LAFENICE SRL | P21: 0.03860681561 | Q21: 0.0865156935 | R21: 0.08716732906 | S21: 0.100472572 | T21: 0.07026683088 | U21: 0.06727035229 | V21: 0.08747125983 | W21: 0.03790227947 | X21: 0.1273727307 | Y21: 0.1111777206 | Z21: 0.112799698 | AA21: 0.07297671808
A22: Dab Pumps | B22: 0.06209012467 | C22: 0.107318707 | D22: 0.08487728873 | E22: 0.1066509019 | F22: 0.04488877784 | G22: 0.1514567279 | H22: 0.07016487084 | I22: 0.04321769128 | J22: 0.03245245491 | K22: 0.08395091942 | L22: 0.08307713645 | M22: 0.129854399 | O22: VEMIT PUNTO CLIMA Srl | P22: 0.06681363651 | Q22: 0.1031750118 | R22: 0.06523147328 | S22: 0.1140315049 | T22: 0.07579349306 | U22: 0.09714692447 | V22: 0.1046983441 | W22: 0.0219546464 | X22: 0.0933385903 | Y22: 0.122706402 | Z22: 0.08800295722 | AA22: 0.04710701592
A23: Ebara | B23: 0 | C23: 0.1818590768 | D23: 0.1134099933 | E23: 0.08544619085 | F23: 0.05495669659 | G23: 0.1266617818 | H23: 0.1378813544 | I23: 0.02879100068 | J23: 0.06233494038 | K23: 0.0803248792 | L23: 0.08579176202 | M23: 0.04254232395 | O23: VIRLINZI SPA | P23: 0.03821861722 | Q23: 0.09296336017 | R23: 0.09748289875 | S23: 0.1256710752 | T23: 0.1000783318 | U23: 0.1097621605 | V23: 0.0836061422 | W23: 0.03095264552 | X23: 0.08390993862 | Y23: 0.07111612187 | Z23: 0.09340846727 | AA23: 0.07283024097
A24: Effebi | B24: 0 | C24: 0.2189055528 | D24: 0.08995592127 | E24: 0.02086672237 | F24: 0.04774006849 | G24: 0.1989987121 | H24: 0.1292574042 | I24: 0.01425338007 | J24: 0.05426091349 | K24: 0.09351642363 | L24: 0.06323508228 | M24: 0.06900981918
A25: Enolgas | B25: 0.0619567921 | C25: 0.04848861329 | D25: 0.1468363682 | E25: 0.07259984605 | F25: 0.07901534713 | G25: 0.07017105214 | H25: 0.08155534768 | I25: 0.04310872833 | J25: 0.1401056796 | K25: 0.1026548189 | L25: 0.09028891214 | M25: 0.06321849439
A26: Ercos | B26: 0.06456024497 | C26: 0.08285600052 | D26: 0.117799045 | E26: 0.1358038497 | F26: 0.09361979546 | G26: 0.07199014129 | H26: 0.1105248804 | I26: 0 | J26: 0.1299446787 | K26: 0.07863968731 | L26: 0.08082281631 | M26: 0.03343886032
A27: Euroacque | B27: 0 | C27: 0.2054813858 | D27: 0.0542404404 | E27: 0.08274547294 | F27: 0.08738261894 | G27: 0.03416196583 | H27: 0.08084645746 | I27: 0.04793223905 | J27: 0.09586121687 | K27: 0.1556742178 | L27: 0.08489872477 | M27: 0.07077526011
A28: Eurocornici | B28: 0 | C28: 0.1657223894 | D28: 0.09613388305 | E28: -1.598725089e-05 | F28: 0.03039176395 | G28: 0.1994485852 | H28: 0.1900302777 | I28: 0.04527262441 | J28: 0.0968155213 | K28: 0.06502014939 | L28: 0.06504740038 | M28: 0.04613339253
A29: Farg | B29: 0.01024930612 | C29: 0.09570870423 | D29: 0.07448617112 | E29: 0.09443178241 | F29: 0.1353232861 | G29: 0.1308583363 | H29: 0.07950973045 | I29: 0 | J29: 0.1526886937 | K29: 0.1136732429 | L29: 0.0295203516 | M29: 0.08355039509
A30: Ferrari | B30: 0.1020151274 | C30: 0.07728175565 | D30: 0.0938805758 | E30: 0.0793499407 | F30: 0.0524923533 | G30: 0.08741817566 | H30: 0.1240236145 | I30: 0.0225869348 | J30: 0.08775887305 | K30: 0.1169525161 | L30: 0.07244919106 | M30: 0.08379094201
A31: Ferroli | B31: 0.09027168964 | C31: 0.06322876654 | D31: 0.01387360953 | E31: 0.01838018031 | F31: 0.1106844118 | G31: 0.1064229498 | H31: 0 | I31: 0.07788536291 | J31: 0.06685486229 | K31: 0.1408160554 | L31: 0.1955931949 | M31: 0.1159889169
A32: Fima Carlo Frattini | B32: 0.08033524366 | C32: 0.1118468981 | D32: 0.05467678533 | E32: 0.05816924627 | F32: 0.01832724096 | G32: 0.1679488653 | H32: 0.0708402042 | I32: 0.04066126265 | J32: 0.09124348968 | K32: 0.1543598848 | L32: 0.122101442 | M32: 0.029489437
A33: Fimi | B33: 0.04318538269 | C33: 0.07305749211 | D33: 0.1093257278 | E33: 0.07292164732 | F33: 0.06241673639 | G33: 0.09305682619 | H33: 0.1121353001 | I33: 0.04278428486 | J33: 0.1204093947 | K33: 0.1227359363 | L33: 0.05487945578 | M33: 0.09309181578
A34: First Corporation | B34: 0 | C34: 0.1683333438 | D34: 0.1064636299 | E34: 0.1350706174 | F34: 0.1785735441 | G34: 0.0527122176 | H34: 0.06656969505 | I34: 0.03865481273 | J34: 0.0783086574 | K34: 0.07552488733 | L34: 0.03346744833 | M34: 0.06632114635
A35: Fluidmaster | B35: 0.1098977425 | C35: 0.06261267565 | D35: 0.08338067139 | E35: 0.09710399057 | F35: 0.02415510502 | G35: 0.2069597088 | H35: 0.01963567618 | I35: 0.009359584275 | J35: 0.09877255683 | K35: 0.1957750618 | L35: 0.05852764312 | M35: 0.03381958385
A36: Galassia | B36: 0.0610254791 | C36: 0.1600110029 | D36: 0.09114401223 | E36: 0.06924085722 | F36: 0.1169001234 | G36: 0.08305842197 | H36: 0.095986843 | I36: 0.02081061239 | J36: 0.07672012506 | K36: 0.08576459581 | L36: 0.09639751505 | M36: 0.04294041187
A37: Galletti | B37: 0 | C37: 0.1604669085 | D37: 0.02130701772 | E37: 0.3647004481 | F37: 0.01657234164 | G37: 0.01308206407 | H37: 0.06745512913 | I37: 0.00828164468 | J37: 0.062932892 | K37: 0.06641597651 | L37: 0.1332956612 | M37: 0.08548991639
A38: GBD | B38: 0.05002101468 | C38: 0.08417219575 | D38: 0.08295564621 | E38: 0.1186854186 | F38: 0.03792003514 | G38: 0.1327752926 | H38: 0.05158334286 | I38: 0.03787423896 | J38: 0.07755480444 | K38: 0.1171502488 | L38: 0.1284634387 | M38: 0.0808443233
A39: Geberit | B39: 0.06957331868 | C39: 0.1045292742 | D39: 0.1081311069 | E39: 0.07772513597 | F39: 0.07712464331 | G39: 0.09678936839 | H39: 0.08684301175 | I39: 0.04242528304 | J39: 0.07090372642 | K39: 0.1036752667 | L39: 0.111092206 | M39: 0.05118765865
A40: General d'aspirazione | B40: 0.01372712037 | C40: 0.07054437537 | D40: 0.04565402132 | E40: 0.2028943373 | F40: 0.06278036344 | G40: 0.02901440986 | H40: 0.1197021998 | I40: 0.01482818407 | J40: 0.05325425495 | K40: 0.07553994217 | L40: 0.1852424576 | M40: 0.1268183337
A41: General Fittings | B41: 0 | C41: 0.312694465 | D41: 0.05292193294 | E41: 0.07341006219 | F41: 0.1072534762 | G41: 0.07946025282 | H41: 0 | I41: 0.08513264062 | J41: 0.1298704317 | K41: 0.08473858091 | L41: 0.03189446062 | M41: 0.04262369704
A42: Giacomini | B42: 0.09229624506 | C42: 0.07050592306 | D42: 0.1435148684 | E42: 0.06895986 | F42: 0.07225212782 | G42: 0.09939236921 | H42: 0.09746049896 | I42: 0.02816741251 | J42: 0.05923986851 | K42: 0.1063215951 | L42: 0.09186938031 | M42: 0.07001985104
A43: Giuseppe Tirinnanzi | B43: 0.09752921766 | C43: 0.06115375741 | D43: 0.1290917038 | E43: 0.06261886419 | F43: 0.06766498109 | G43: 0.09286057001 | H43: 0.1133043063 | I43: 0.0527828823 | J43: 0.08962710191 | K43: 0.07828094138 | L43: 0.1002597756 | M43: 0.05482589835
A44: Global | B44: 0.1277982223 | C44: 0.08595216897 | D44: 0.1139585919 | E44: 0.08951167269 | F44: 0.04371371598 | G44: 0.09782091851 | H44: 0.01730723566 | I44: 0.01212693715 | J44: 0.07666472683 | K44: 0.05809119658 | L44: 0.2159887213 | M44: 0.0610658921
A45: Grantour | B45: 0.09631258661 | C45: 0.1379466169 | D45: 0.1649996987 | E45: 0.1539434838 | F45: 0.08429234199 | G45: 0.08173163825 | H45: 0.07603783816 | I45: 0.06880761583 | J45: 0.04817135627 | K45: 0.0367837561 | L45: 0.03455443755 | M45: 0.01641862987
A46: Griffon - Bostik | B46: 0 | C46: 0 | D46: 0 | E46: 0.6234057982 | F46: 0.0422618776 | G46: 0.02396056775 | H46: 0 | I46: 0 | J46: 0.2284164727 | K46: 0 | L46: 0 | M46: 0.08195528375
A47: Grohe | B47: 0.05059177308 | C47: 0.1043983476 | D47: 0.05377349429 | E47: 0.05182175793 | F47: 0.02931213293 | G47: 0.1005189333 | H47: 0.04449297288 | I47: 0.02024813696 | J47: 0.07750188693 | K47: 0.2514308874 | L47: 0.0747501191 | M47: 0.1411595575
A48: Gruppo Salteco | B48: 0.07282602348 | C48: 0.09098872861 | D48: 0.1029609297 | E48: 0.07933773287 | F48: 0.08567423933 | G48: 0.1196636103 | H48: 0.07224201367 | I48: 0.04572796823 | J48: 0.1175903755 | K48: 0.1032821351 | L48: 0.05699935759 | M48: 0.05270688548
A49: Haier | B49: 0 | C49: 0.08855829203 | D49: 0.1380705098 | E49: 0.1555339344 | F49: 0.2440493367 | G49: 0.03209106912 | H49: 0.1872539316 | I49: 0.07760260331 | J49: 0.02026471214 | K49: -0.005950885001 | L49: 0.04757234876 | M49: 0.01495414725
A50: Ibp Banninger | B50: 0.09508425099 | C50: 0.06961318888 | D50: 0.09810957323 | E50: 0.1265756622 | F50: 0.08442606313 | G50: 0.08596620319 | H50: 0.1035509489 | I50: 0.03131406678 | J50: 0.09961179336 | K50: 0.08027377448 | L50: 0.07595148686 | M50: 0.04952298792
A51: Ideal Standard | B51: 0 | C51: 0.2240585745 | D51: 0.01125534788 | E51: 0.07285028844 | F51: 0.08581449762 | G51: 0.07527183234 | H51: 0.09222663216 | I51: 0.03070426058 | J51: 0.132642028 | K51: 0.102367883 | L51: 0.0781365492 | M51: 0.09467210624
A52: Immergas | B52: 0.0428275254 | C52: 0.07993986397 | D52: 0.1030290322 | E52: 0.06253384463 | F52: 0.05689887985 | G52: 0.09499958341 | H52: 0.04998152559 | I52: 0.01199689428 | J52: 0.1069580906 | K52: 0.1237846948 | L52: 0.1797025726 | M52: 0.08734749264
A53: Isoclima | B53: 0 | C53: 0 | D53: 0.0735828425 | E53: 0.04191012182 | F53: 0.08294933822 | G53: 0.07049126497 | H53: 0.1075878228 | I53: 0.04032815256 | J53: 0.1782924713 | K53: 0.06260932561 | L53: 0.1238561776 | M53: 0.2183924826
A54: Italkero | B54: 0 | C54: 0.2500984837 | D54: 0.25831241 | E54: 0 | F54: 0.02122824318 | G54: 0.01248573794 | H54: 0.004169499226 | I54: 0.03184236477 | J54: 0.2505273028 | K54: 0.07940383946 | L54: 0.08948597872 | M54: 0.002446140246
A55: Itap | B55: 0.06440933563 | C55: 0.07056745451 | D55: 0.1552393081 | E55: 0.04965751277 | F55: 0.1418048045 | G55: 0.0747981004 | H55: 0.04376737789 | I55: 0 | J55: 0.09232619495 | K55: 0.133554173 | L55: 0.09129239959 | M55: 0.08258333869
A56: Kinedo | B56: 0 | C56: 0 | D56: 0 | E56: 0 | F56: 0.4567167691 | G56: 0.1407925446 | H56: 0.06203090661 | I56: -0.0001064197419 | J56: 0.1554012663 | K56: 0.04151085849 | L56: 0.098322167 | M56: 0.0453319077
A57: LG | B57: 0 | C57: 0.1951590577 | D57: 0.03628905556 | E57: 0.06567754705 | F57: 0.02394158756 | G57: 0.06489151114 | H57: 0.1622672529 | I57: 0.09713073296 | J57: 0.1019823523 | K57: 0.06682665466 | L57: 0.08188587406 | M57: 0.103948374
A58: L'isolante K-Flex | B58: 0.03240900725 | C58: 0.06755411242 | D58: 0.1070621062 | E58: 0.08502915926 | F58: 0.06800180087 | G58: 0.121620247 | H58: 0.1004376808 | I58: 0.03467327109 | J58: 0.09869541713 | K58: 0.1717690224 | L58: 0.06429112839 | M58: 0.04845704718
A59: Megius | B59: 0 | C59: 0.1110889064 | D59: 0.04677615303 | E59: 0.03395478707 | F59: 0.1013256431 | G59: 0.1052641726 | H59: 0.07580591251 | I59: 0.01770645268 | J59: 0.1336207418 | K59: 0.1217368116 | L59: 0.1495357288 | M59: 0.1031846904
A60: Mut Meccanica Tovo | B60: 0.1476254934 | C60: 0.026293624 | D60: 0.1139793131 | E60: 0.1290836807 | F60: 0.07850905124 | G60: 0.009152705877 | H60: 0.0457429051 | I60: 0 | J60: 0.016712867 | K60: 0.1277845455 | L60: 0.1693642643 | M60: 0.1357515498
A61: Negrari | B61: 0.08248332188 | C61: 0.09431368255 | D61: 0.07186266991 | E61: 0.07752468334 | F61: 0.01661667407 | G61: 0.1733453526 | H61: 0.1018980481 | I61: 0.03091382439 | J61: 0.1959117064 | K61: 0.0742402075 | L61: 0.03143045651 | M61: 0.04945937281
A62: Neoperl | B62: 0.07871819542 | C62: 0.09699601542 | D62: 0.0670751203 | E62: 0.106479561 | F62: 0.105236203 | G62: 0.08911721211 | H62: 0.07947141237 | I62: 0.04474547851 | J62: 0.08946586491 | K62: 0.1084236444 | L62: 0.08192009877 | M62: 0.05235119382
A63: Novellini | B63: 0.06218632338 | C63: 0.07375811755 | D63: 0.07050084488 | E63: 0.1067607889 | F63: 0.08361724266 | G63: 0.1193706625 | H63: 0.1142179873 | I63: 0.03189256992 | J63: 0.06762384749 | K63: 0.09546102662 | L63: 0.1171992035 | M63: 0.05741138526
A64: Olimpia Splendid | B64: 0.03899415507 | C64: 0.05808897859 | D64: 0.09406797743 | E64: 0.06051999202 | F64: 0.08350443704 | G64: 0.04154409579 | H64: 0.1095250254 | I64: 0.004228914019 | J64: 0.1631997034 | K64: 0.1178114583 | L64: 0.1645114013 | M64: 0.06400386164
A65: Omp Tea | B65: 0.08204611422 | C65: 0.0821027945 | D65: 0.1262569247 | E65: 0.06603879282 | F65: 0.09516799359 | G65: 0.09849848806 | H65: 0.09460204966 | I65: 0.04173567281 | J65: 0.09101008605 | K65: 0.1206233152 | L65: 0.06658178058 | M65: 0.03533598784
A66: Paini | B66: 0.01580087794 | C66: 0.4945584044 | D66: 0.1195706787 | E66: 0.02936085729 | F66: 0.04256822273 | G66: 0.03715379897 | H66: 0.04932866744 | I66: 0 | J66: 0.04806857056 | K66: 0.05370911914 | L66: 0.07217666071 | M66: 0.03770414218
A67: Panasonic | B67: 0.04036159684 | C67: 0.08049894378 | D67: 0.06601434959 | E67: 0.09242446785 | F67: 0.1174997687 | G67: 0.1524351038 | H67: 0.1651497513 | I67: 0.02810425877 | J67: 0.06580450239 | K67: 0.06235263347 | L67: 0.02736357639 | M67: 0.1019910472
A68: Planus | B68: 0 | C68: 0 | D68: 0.5 | E68: 0 | F68: 0 | G68: 0 | H68: 0 | I68: 0 | J68: 0 | K68: 0 | L68: 0 | M68: 0.5
A69: Polieco | B69: 0.02545668811 | C69: 0.1010215709 | D69: 0.08573809445 | E69: 0.08874640109 | F69: 0.1234002418 | G69: 0.137861209 | H69: 0.1330330077 | I69: 0.01734969069 | J69: 0.08254640324 | K69: 0.03111224151 | L69: 0.1170327653 | M69: 0.05670168627
A70: Raccorderie Metalliche | B70: 0.07498345988 | C70: 0.06092866996 | D70: 0.119723913 | E70: 0.09378281617 | F70: 0.08796945483 | G70: 0.1241083993 | H70: 0.1151224541 | I70: 0.03430628425 | J70: 0.05978071603 | K70: 0.1008187049 | L70: 0.0702516683 | M70: 0.05822345938
A71: Rainbox | B71: 0.07677847329 | C71: 0.0656421007 | D71: 0.08042990433 | E71: 0.1154777371 | F71: 0.1477550096 | G71: 0.08000669265 | H71: 0.1866166686 | I71: 0.04994882091 | J71: 0.06842742412 | K71: 0.05486988701 | L71: 0.0529113027 | M71: 0.0211359789
A72: Rems | B72: 0.06132829531 | C72: 0.08955246713 | D72: 0.08816802943 | E72: 0.0870283542 | F72: 0.1031520816 | G72: 0.06430368903 | H72: 0.08073336954 | I72: 0.01219223032 | J72: 0.07544803004 | K72: 0.1285691339 | L72: 0.1379542447 | M72: 0.07157007473
A73: River | B73: 0.09511757836 | C73: 0.04715012036 | D73: 0.09696973689 | E73: 0.04679152517 | F73: 0.1311418817 | G73: 0.07117476256 | H73: 0.1071532637 | I73: 0.03040442517 | J73: 0.1655767974 | K73: 0.08148725603 | L73: 0.09681020115 | M73: 0.0302224515
A74: Rizzo Aquae | B74: 0 | C74: 0.06190413547 | D74: 0.07251368339 | E74: 0.151686755 | F74: 0.04625006733 | G74: 0.1084882598 | H74: 0.03417636554 | I74: 0.01243002929 | J74: 0.1306660217 | K74: 0.106014684 | L74: 0.05943832841 | M74: 0.2164316701
A75: RM Manfredi | B75: 0.09949038791 | C75: 0.08979053838 | D75: 0.07197148301 | E75: 0.1080559801 | F75: 0.04536733753 | G75: 0.2016382157 | H75: 0.1058493609 | I75: 0.03027519274 | J75: 0.1076299176 | K75: 0.0271429131 | L75: 0.05342889746 | M75: 0.05935977557
A76: Royo | B76: 0 | C76: 0 | D76: 0 | E76: 0 | F76: 0.4746140853 | G76: 0.06218894238 | H76: 0.1368502979 | I76: 0.05442398075 | J76: 0.07339228562 | K76: 0.07566547136 | L76: 0.03491824058 | M76: 0.08794669605
A77: Rubinetterie Bresciane | B77: 0.05526834881 | C77: 0.07275031661 | D77: 0.1407805817 | E77: 0.08380305009 | F77: 0.07286421295 | G77: 0.1114529119 | H77: 0.08835903774 | I77: 0.02151103566 | J77: 0.08245196133 | K77: 0.09318559459 | L77: 0.1097537626 | M77: 0.067819186
A78: Sabiana | B78: 0 | C78: 0 | D78: 0 | E78: 0.3325221034 | F78: 0.05114270506 | G78: 0.08287308951 | H78: 0.1015837112 | I78: 0.03206045416 | J78: 0.1629263961 | K78: 0.1169295467 | L78: 0.06416369817 | M78: 0.05579829569
A79: Samsung | B79: 0.01714613566 | C79: 0.1743991767 | D79: 0.1575677515 | E79: 0.1213703246 | F79: 0.09983481841 | G79: 0.110297426 | H79: 0.04557811822 | I79: 0.02630843565 | J79: 0.01282864329 | K79: 0.1185204388 | L79: 0.06329042795 | M79: 0.05285830316
A80: Silmet | B80: 0 | C80: 0.2086060255 | D80: 0.08149003175 | E80: 0.1499642862 | F80: 0.004723281882 | G80: 0.05984740976 | H80: 0.04615900231 | I80: 0 | J80: 0.1995811615 | K80: 0.1200944587 | L80: 0.1295343424 | M80: 0
A81: System Group (Italiana Corrugati) | B81: 0 | C81: 0 | D81: 0 | E81: 0 | F81: 0 | G81: 0.1732692557 | H81: 0.4079750617 | I81: 0 | J81: 0 | K81: 0 | L81: 0.4187556826 | M81: 0
A82: System Group (Rototec) | B82: 0.06568228189 | C82: 0 | D82: 0.1110455727 | E82: 0.1195802228 | F82: 0.1213952006 | G82: 0.2087467743 | H82: 0.1192246495 | I82: 0.04418873152 | J82: 0.07872886697 | K82: 0.0235097049 | L82: 0.09207271752 | M82: 0.01582527722
A83: System Group (Sa.Mi. Plastic) | B83: 0.1020069444 | C83: 0.1300742208 | D83: 0.06836856411 | E83: 0.1074063821 | F83: 0.07323709385 | G83: 0.05821464569 | H83: 0.06145678873 | I83: 0.01838322516 | J83: 0.1412281386 | K83: 0.08039253933 | L83: 0.09813614903 | M83: 0.06109530828
A84: System Group (Sab) | B84: 0.0238278989 | C84: 0.2694867837 | D84: 0.04980223809 | E84: 0.2864533089 | F84: 0.03200366583 | G84: 0.06153530774 | H84: 0.08893256801 | I84: 0.02060823847 | J84: 0.05163515339 | K84: 0.0568203743 | L84: 0.0276746093 | M84: 0.03121985337
A85: TECNOCONTROL | B85: 0.0171511104 | C85: 0.2716999765 | D85: 0.08136679546 | E85: 0.03203081215 | F85: 0.05232337946 | G85: 0.07718690977 | H85: 0.06340785364 | I85: 0 | J85: 0.159807424 | K85: 0.1120811782 | L85: 0.06085054378 | M85: 0.07209401657
A86: Tecnosystemi | B86: 0.05950778305 | C86: 0.06942872833 | D86: 0.1126149952 | E86: 0.0699525232 | F86: 0.1469134771 | G86: 0.05537516549 | H86: 0.09627329207 | I86: 0.05362333029 | J86: 0.1038529286 | K86: 0.08749670126 | L86: 0.1050317573 | M86: 0.03992931814
A87: Tenaris Dalmine | B87: 0.03321691831 | C87: 0.04633361235 | D87: 0.09830719754 | E87: 0.1577885671 | F87: 0.1104488256 | G87: 0.07814656368 | H87: 0.09126402973 | I87: 0.001958806831 | J87: 0.08513295846 | K87: 0.09146388828 | L87: 0.1649114955 | M87: 0.04102713665
A88: Thermomat Saniline | B88: 0.06999120342 | C88: 0.08669692275 | D88: 0.1441938673 | E88: 0.1448399879 | F88: 0.07863987731 | G88: 0.04274515604 | H88: 0.1045469761 | I88: 0.01335056321 | J88: 0.1237281934 | K88: 0.06314855323 | L88: 0.0556597825 | M88: 0.07245891685
A89: Tiemme Raccorderie | B89: 0.0666111127 | C89: 0.1124799893 | D89: 0.07677224552 | E89: 0.07219169105 | F89: 0.1064159417 | G89: 0.03700689464 | H89: 0.08709234023 | I89: 0.02543089608 | J89: 0.1082839346 | K89: 0.1204917256 | L89: 0.1104422525 | M89: 0.07678097602
A90: Unidelta | B90: 0 | C90: 0.2006776526 | D90: 0.09830994252 | E90: 0.1213102786 | F90: 0.08852666619 | G90: 0.1046641197 | H90: 0.0939315871 | I90: 0.0259806627 | J90: 0.05663197871 | K90: 0.09395716571 | L90: 0.09690803612 | M90: 0.01910191011
A91: Va-Albertoni | B91: 0.079097176 | C91: 0.1055994013 | D91: 0.0762983228 | E91: 0.1506466135 | F91: 0.1050521756 | G91: 0.06528949358 | H91: 0.09149047134 | I91: 0.0966603874 | J91: 0.0668685454 | K91: 0.08971956745 | L91: 0.02142127686 | M91: 0.05185656881
A92: Valsir | B92: 0.1017844489 | C92: 0.08690584841 | D92: 0.1306495409 | E92: 0.07340575985 | F92: 0.08568021657 | G92: 0.09179245847 | H92: 0.09549304485 | I92: 0.01238513746 | J92: 0.08849609739 | K92: 0.1057993093 | L92: 0.06573547372 | M92: 0.06187266417
A93: Varem | B93: 0.07869520086 | C93: 0.04224788557 | D93: 0.182857471 | E93: 0.09946439394 | F93: 0.08492320329 | G93: 0.07563668086 | H93: 0.041101384 | I93: 0.06234387919 | J93: 0.08988623424 | K93: 0.07794296648 | L93: 0.09536645728 | M93: 0.06953424333
A94: Vortice | B94: 0.1650180584 | C94: 0.1008618732 | D94: -0.003704967005 | E94: 0.2241330288 | F94: 0.01331833022 | G94: 0.04468966992 | H94: 0.1494043252 | I94: 0 | J94: 0.07622800775 | K94: 0.03815269856 | L94: 0.1346618465 | M94: 0.0572371284
A95: Wavin | B95: 0.0594695455 | C95: 0.1056134413 | D95: 0.09846236436 | E95: 0.173546865 | F95: 0.09052170217 | G95: 0.06951629059 | H95: 0.04126630835 | I95: 0.04554408742 | J95: 0.07723980378 | K95: 0.08567977264 | L95: 0.08932656505 | M95: 0.06381325389
A96: Wilo | B96: 0.04857742647 | C96: 0.1174745011 | D96: 0.0329236074 | E96: 0.1459197994 | F96: 0.1827138392 | G96: 0.07803853264 | H96: 0.02529173004 | I96: 0.006090948582 | J96: 0.01971843088 | K96: 0.03337352547 | L96: 0.2764449293 | M96: 0.03343272949
A97: Xylem | B97: 0 | C97: 0 | D97: 0 | E97: 0 | F97: 0 | G97: 0.4556213949 | H97: 0.08805568762 | I97: 0.06149854253 | J97: 0.1353396261 | K97: 0.0562454091 | L97: 0.1269345597 | M97: 0.07630477997

Sheet BUDGET
A2: BUDGET MENSILE DEGLI ACQUISTI | O2: BUDGET ANNUALE DEGLI ACQUISTI
A3: FORNITORE | B3: GEN 22 | C3: FEB 22 | D3: MAR 22 | E3: APR 22 | F3: MAG 22 | G3: GIU 22 | H3: LUG 22 | I3: AGO 22 | J3: SET 22 | K3: OTT 22 | L3: NOV 22 | M3: DIC 22 | O3: FORNITORE | P3: BUDGET 2022 | U3: GEN-MAR | V3: APR-GIU | W3: LUG-SET | X3: OTT-DIC
A4: =IF(O4=0,"",O4) -> Immergas | B4: =IFERROR(VLOOKUP(A4,STAGIONALITA!$A$3:$M$106,2,FALSE)*P4,"") -> 5781.715929 | C4: =IFERROR(VLOOKUP(A4,STAGIONALITA!$A$3:$M$106,3,FALSE)*P4,"") -> 10791.88164 | D4: =IFERROR(VLOOKUP(A4,STAGIONALITA!$A$3:$M$106,4,FALSE)*P4,"") -> 13908.91935 | E4: =IFERROR(VLOOKUP(A4,STAGIONALITA!$A$3:$M$106,5,FALSE)*P4,"") -> 8442.069025 | F4: =IFERROR(VLOOKUP(A4,STAGIONALITA!$A$3:$M$106,6,FALSE)*P4,"") -> 7681.34878 | G4: =IFERROR(VLOOKUP(A4,STAGIONALITA!$A$3:$M$106,7,FALSE)*P4,"") -> 12824.94376 | H4: =IFERROR(VLOOKUP(A4,STAGIONALITA!$A$3:$M$106,8,FALSE)*P4,"") -> 6747.505955 | I4: =IFERROR(VLOOKUP(A4,STAGIONALITA!$A$3:$M$106,9,FALSE)*P4,"") -> 1619.580728 | J4: =IFERROR(VLOOKUP(A4,STAGIONALITA!$A$3:$M$106,10,FALSE)*P4,"") -> 14439.34223 | K4: =IFERROR(VLOOKUP(A4,STAGIONALITA!$A$3:$M$106,11,FALSE)*P4,"") -> 16710.93379 | L4: =IFERROR(VLOOKUP(A4,STAGIONALITA!$A$3:$M$106,12,FALSE)*P4,"") -> 24259.8473 | M4: =IFERROR(VLOOKUP(A4,STAGIONALITA!$A$3:$M$106,13,FALSE)*P4,"") -> 11791.91151 | O4: Immergas | P4: 135000 | T4: ACQUISTI | U4: =GETPIVOTDATA("GEN 22 ",ACQUISTI!$I$4,"SOCIO","CALLIPO Srl")+GETPIVOTDATA("FEB 22 ",ACQUISTI!$I$4,"SOCIO","CALLIPO Srl")+GETPIVOTDATA("MAR 22 ",ACQUISTI!$I$4,"SOCIO","CALLIPO Srl") -> 214085.74 | V4: =U4+GETPIVOTDATA("APR 22 ",ACQUISTI!$I$4,"SOCIO","CALLIPO Srl")+GETPIVOTDATA("MAG 22 ",ACQUISTI!$I$4,"SOCIO","CALLIPO Srl")+GETPIVOTDATA("GIU 22 ",ACQUISTI!$I$4,"SOCIO","CALLIPO Srl") -> 412811.094 | W4: =V4+GETPIVOTDATA("LUG 22 ",ACQUISTI!$I$4,"SOCIO","CALLIPO Srl")+GETPIVOTDATA("AGO 22 ",ACQUISTI!$I$4,"SOCIO","CALLIPO Srl")+GETPIVOTDATA("SET 22 ",ACQUISTI!$I$4,"SOCIO","CALLIPO Srl") -> 524080.924 | X4: =W4+GETPIVOTDATA("OTT 22 ",ACQUISTI!$I$4,"SOCIO","CALLIPO Srl")+GETPIVOTDATA("NOV 22 ",ACQUISTI!$I$4,"SOCIO","CALLIPO Srl")+GETPIVOTDATA("DIC 22 ",ACQUISTI!$I$4,"SOCIO","CALLIPO Srl") -> 
A5: Tiemme Raccorderie | B5: =IFERROR(VLOOKUP(A5,STAGIONALITA!$A$3:$M$106,2,FALSE)*P5,"") -> 3996.666762 | C5: =IFERROR(VLOOKUP(A5,STAGIONALITA!$A$3:$M$106,3,FALSE)*P5,"") -> 6748.799359 | D5: =IFERROR(VLOOKUP(A5,STAGIONALITA!$A$3:$M$106,4,FALSE)*P5,"") -> 4606.334731 | E5: =IFERROR(VLOOKUP(A5,STAGIONALITA!$A$3:$M$106,5,FALSE)*P5,"") -> 4331.501463 | F5: =IFERROR(VLOOKUP(A5,STAGIONALITA!$A$3:$M$106,6,FALSE)*P5,"") -> 6384.9565 | G5: =IFERROR(VLOOKUP(A5,STAGIONALITA!$A$3:$M$106,7,FALSE)*P5,"") -> 2220.413678 | H5: =IFERROR(VLOOKUP(A5,STAGIONALITA!$A$3:$M$106,8,FALSE)*P5,"") -> 5225.540414 | I5: =IFERROR(VLOOKUP(A5,STAGIONALITA!$A$3:$M$106,9,FALSE)*P5,"") -> 1525.853765 | J5: =IFERROR(VLOOKUP(A5,STAGIONALITA!$A$3:$M$106,10,FALSE)*P5,"") -> 6497.036079 | K5: =IFERROR(VLOOKUP(A5,STAGIONALITA!$A$3:$M$106,11,FALSE)*P5,"") -> 7229.503536 | L5: =IFERROR(VLOOKUP(A5,STAGIONALITA!$A$3:$M$106,12,FALSE)*P5,"") -> 6626.535152 | M5: =IFERROR(VLOOKUP(A5,STAGIONALITA!$A$3:$M$106,13,FALSE)*P5,"") -> 4606.858561 | O5: Tiemme Raccorderie | P5: 60000 | T5: BUDGET | U5: =SUM(B4:D110) -> 118679.0552 | V5: =U5+SUM(E4:G110) -> 253073.3387 | W5: =V5+SUM(H4:J110) -> 355741.6587 | X5: =W5+SUM(K4:M110) -> 494500
A6: Haier | B6: =IFERROR(VLOOKUP(A6,STAGIONALITA!$A$3:$M$106,2,FALSE)*P6,"") -> 0 | C6: =IFERROR(VLOOKUP(A6,STAGIONALITA!$A$3:$M$106,3,FALSE)*P6,"") -> 4693.589478 | D6: =IFERROR(VLOOKUP(A6,STAGIONALITA!$A$3:$M$106,4,FALSE)*P6,"") -> 7317.737019 | E6: =IFERROR(VLOOKUP(A6,STAGIONALITA!$A$3:$M$106,5,FALSE)*P6,"") -> 8243.298523 | F6: =IFERROR(VLOOKUP(A6,STAGIONALITA!$A$3:$M$106,6,FALSE)*P6,"") -> 12934.61484 | G6: =IFERROR(VLOOKUP(A6,STAGIONALITA!$A$3:$M$106,7,FALSE)*P6,"") -> 1700.826663 | H6: =IFERROR(VLOOKUP(A6,STAGIONALITA!$A$3:$M$106,8,FALSE)*P6,"") -> 9924.458373 | I6: =IFERROR(VLOOKUP(A6,STAGIONALITA!$A$3:$M$106,9,FALSE)*P6,"") -> 4112.937975 | J6: =IFERROR(VLOOKUP(A6,STAGIONALITA!$A$3:$M$106,10,FALSE)*P6,"") -> 1074.029743 | K6: =IFERROR(VLOOKUP(A6,STAGIONALITA!$A$3:$M$106,11,FALSE)*P6,"") -> -315.396905 | L6: =IFERROR(VLOOKUP(A6,STAGIONALITA!$A$3:$M$106,12,FALSE)*P6,"") -> 2521.334484 | M6: =IFERROR(VLOOKUP(A6,STAGIONALITA!$A$3:$M$106,13,FALSE)*P6,"") -> 792.5698042 | O6: Haier | P6: 53000 | T6: Δ € | U6: =U4-U5 -> 95406.68476 | V6: =V4-V5 -> 159737.7553 | W6: 168339.2653
A7: Novellini | B7: =IFERROR(VLOOKUP(A7,STAGIONALITA!$A$3:$M$106,2,FALSE)*P7,"") -> 2363.080289 | C7: =IFERROR(VLOOKUP(A7,STAGIONALITA!$A$3:$M$106,3,FALSE)*P7,"") -> 2802.808467 | D7: =IFERROR(VLOOKUP(A7,STAGIONALITA!$A$3:$M$106,4,FALSE)*P7,"") -> 2679.032106 | E7: =IFERROR(VLOOKUP(A7,STAGIONALITA!$A$3:$M$106,5,FALSE)*P7,"") -> 4056.909979 | F7: =IFERROR(VLOOKUP(A7,STAGIONALITA!$A$3:$M$106,6,FALSE)*P7,"") -> 3177.455221 | G7: =IFERROR(VLOOKUP(A7,STAGIONALITA!$A$3:$M$106,7,FALSE)*P7,"") -> 4536.085176 | H7: =IFERROR(VLOOKUP(A7,STAGIONALITA!$A$3:$M$106,8,FALSE)*P7,"") -> 4340.283517 | I7: =IFERROR(VLOOKUP(A7,STAGIONALITA!$A$3:$M$106,9,FALSE)*P7,"") -> 1211.917657 | J7: =IFERROR(VLOOKUP(A7,STAGIONALITA!$A$3:$M$106,10,FALSE)*P7,"") -> 2569.706204 | K7: =IFERROR(VLOOKUP(A7,STAGIONALITA!$A$3:$M$106,11,FALSE)*P7,"") -> 3627.519012 | L7: =IFERROR(VLOOKUP(A7,STAGIONALITA!$A$3:$M$106,12,FALSE)*P7,"") -> 4453.569733 | M7: =IFERROR(VLOOKUP(A7,STAGIONALITA!$A$3:$M$106,13,FALSE)*P7,"") -> 2181.63264 | O7: Novellini | P7: 38000
A8: Giacomini | B8: =IFERROR(VLOOKUP(A8,STAGIONALITA!$A$3:$M$106,2,FALSE)*P8,"") -> 2307.406126 | C8: =IFERROR(VLOOKUP(A8,STAGIONALITA!$A$3:$M$106,3,FALSE)*P8,"") -> 1762.648076 | D8: =IFERROR(VLOOKUP(A8,STAGIONALITA!$A$3:$M$106,4,FALSE)*P8,"") -> 3587.87171 | E8: =IFERROR(VLOOKUP(A8,STAGIONALITA!$A$3:$M$106,5,FALSE)*P8,"") -> 1723.9965 | F8: =IFERROR(VLOOKUP(A8,STAGIONALITA!$A$3:$M$106,6,FALSE)*P8,"") -> 1806.303196 | G8: =IFERROR(VLOOKUP(A8,STAGIONALITA!$A$3:$M$106,7,FALSE)*P8,"") -> 2484.80923 | H8: =IFERROR(VLOOKUP(A8,STAGIONALITA!$A$3:$M$106,8,FALSE)*P8,"") -> 2436.512474 | I8: =IFERROR(VLOOKUP(A8,STAGIONALITA!$A$3:$M$106,9,FALSE)*P8,"") -> 704.1853127 | J8: =IFERROR(VLOOKUP(A8,STAGIONALITA!$A$3:$M$106,10,FALSE)*P8,"") -> 1480.996713 | K8: =IFERROR(VLOOKUP(A8,STAGIONALITA!$A$3:$M$106,11,FALSE)*P8,"") -> 2658.039878 | L8: =IFERROR(VLOOKUP(A8,STAGIONALITA!$A$3:$M$106,12,FALSE)*P8,"") -> 2296.734508 | M8: =IFERROR(VLOOKUP(A8,STAGIONALITA!$A$3:$M$106,13,FALSE)*P8,"") -> 1750.496276 | O8: Giacomini | P8: 25000
A9: Rainbox | B9: =IFERROR(VLOOKUP(A9,STAGIONALITA!$A$3:$M$106,2,FALSE)*P9,"") -> 1842.683359 | C9: =IFERROR(VLOOKUP(A9,STAGIONALITA!$A$3:$M$106,3,FALSE)*P9,"") -> 1575.410417 | D9: =IFERROR(VLOOKUP(A9,STAGIONALITA!$A$3:$M$106,4,FALSE)*P9,"") -> 1930.317704 | E9: =IFERROR(VLOOKUP(A9,STAGIONALITA!$A$3:$M$106,5,FALSE)*P9,"") -> 2771.46569 | F9: =IFERROR(VLOOKUP(A9,STAGIONALITA!$A$3:$M$106,6,FALSE)*P9,"") -> 3546.120231 | G9: =IFERROR(VLOOKUP(A9,STAGIONALITA!$A$3:$M$106,7,FALSE)*P9,"") -> 1920.160624 | H9: =IFERROR(VLOOKUP(A9,STAGIONALITA!$A$3:$M$106,8,FALSE)*P9,"") -> 4478.800047 | I9: =IFERROR(VLOOKUP(A9,STAGIONALITA!$A$3:$M$106,9,FALSE)*P9,"") -> 1198.771702 | J9: =IFERROR(VLOOKUP(A9,STAGIONALITA!$A$3:$M$106,10,FALSE)*P9,"") -> 1642.258179 | K9: =IFERROR(VLOOKUP(A9,STAGIONALITA!$A$3:$M$106,11,FALSE)*P9,"") -> 1316.877288 | L9: =IFERROR(VLOOKUP(A9,STAGIONALITA!$A$3:$M$106,12,FALSE)*P9,"") -> 1269.871265 | M9: =IFERROR(VLOOKUP(A9,STAGIONALITA!$A$3:$M$106,13,FALSE)*P9,"") -> 507.2634936 | O9: Rainbox | P9: 24000
A10: Albatros | B10: =IFERROR(VLOOKUP(A10,STAGIONALITA!$A$3:$M$106,2,FALSE)*P10,"") -> 157.9793735 | C10: =IFERROR(VLOOKUP(A10,STAGIONALITA!$A$3:$M$106,3,FALSE)*P10,"") -> 136.1092648 | D10: =IFERROR(VLOOKUP(A10,STAGIONALITA!$A$3:$M$106,4,FALSE)*P10,"") -> 5133.557752 | E10: =IFERROR(VLOOKUP(A10,STAGIONALITA!$A$3:$M$106,5,FALSE)*P10,"") -> 1306.288728 | F10: =IFERROR(VLOOKUP(A10,STAGIONALITA!$A$3:$M$106,6,FALSE)*P10,"") -> 4072.728832 | G10: =IFERROR(VLOOKUP(A10,STAGIONALITA!$A$3:$M$106,7,FALSE)*P10,"") -> 180.6213684 | H10: =IFERROR(VLOOKUP(A10,STAGIONALITA!$A$3:$M$106,8,FALSE)*P10,"") -> 3325.02841 | I10: =IFERROR(VLOOKUP(A10,STAGIONALITA!$A$3:$M$106,9,FALSE)*P10,"") -> 1429.790519 | J10: =IFERROR(VLOOKUP(A10,STAGIONALITA!$A$3:$M$106,10,FALSE)*P10,"") -> 2383.841849 | K10: =IFERROR(VLOOKUP(A10,STAGIONALITA!$A$3:$M$106,11,FALSE)*P10,"") -> 263.9850769 | L10: =IFERROR(VLOOKUP(A10,STAGIONALITA!$A$3:$M$106,12,FALSE)*P10,"") -> 2699.286005 | M10: =IFERROR(VLOOKUP(A10,STAGIONALITA!$A$3:$M$106,13,FALSE)*P10,"") -> 2910.782821 | O10: Albatros | P10: 24000
A11: Global | B11: =IFERROR(VLOOKUP(A11,STAGIONALITA!$A$3:$M$106,2,FALSE)*P11,"") -> 2811.56089 | C11: =IFERROR(VLOOKUP(A11,STAGIONALITA!$A$3:$M$106,3,FALSE)*P11,"") -> 1890.947717 | D11: =IFERROR(VLOOKUP(A11,STAGIONALITA!$A$3:$M$106,4,FALSE)*P11,"") -> 2507.089022 | E11: =IFERROR(VLOOKUP(A11,STAGIONALITA!$A$3:$M$106,5,FALSE)*P11,"") -> 1969.256799 | F11: =IFERROR(VLOOKUP(A11,STAGIONALITA!$A$3:$M$106,6,FALSE)*P11,"") -> 961.7017515 | G11: =IFERROR(VLOOKUP(A11,STAGIONALITA!$A$3:$M$106,7,FALSE)*P11,"") -> 2152.060207 | H11: =IFERROR(VLOOKUP(A11,STAGIONALITA!$A$3:$M$106,8,FALSE)*P11,"") -> 380.7591845 | I11: =IFERROR(VLOOKUP(A11,STAGIONALITA!$A$3:$M$106,9,FALSE)*P11,"") -> 266.7926173 | J11: =IFERROR(VLOOKUP(A11,STAGIONALITA!$A$3:$M$106,10,FALSE)*P11,"") -> 1686.62399 | K11: =IFERROR(VLOOKUP(A11,STAGIONALITA!$A$3:$M$106,11,FALSE)*P11,"") -> 1278.006325 | L11: =IFERROR(VLOOKUP(A11,STAGIONALITA!$A$3:$M$106,12,FALSE)*P11,"") -> 4751.751869 | M11: =IFERROR(VLOOKUP(A11,STAGIONALITA!$A$3:$M$106,13,FALSE)*P11,"") -> 1343.449626 | O11: Global | P11: 22000
A12: Galassia | B12: =IFERROR(VLOOKUP(A12,STAGIONALITA!$A$3:$M$106,2,FALSE)*P12,"") -> 1220.509582 | C12: =IFERROR(VLOOKUP(A12,STAGIONALITA!$A$3:$M$106,3,FALSE)*P12,"") -> 3200.220058 | D12: =IFERROR(VLOOKUP(A12,STAGIONALITA!$A$3:$M$106,4,FALSE)*P12,"") -> 1822.880245 | E12: =IFERROR(VLOOKUP(A12,STAGIONALITA!$A$3:$M$106,5,FALSE)*P12,"") -> 1384.817144 | F12: =IFERROR(VLOOKUP(A12,STAGIONALITA!$A$3:$M$106,6,FALSE)*P12,"") -> 2338.002468 | G12: =IFERROR(VLOOKUP(A12,STAGIONALITA!$A$3:$M$106,7,FALSE)*P12,"") -> 1661.168439 | H12: =IFERROR(VLOOKUP(A12,STAGIONALITA!$A$3:$M$106,8,FALSE)*P12,"") -> 1919.73686 | I12: =IFERROR(VLOOKUP(A12,STAGIONALITA!$A$3:$M$106,9,FALSE)*P12,"") -> 416.2122477 | J12: =IFERROR(VLOOKUP(A12,STAGIONALITA!$A$3:$M$106,10,FALSE)*P12,"") -> 1534.402501 | K12: =IFERROR(VLOOKUP(A12,STAGIONALITA!$A$3:$M$106,11,FALSE)*P12,"") -> 1715.291916 | L12: =IFERROR(VLOOKUP(A12,STAGIONALITA!$A$3:$M$106,12,FALSE)*P12,"") -> 1927.950301 | M12: =IFERROR(VLOOKUP(A12,STAGIONALITA!$A$3:$M$106,13,FALSE)*P12,"") -> 858.8082375 | O12: Galassia | P12: 20000
A13: Arblu | B13: =IFERROR(VLOOKUP(A13,STAGIONALITA!$A$3:$M$106,2,FALSE)*P13,"") -> 669.2219932 | C13: =IFERROR(VLOOKUP(A13,STAGIONALITA!$A$3:$M$106,3,FALSE)*P13,"") -> 1118.018679 | D13: =IFERROR(VLOOKUP(A13,STAGIONALITA!$A$3:$M$106,4,FALSE)*P13,"") -> 1818.732285 | E13: =IFERROR(VLOOKUP(A13,STAGIONALITA!$A$3:$M$106,5,FALSE)*P13,"") -> 1646.928591 | F13: =IFERROR(VLOOKUP(A13,STAGIONALITA!$A$3:$M$106,6,FALSE)*P13,"") -> 1211.976848 | G13: =IFERROR(VLOOKUP(A13,STAGIONALITA!$A$3:$M$106,7,FALSE)*P13,"") -> 1678.636211 | H13: =IFERROR(VLOOKUP(A13,STAGIONALITA!$A$3:$M$106,8,FALSE)*P13,"") -> 1882.320081 | I13: =IFERROR(VLOOKUP(A13,STAGIONALITA!$A$3:$M$106,9,FALSE)*P13,"") -> 373.1471933 | J13: =IFERROR(VLOOKUP(A13,STAGIONALITA!$A$3:$M$106,10,FALSE)*P13,"") -> 1624.972264 | K13: =IFERROR(VLOOKUP(A13,STAGIONALITA!$A$3:$M$106,11,FALSE)*P13,"") -> 1135.507527 | L13: =IFERROR(VLOOKUP(A13,STAGIONALITA!$A$3:$M$106,12,FALSE)*P13,"") -> 1333.125463 | M13: =IFERROR(VLOOKUP(A13,STAGIONALITA!$A$3:$M$106,13,FALSE)*P13,"") -> 1507.412865 | O13: Arblu | P13: 16000
A14: Geberit | B14: =IFERROR(VLOOKUP(A14,STAGIONALITA!$A$3:$M$106,2,FALSE)*P14,"") -> 765.3065055 | C14: =IFERROR(VLOOKUP(A14,STAGIONALITA!$A$3:$M$106,3,FALSE)*P14,"") -> 1149.822016 | D14: =IFERROR(VLOOKUP(A14,STAGIONALITA!$A$3:$M$106,4,FALSE)*P14,"") -> 1189.442176 | E14: =IFERROR(VLOOKUP(A14,STAGIONALITA!$A$3:$M$106,5,FALSE)*P14,"") -> 854.9764956 | F14: =IFERROR(VLOOKUP(A14,STAGIONALITA!$A$3:$M$106,6,FALSE)*P14,"") -> 848.3710764 | G14: =IFERROR(VLOOKUP(A14,STAGIONALITA!$A$3:$M$106,7,FALSE)*P14,"") -> 1064.683052 | H14: =IFERROR(VLOOKUP(A14,STAGIONALITA!$A$3:$M$106,8,FALSE)*P14,"") -> 955.2731292 | I14: =IFERROR(VLOOKUP(A14,STAGIONALITA!$A$3:$M$106,9,FALSE)*P14,"") -> 466.6781134 | J14: =IFERROR(VLOOKUP(A14,STAGIONALITA!$A$3:$M$106,10,FALSE)*P14,"") -> 779.9409907 | K14: =IFERROR(VLOOKUP(A14,STAGIONALITA!$A$3:$M$106,11,FALSE)*P14,"") -> 1140.427933 | L14: =IFERROR(VLOOKUP(A14,STAGIONALITA!$A$3:$M$106,12,FALSE)*P14,"") -> 1222.014266 | M14: =IFERROR(VLOOKUP(A14,STAGIONALITA!$A$3:$M$106,13,FALSE)*P14,"") -> 563.0642452 | O14: Geberit | P14: 11000
A15: GBD | B15: =IFERROR(VLOOKUP(A15,STAGIONALITA!$A$3:$M$106,2,FALSE)*P15,"") -> 425.1786248 | C15: =IFERROR(VLOOKUP(A15,STAGIONALITA!$A$3:$M$106,3,FALSE)*P15,"") -> 715.4636639 | D15: =IFERROR(VLOOKUP(A15,STAGIONALITA!$A$3:$M$106,4,FALSE)*P15,"") -> 705.1229928 | E15: =IFERROR(VLOOKUP(A15,STAGIONALITA!$A$3:$M$106,5,FALSE)*P15,"") -> 1008.826058 | F15: =IFERROR(VLOOKUP(A15,STAGIONALITA!$A$3:$M$106,6,FALSE)*P15,"") -> 322.3202987 | G15: =IFERROR(VLOOKUP(A15,STAGIONALITA!$A$3:$M$106,7,FALSE)*P15,"") -> 1128.589987 | H15: =IFERROR(VLOOKUP(A15,STAGIONALITA!$A$3:$M$106,8,FALSE)*P15,"") -> 438.4584143 | I15: =IFERROR(VLOOKUP(A15,STAGIONALITA!$A$3:$M$106,9,FALSE)*P15,"") -> 321.9310312 | J15: =IFERROR(VLOOKUP(A15,STAGIONALITA!$A$3:$M$106,10,FALSE)*P15,"") -> 659.2158377 | K15: =IFERROR(VLOOKUP(A15,STAGIONALITA!$A$3:$M$106,11,FALSE)*P15,"") -> 995.7771146 | L15: =IFERROR(VLOOKUP(A15,STAGIONALITA!$A$3:$M$106,12,FALSE)*P15,"") -> 1091.939229 | M15: =IFERROR(VLOOKUP(A15,STAGIONALITA!$A$3:$M$106,13,FALSE)*P15,"") -> 687.1767481 | O15: GBD | P15: 8500
A16: Mut Meccanica Tovo | B16: =IFERROR(VLOOKUP(A16,STAGIONALITA!$A$3:$M$106,2,FALSE)*P16,"") -> 1181.003947 | C16: =IFERROR(VLOOKUP(A16,STAGIONALITA!$A$3:$M$106,3,FALSE)*P16,"") -> 210.348992 | D16: =IFERROR(VLOOKUP(A16,STAGIONALITA!$A$3:$M$106,4,FALSE)*P16,"") -> 911.8345045 | E16: =IFERROR(VLOOKUP(A16,STAGIONALITA!$A$3:$M$106,5,FALSE)*P16,"") -> 1032.669445 | F16: =IFERROR(VLOOKUP(A16,STAGIONALITA!$A$3:$M$106,6,FALSE)*P16,"") -> 628.0724099 | G16: =IFERROR(VLOOKUP(A16,STAGIONALITA!$A$3:$M$106,7,FALSE)*P16,"") -> 73.22164701 | H16: =IFERROR(VLOOKUP(A16,STAGIONALITA!$A$3:$M$106,8,FALSE)*P16,"") -> 365.9432408 | I16: =IFERROR(VLOOKUP(A16,STAGIONALITA!$A$3:$M$106,9,FALSE)*P16,"") -> 0 | J16: =IFERROR(VLOOKUP(A16,STAGIONALITA!$A$3:$M$106,10,FALSE)*P16,"") -> 133.702936 | K16: =IFERROR(VLOOKUP(A16,STAGIONALITA!$A$3:$M$106,11,FALSE)*P16,"") -> 1022.276364 | L16: =IFERROR(VLOOKUP(A16,STAGIONALITA!$A$3:$M$106,12,FALSE)*P16,"") -> 1354.914114 | M16: =IFERROR(VLOOKUP(A16,STAGIONALITA!$A$3:$M$106,13,FALSE)*P16,"") -> 1086.012398 | O16: Mut Meccanica Tovo | P16: 8000
A17: BT-Flex | B17: =IFERROR(VLOOKUP(A17,STAGIONALITA!$A$3:$M$106,2,FALSE)*P17,"") -> 0 | C17: =IFERROR(VLOOKUP(A17,STAGIONALITA!$A$3:$M$106,3,FALSE)*P17,"") -> 0 | D17: =IFERROR(VLOOKUP(A17,STAGIONALITA!$A$3:$M$106,4,FALSE)*P17,"") -> 0 | E17: =IFERROR(VLOOKUP(A17,STAGIONALITA!$A$3:$M$106,5,FALSE)*P17,"") -> 0 | F17: =IFERROR(VLOOKUP(A17,STAGIONALITA!$A$3:$M$106,6,FALSE)*P17,"") -> 0 | G17: =IFERROR(VLOOKUP(A17,STAGIONALITA!$A$3:$M$106,7,FALSE)*P17,"") -> 3053.621595 | H17: =IFERROR(VLOOKUP(A17,STAGIONALITA!$A$3:$M$106,8,FALSE)*P17,"") -> 0 | I17: =IFERROR(VLOOKUP(A17,STAGIONALITA!$A$3:$M$106,9,FALSE)*P17,"") -> 724.9892732 | J17: =IFERROR(VLOOKUP(A17,STAGIONALITA!$A$3:$M$106,10,FALSE)*P17,"") -> 434.5788978 | K17: =IFERROR(VLOOKUP(A17,STAGIONALITA!$A$3:$M$106,11,FALSE)*P17,"") -> 1786.810234 | L17: =IFERROR(VLOOKUP(A17,STAGIONALITA!$A$3:$M$106,12,FALSE)*P17,"") -> 0 | M17: =IFERROR(VLOOKUP(A17,STAGIONALITA!$A$3:$M$106,13,FALSE)*P17,"") -> 0 | O17: BT-Flex | P17: 6000
A18: Omp Tea | B18: =IFERROR(VLOOKUP(A18,STAGIONALITA!$A$3:$M$106,2,FALSE)*P18,"") -> 492.2766853 | C18: =IFERROR(VLOOKUP(A18,STAGIONALITA!$A$3:$M$106,3,FALSE)*P18,"") -> 492.616767 | D18: =IFERROR(VLOOKUP(A18,STAGIONALITA!$A$3:$M$106,4,FALSE)*P18,"") -> 757.541548 | E18: =IFERROR(VLOOKUP(A18,STAGIONALITA!$A$3:$M$106,5,FALSE)*P18,"") -> 396.2327569 | F18: =IFERROR(VLOOKUP(A18,STAGIONALITA!$A$3:$M$106,6,FALSE)*P18,"") -> 571.0079615 | G18: =IFERROR(VLOOKUP(A18,STAGIONALITA!$A$3:$M$106,7,FALSE)*P18,"") -> 590.9909284 | H18: =IFERROR(VLOOKUP(A18,STAGIONALITA!$A$3:$M$106,8,FALSE)*P18,"") -> 567.612298 | I18: =IFERROR(VLOOKUP(A18,STAGIONALITA!$A$3:$M$106,9,FALSE)*P18,"") -> 250.4140368 | J18: =IFERROR(VLOOKUP(A18,STAGIONALITA!$A$3:$M$106,10,FALSE)*P18,"") -> 546.0605163 | K18: =IFERROR(VLOOKUP(A18,STAGIONALITA!$A$3:$M$106,11,FALSE)*P18,"") -> 723.7398912 | L18: =IFERROR(VLOOKUP(A18,STAGIONALITA!$A$3:$M$106,12,FALSE)*P18,"") -> 399.4906835 | M18: =IFERROR(VLOOKUP(A18,STAGIONALITA!$A$3:$M$106,13,FALSE)*P18,"") -> 212.015927 | O18: Omp Tea | P18: 6000
A19: First Corporation | B19: =IFERROR(VLOOKUP(A19,STAGIONALITA!$A$3:$M$106,2,FALSE)*P19,"") -> 0 | C19: =IFERROR(VLOOKUP(A19,STAGIONALITA!$A$3:$M$106,3,FALSE)*P19,"") -> 1010.000063 | D19: =IFERROR(VLOOKUP(A19,STAGIONALITA!$A$3:$M$106,4,FALSE)*P19,"") -> 638.7817796 | E19: =IFERROR(VLOOKUP(A19,STAGIONALITA!$A$3:$M$106,5,FALSE)*P19,"") -> 810.4237045 | F19: =IFERROR(VLOOKUP(A19,STAGIONALITA!$A$3:$M$106,6,FALSE)*P19,"") -> 1071.441265 | G19: =IFERROR(VLOOKUP(A19,STAGIONALITA!$A$3:$M$106,7,FALSE)*P19,"") -> 316.2733056 | H19: =IFERROR(VLOOKUP(A19,STAGIONALITA!$A$3:$M$106,8,FALSE)*P19,"") -> 399.4181703 | I19: =IFERROR(VLOOKUP(A19,STAGIONALITA!$A$3:$M$106,9,FALSE)*P19,"") -> 231.9288764 | J19: =IFERROR(VLOOKUP(A19,STAGIONALITA!$A$3:$M$106,10,FALSE)*P19,"") -> 469.8519444 | K19: =IFERROR(VLOOKUP(A19,STAGIONALITA!$A$3:$M$106,11,FALSE)*P19,"") -> 453.149324 | L19: =IFERROR(VLOOKUP(A19,STAGIONALITA!$A$3:$M$106,12,FALSE)*P19,"") -> 200.80469 | M19: =IFERROR(VLOOKUP(A19,STAGIONALITA!$A$3:$M$106,13,FALSE)*P19,"") -> 397.9268781 | O19: First Corporation | P19: 6000
A20: Galletti | B20: =IFERROR(VLOOKUP(A20,STAGIONALITA!$A$3:$M$106,2,FALSE)*P20,"") -> 0 | C20: =IFERROR(VLOOKUP(A20,STAGIONALITA!$A$3:$M$106,3,FALSE)*P20,"") -> 802.3345426 | D20: =IFERROR(VLOOKUP(A20,STAGIONALITA!$A$3:$M$106,4,FALSE)*P20,"") -> 106.5350886 | E20: =IFERROR(VLOOKUP(A20,STAGIONALITA!$A$3:$M$106,5,FALSE)*P20,"") -> 1823.502241 | F20: =IFERROR(VLOOKUP(A20,STAGIONALITA!$A$3:$M$106,6,FALSE)*P20,"") -> 82.86170818 | G20: =IFERROR(VLOOKUP(A20,STAGIONALITA!$A$3:$M$106,7,FALSE)*P20,"") -> 65.41032036 | H20: =IFERROR(VLOOKUP(A20,STAGIONALITA!$A$3:$M$106,8,FALSE)*P20,"") -> 337.2756456 | I20: =IFERROR(VLOOKUP(A20,STAGIONALITA!$A$3:$M$106,9,FALSE)*P20,"") -> 41.4082234 | J20: =IFERROR(VLOOKUP(A20,STAGIONALITA!$A$3:$M$106,10,FALSE)*P20,"") -> 314.66446 | K20: =IFERROR(VLOOKUP(A20,STAGIONALITA!$A$3:$M$106,11,FALSE)*P20,"") -> 332.0798825 | L20: =IFERROR(VLOOKUP(A20,STAGIONALITA!$A$3:$M$106,12,FALSE)*P20,"") -> 666.4783062 | M20: =IFERROR(VLOOKUP(A20,STAGIONALITA!$A$3:$M$106,13,FALSE)*P20,"") -> 427.4495819 | O20: Galletti | P20: 5000
A21: Euroacque | B21: =IFERROR(VLOOKUP(A21,STAGIONALITA!$A$3:$M$106,2,FALSE)*P21,"") -> 0 | C21: =IFERROR(VLOOKUP(A21,STAGIONALITA!$A$3:$M$106,3,FALSE)*P21,"") -> 821.9255433 | D21: =IFERROR(VLOOKUP(A21,STAGIONALITA!$A$3:$M$106,4,FALSE)*P21,"") -> 216.9617616 | E21: =IFERROR(VLOOKUP(A21,STAGIONALITA!$A$3:$M$106,5,FALSE)*P21,"") -> 330.9818918 | F21: =IFERROR(VLOOKUP(A21,STAGIONALITA!$A$3:$M$106,6,FALSE)*P21,"") -> 349.5304757 | G21: =IFERROR(VLOOKUP(A21,STAGIONALITA!$A$3:$M$106,7,FALSE)*P21,"") -> 136.6478633 | H21: =IFERROR(VLOOKUP(A21,STAGIONALITA!$A$3:$M$106,8,FALSE)*P21,"") -> 323.3858299 | I21: =IFERROR(VLOOKUP(A21,STAGIONALITA!$A$3:$M$106,9,FALSE)*P21,"") -> 191.7289562 | J21: =IFERROR(VLOOKUP(A21,STAGIONALITA!$A$3:$M$106,10,FALSE)*P21,"") -> 383.4448675 | K21: =IFERROR(VLOOKUP(A21,STAGIONALITA!$A$3:$M$106,11,FALSE)*P21,"") -> 622.6968713 | L21: =IFERROR(VLOOKUP(A21,STAGIONALITA!$A$3:$M$106,12,FALSE)*P21,"") -> 339.5948991 | M21: =IFERROR(VLOOKUP(A21,STAGIONALITA!$A$3:$M$106,13,FALSE)*P21,"") -> 283.1010404 | O21: Euroacque | P21: 4000
A22: General d'aspirazione | B22: =IFERROR(VLOOKUP(A22,STAGIONALITA!$A$3:$M$106,2,FALSE)*P22,"") -> 27.45424074 | C22: =IFERROR(VLOOKUP(A22,STAGIONALITA!$A$3:$M$106,3,FALSE)*P22,"") -> 141.0887507 | D22: =IFERROR(VLOOKUP(A22,STAGIONALITA!$A$3:$M$106,4,FALSE)*P22,"") -> 91.30804263 | E22: =IFERROR(VLOOKUP(A22,STAGIONALITA!$A$3:$M$106,5,FALSE)*P22,"") -> 405.7886747 | F22: =IFERROR(VLOOKUP(A22,STAGIONALITA!$A$3:$M$106,6,FALSE)*P22,"") -> 125.5607269 | G22: =IFERROR(VLOOKUP(A22,STAGIONALITA!$A$3:$M$106,7,FALSE)*P22,"") -> 58.02881972 | H22: =IFERROR(VLOOKUP(A22,STAGIONALITA!$A$3:$M$106,8,FALSE)*P22,"") -> 239.4043995 | I22: =IFERROR(VLOOKUP(A22,STAGIONALITA!$A$3:$M$106,9,FALSE)*P22,"") -> 29.65636815 | J22: =IFERROR(VLOOKUP(A22,STAGIONALITA!$A$3:$M$106,10,FALSE)*P22,"") -> 106.5085099 | K22: =IFERROR(VLOOKUP(A22,STAGIONALITA!$A$3:$M$106,11,FALSE)*P22,"") -> 151.0798843 | L22: =IFERROR(VLOOKUP(A22,STAGIONALITA!$A$3:$M$106,12,FALSE)*P22,"") -> 370.4849153 | M22: =IFERROR(VLOOKUP(A22,STAGIONALITA!$A$3:$M$106,13,FALSE)*P22,"") -> 253.6366674 | O22: General d'aspirazione | P22: 2000
A23: Rizzo Aquae | B23: =IFERROR(VLOOKUP(A23,STAGIONALITA!$A$3:$M$106,2,FALSE)*P23,"") -> 0 | C23: =IFERROR(VLOOKUP(A23,STAGIONALITA!$A$3:$M$106,3,FALSE)*P23,"") -> 123.8082709 | D23: =IFERROR(VLOOKUP(A23,STAGIONALITA!$A$3:$M$106,4,FALSE)*P23,"") -> 145.0273668 | E23: =IFERROR(VLOOKUP(A23,STAGIONALITA!$A$3:$M$106,5,FALSE)*P23,"") -> 303.37351 | F23: =IFERROR(VLOOKUP(A23,STAGIONALITA!$A$3:$M$106,6,FALSE)*P23,"") -> 92.50013466 | G23: =IFERROR(VLOOKUP(A23,STAGIONALITA!$A$3:$M$106,7,FALSE)*P23,"") -> 216.9765197 | H23: =IFERROR(VLOOKUP(A23,STAGIONALITA!$A$3:$M$106,8,FALSE)*P23,"") -> 68.35273108 | I23: =IFERROR(VLOOKUP(A23,STAGIONALITA!$A$3:$M$106,9,FALSE)*P23,"") -> 24.86005859 | J23: =IFERROR(VLOOKUP(A23,STAGIONALITA!$A$3:$M$106,10,FALSE)*P23,"") -> 261.3320434 | K23: =IFERROR(VLOOKUP(A23,STAGIONALITA!$A$3:$M$106,11,FALSE)*P23,"") -> 212.029368 | L23: =IFERROR(VLOOKUP(A23,STAGIONALITA!$A$3:$M$106,12,FALSE)*P23,"") -> 118.8766568 | M23: =IFERROR(VLOOKUP(A23,STAGIONALITA!$A$3:$M$106,13,FALSE)*P23,"") -> 432.8633401 | O23: Rizzo Aquae | P23: 2000
A24: System Group (Sa.Mi. Plastic) | B24: =IFERROR(VLOOKUP(A24,STAGIONALITA!$A$3:$M$106,2,FALSE)*P24,"") -> 102.0069444 | C24: =IFERROR(VLOOKUP(A24,STAGIONALITA!$A$3:$M$106,3,FALSE)*P24,"") -> 130.0742208 | D24: =IFERROR(VLOOKUP(A24,STAGIONALITA!$A$3:$M$106,4,FALSE)*P24,"") -> 68.36856411 | E24: =IFERROR(VLOOKUP(A24,STAGIONALITA!$A$3:$M$106,5,FALSE)*P24,"") -> 107.4063821 | F24: =IFERROR(VLOOKUP(A24,STAGIONALITA!$A$3:$M$106,6,FALSE)*P24,"") -> 73.23709385 | G24: =IFERROR(VLOOKUP(A24,STAGIONALITA!$A$3:$M$106,7,FALSE)*P24,"") -> 58.21464569 | H24: =IFERROR(VLOOKUP(A24,STAGIONALITA!$A$3:$M$106,8,FALSE)*P24,"") -> 61.45678873 | I24: =IFERROR(VLOOKUP(A24,STAGIONALITA!$A$3:$M$106,9,FALSE)*P24,"") -> 18.38322516 | J24: =IFERROR(VLOOKUP(A24,STAGIONALITA!$A$3:$M$106,10,FALSE)*P24,"") -> 141.2281386 | K24: =IFERROR(VLOOKUP(A24,STAGIONALITA!$A$3:$M$106,11,FALSE)*P24,"") -> 80.39253933 | L24: =IFERROR(VLOOKUP(A24,STAGIONALITA!$A$3:$M$106,12,FALSE)*P24,"") -> 98.13614903 | M24: =IFERROR(VLOOKUP(A24,STAGIONALITA!$A$3:$M$106,13,FALSE)*P24,"") -> 61.09530828 | O24: System Group (Sa.Mi. Plastic) | P24: 1000
A25: Ibp Banninger | B25: =IFERROR(VLOOKUP(A25,STAGIONALITA!$A$3:$M$106,2,FALSE)*P25,"") -> 95.08425099 | C25: =IFERROR(VLOOKUP(A25,STAGIONALITA!$A$3:$M$106,3,FALSE)*P25,"") -> 69.61318888 | D25: =IFERROR(VLOOKUP(A25,STAGIONALITA!$A$3:$M$106,4,FALSE)*P25,"") -> 98.10957323 | E25: =IFERROR(VLOOKUP(A25,STAGIONALITA!$A$3:$M$106,5,FALSE)*P25,"") -> 126.5756622 | F25: =IFERROR(VLOOKUP(A25,STAGIONALITA!$A$3:$M$106,6,FALSE)*P25,"") -> 84.42606313 | G25: =IFERROR(VLOOKUP(A25,STAGIONALITA!$A$3:$M$106,7,FALSE)*P25,"") -> 85.96620319 | H25: =IFERROR(VLOOKUP(A25,STAGIONALITA!$A$3:$M$106,8,FALSE)*P25,"") -> 103.5509489 | I25: =IFERROR(VLOOKUP(A25,STAGIONALITA!$A$3:$M$106,9,FALSE)*P25,"") -> 31.31406678 | J25: =IFERROR(VLOOKUP(A25,STAGIONALITA!$A$3:$M$106,10,FALSE)*P25,"") -> 99.61179336 | K25: =IFERROR(VLOOKUP(A25,STAGIONALITA!$A$3:$M$106,11,FALSE)*P25,"") -> 80.27377448 | L25: =IFERROR(VLOOKUP(A25,STAGIONALITA!$A$3:$M$106,12,FALSE)*P25,"") -> 75.95148686 | M25: =IFERROR(VLOOKUP(A25,STAGIONALITA!$A$3:$M$106,13,FALSE)*P25,"") -> 49.52298792 | O25: Ibp Banninger | P25: 1000
A26: Raccorderie Metalliche | B26: =IFERROR(VLOOKUP(A26,STAGIONALITA!$A$3:$M$106,2,FALSE)*P26,"") -> 74.98345988 | C26: =IFERROR(VLOOKUP(A26,STAGIONALITA!$A$3:$M$106,3,FALSE)*P26,"") -> 60.92866996 | D26: =IFERROR(VLOOKUP(A26,STAGIONALITA!$A$3:$M$106,4,FALSE)*P26,"") -> 119.723913 | E26: =IFERROR(VLOOKUP(A26,STAGIONALITA!$A$3:$M$106,5,FALSE)*P26,"") -> 93.78281617 | F26: =IFERROR(VLOOKUP(A26,STAGIONALITA!$A$3:$M$106,6,FALSE)*P26,"") -> 87.96945483 | G26: =IFERROR(VLOOKUP(A26,STAGIONALITA!$A$3:$M$106,7,FALSE)*P26,"") -> 124.1083993 | H26: =IFERROR(VLOOKUP(A26,STAGIONALITA!$A$3:$M$106,8,FALSE)*P26,"") -> 115.1224541 | I26: =IFERROR(VLOOKUP(A26,STAGIONALITA!$A$3:$M$106,9,FALSE)*P26,"") -> 34.30628425 | J26: =IFERROR(VLOOKUP(A26,STAGIONALITA!$A$3:$M$106,10,FALSE)*P26,"") -> 59.78071603 | K26: =IFERROR(VLOOKUP(A26,STAGIONALITA!$A$3:$M$106,11,FALSE)*P26,"") -> 100.8187049 | L26: =IFERROR(VLOOKUP(A26,STAGIONALITA!$A$3:$M$106,12,FALSE)*P26,"") -> 70.2516683 | M26: =IFERROR(VLOOKUP(A26,STAGIONALITA!$A$3:$M$106,13,FALSE)*P26,"") -> 58.22345938 | O26: Raccorderie Metalliche | P26: 1000
A27: Isoclima | B27: =IFERROR(VLOOKUP(A27,STAGIONALITA!$A$3:$M$106,2,FALSE)*P27,"") -> 0 | C27: =IFERROR(VLOOKUP(A27,STAGIONALITA!$A$3:$M$106,3,FALSE)*P27,"") -> 0 | D27: =IFERROR(VLOOKUP(A27,STAGIONALITA!$A$3:$M$106,4,FALSE)*P27,"") -> 73.5828425 | E27: =IFERROR(VLOOKUP(A27,STAGIONALITA!$A$3:$M$106,5,FALSE)*P27,"") -> 41.91012182 | F27: =IFERROR(VLOOKUP(A27,STAGIONALITA!$A$3:$M$106,6,FALSE)*P27,"") -> 82.94933822 | G27: =IFERROR(VLOOKUP(A27,STAGIONALITA!$A$3:$M$106,7,FALSE)*P27,"") -> 70.49126497 | H27: =IFERROR(VLOOKUP(A27,STAGIONALITA!$A$3:$M$106,8,FALSE)*P27,"") -> 107.5878228 | I27: =IFERROR(VLOOKUP(A27,STAGIONALITA!$A$3:$M$106,9,FALSE)*P27,"") -> 40.32815256 | J27: =IFERROR(VLOOKUP(A27,STAGIONALITA!$A$3:$M$106,10,FALSE)*P27,"") -> 178.2924713 | K27: =IFERROR(VLOOKUP(A27,STAGIONALITA!$A$3:$M$106,11,FALSE)*P27,"") -> 62.60932561 | L27: =IFERROR(VLOOKUP(A27,STAGIONALITA!$A$3:$M$106,12,FALSE)*P27,"") -> 123.8561776 | M27: =IFERROR(VLOOKUP(A27,STAGIONALITA!$A$3:$M$106,13,FALSE)*P27,"") -> 218.3924826 | O27: Isoclima | P27: 1000
A28: Samsung | B28: =IFERROR(VLOOKUP(A28,STAGIONALITA!$A$3:$M$106,2,FALSE)*P28,"") -> 17.14613566 | C28: =IFERROR(VLOOKUP(A28,STAGIONALITA!$A$3:$M$106,3,FALSE)*P28,"") -> 174.3991767 | D28: =IFERROR(VLOOKUP(A28,STAGIONALITA!$A$3:$M$106,4,FALSE)*P28,"") -> 157.5677515 | E28: =IFERROR(VLOOKUP(A28,STAGIONALITA!$A$3:$M$106,5,FALSE)*P28,"") -> 121.3703246 | F28: =IFERROR(VLOOKUP(A28,STAGIONALITA!$A$3:$M$106,6,FALSE)*P28,"") -> 99.83481841 | G28: =IFERROR(VLOOKUP(A28,STAGIONALITA!$A$3:$M$106,7,FALSE)*P28,"") -> 110.297426 | H28: =IFERROR(VLOOKUP(A28,STAGIONALITA!$A$3:$M$106,8,FALSE)*P28,"") -> 45.57811822 | I28: =IFERROR(VLOOKUP(A28,STAGIONALITA!$A$3:$M$106,9,FALSE)*P28,"") -> 26.30843565 | J28: =IFERROR(VLOOKUP(A28,STAGIONALITA!$A$3:$M$106,10,FALSE)*P28,"") -> 12.82864329 | K28: =IFERROR(VLOOKUP(A28,STAGIONALITA!$A$3:$M$106,11,FALSE)*P28,"") -> 118.5204388 | L28: =IFERROR(VLOOKUP(A28,STAGIONALITA!$A$3:$M$106,12,FALSE)*P28,"") -> 63.29042795 | M28: =IFERROR(VLOOKUP(A28,STAGIONALITA!$A$3:$M$106,13,FALSE)*P28,"") -> 52.85830316 | O28: Samsung | P28: 1000
A29: Itap | B29: =IFERROR(VLOOKUP(A29,STAGIONALITA!$A$3:$M$106,2,FALSE)*P29,"") -> 64.40933563 | C29: =IFERROR(VLOOKUP(A29,STAGIONALITA!$A$3:$M$106,3,FALSE)*P29,"") -> 70.56745451 | D29: =IFERROR(VLOOKUP(A29,STAGIONALITA!$A$3:$M$106,4,FALSE)*P29,"") -> 155.2393081 | E29: =IFERROR(VLOOKUP(A29,STAGIONALITA!$A$3:$M$106,5,FALSE)*P29,"") -> 49.65751277 | F29: =IFERROR(VLOOKUP(A29,STAGIONALITA!$A$3:$M$106,6,FALSE)*P29,"") -> 141.8048045 | G29: =IFERROR(VLOOKUP(A29,STAGIONALITA!$A$3:$M$106,7,FALSE)*P29,"") -> 74.7981004 | H29: =IFERROR(VLOOKUP(A29,STAGIONALITA!$A$3:$M$106,8,FALSE)*P29,"") -> 43.76737789 | I29: =IFERROR(VLOOKUP(A29,STAGIONALITA!$A$3:$M$106,9,FALSE)*P29,"") -> 0 | J29: =IFERROR(VLOOKUP(A29,STAGIONALITA!$A$3:$M$106,10,FALSE)*P29,"") -> 92.32619495 | K29: =IFERROR(VLOOKUP(A29,STAGIONALITA!$A$3:$M$106,11,FALSE)*P29,"") -> 133.554173 | L29: =IFERROR(VLOOKUP(A29,STAGIONALITA!$A$3:$M$106,12,FALSE)*P29,"") -> 91.29239959 | M29: =IFERROR(VLOOKUP(A29,STAGIONALITA!$A$3:$M$106,13,FALSE)*P29,"") -> 82.58333869 | O29: Itap | P29: 1000
A30: Bosch | B30: =IFERROR(VLOOKUP(A30,STAGIONALITA!$A$3:$M$106,2,FALSE)*P30,"") -> 72.76153238 | C30: =IFERROR(VLOOKUP(A30,STAGIONALITA!$A$3:$M$106,3,FALSE)*P30,"") -> 49.81907736 | D30: =IFERROR(VLOOKUP(A30,STAGIONALITA!$A$3:$M$106,4,FALSE)*P30,"") -> 94.87311343 | E30: =IFERROR(VLOOKUP(A30,STAGIONALITA!$A$3:$M$106,5,FALSE)*P30,"") -> 108.5321314 | F30: =IFERROR(VLOOKUP(A30,STAGIONALITA!$A$3:$M$106,6,FALSE)*P30,"") -> 71.78066296 | G30: =IFERROR(VLOOKUP(A30,STAGIONALITA!$A$3:$M$106,7,FALSE)*P30,"") -> 56.10763677 | H30: =IFERROR(VLOOKUP(A30,STAGIONALITA!$A$3:$M$106,8,FALSE)*P30,"") -> 74.91980467 | I30: =IFERROR(VLOOKUP(A30,STAGIONALITA!$A$3:$M$106,9,FALSE)*P30,"") -> 13.27191225 | J30: =IFERROR(VLOOKUP(A30,STAGIONALITA!$A$3:$M$106,10,FALSE)*P30,"") -> 99.5620837 | K30: =IFERROR(VLOOKUP(A30,STAGIONALITA!$A$3:$M$106,11,FALSE)*P30,"") -> 225.7638444 | L30: =IFERROR(VLOOKUP(A30,STAGIONALITA!$A$3:$M$106,12,FALSE)*P30,"") -> 80.55121955 | M30: =IFERROR(VLOOKUP(A30,STAGIONALITA!$A$3:$M$106,13,FALSE)*P30,"") -> 52.05698116 | O30: Bosch | P30: 1000
A31: Valsir | B31: =IFERROR(VLOOKUP(A31,STAGIONALITA!$A$3:$M$106,2,FALSE)*P31,"") -> 101.7844489 | C31: =IFERROR(VLOOKUP(A31,STAGIONALITA!$A$3:$M$106,3,FALSE)*P31,"") -> 86.90584841 | D31: =IFERROR(VLOOKUP(A31,STAGIONALITA!$A$3:$M$106,4,FALSE)*P31,"") -> 130.6495409 | E31: =IFERROR(VLOOKUP(A31,STAGIONALITA!$A$3:$M$106,5,FALSE)*P31,"") -> 73.40575985 | F31: =IFERROR(VLOOKUP(A31,STAGIONALITA!$A$3:$M$106,6,FALSE)*P31,"") -> 85.68021657 | G31: =IFERROR(VLOOKUP(A31,STAGIONALITA!$A$3:$M$106,7,FALSE)*P31,"") -> 91.79245847 | H31: =IFERROR(VLOOKUP(A31,STAGIONALITA!$A$3:$M$106,8,FALSE)*P31,"") -> 95.49304485 | I31: =IFERROR(VLOOKUP(A31,STAGIONALITA!$A$3:$M$106,9,FALSE)*P31,"") -> 12.38513746 | J31: =IFERROR(VLOOKUP(A31,STAGIONALITA!$A$3:$M$106,10,FALSE)*P31,"") -> 88.49609739 | K31: =IFERROR(VLOOKUP(A31,STAGIONALITA!$A$3:$M$106,11,FALSE)*P31,"") -> 105.7993093 | L31: =IFERROR(VLOOKUP(A31,STAGIONALITA!$A$3:$M$106,12,FALSE)*P31,"") -> 65.73547372 | M31: =IFERROR(VLOOKUP(A31,STAGIONALITA!$A$3:$M$106,13,FALSE)*P31,"") -> 61.87266417 | O31: Valsir | P31: 1000
A32: Ebara | B32: =IFERROR(VLOOKUP(A32,STAGIONALITA!$A$3:$M$106,2,FALSE)*P32,"") -> 0 | C32: =IFERROR(VLOOKUP(A32,STAGIONALITA!$A$3:$M$106,3,FALSE)*P32,"") -> 181.8590768 | D32: =IFERROR(VLOOKUP(A32,STAGIONALITA!$A$3:$M$106,4,FALSE)*P32,"") -> 113.4099933 | E32: =IFERROR(VLOOKUP(A32,STAGIONALITA!$A$3:$M$106,5,FALSE)*P32,"") -> 85.44619085 | F32: =IFERROR(VLOOKUP(A32,STAGIONALITA!$A$3:$M$106,6,FALSE)*P32,"") -> 54.95669659 | G32: =IFERROR(VLOOKUP(A32,STAGIONALITA!$A$3:$M$106,7,FALSE)*P32,"") -> 126.6617818 | H32: =IFERROR(VLOOKUP(A32,STAGIONALITA!$A$3:$M$106,8,FALSE)*P32,"") -> 137.8813544 | I32: =IFERROR(VLOOKUP(A32,STAGIONALITA!$A$3:$M$106,9,FALSE)*P32,"") -> 28.79100068 | J32: =IFERROR(VLOOKUP(A32,STAGIONALITA!$A$3:$M$106,10,FALSE)*P32,"") -> 62.33494038 | K32: =IFERROR(VLOOKUP(A32,STAGIONALITA!$A$3:$M$106,11,FALSE)*P32,"") -> 80.3248792 | L32: =IFERROR(VLOOKUP(A32,STAGIONALITA!$A$3:$M$106,12,FALSE)*P32,"") -> 85.79176202 | M32: =IFERROR(VLOOKUP(A32,STAGIONALITA!$A$3:$M$106,13,FALSE)*P32,"") -> 42.54232395 | O32: Ebara | P32: 1000
A33: Carrier | B33: =IFERROR(VLOOKUP(A33,STAGIONALITA!$A$3:$M$106,2,FALSE)*P33,"") -> 0 | C33: =IFERROR(VLOOKUP(A33,STAGIONALITA!$A$3:$M$106,3,FALSE)*P33,"") -> 0 | D33: =IFERROR(VLOOKUP(A33,STAGIONALITA!$A$3:$M$106,4,FALSE)*P33,"") -> 0 | E33: =IFERROR(VLOOKUP(A33,STAGIONALITA!$A$3:$M$106,5,FALSE)*P33,"") -> 0 | F33: =IFERROR(VLOOKUP(A33,STAGIONALITA!$A$3:$M$106,6,FALSE)*P33,"") -> 307.0295277 | G33: =IFERROR(VLOOKUP(A33,STAGIONALITA!$A$3:$M$106,7,FALSE)*P33,"") -> 43.40671283 | H33: =IFERROR(VLOOKUP(A33,STAGIONALITA!$A$3:$M$106,8,FALSE)*P33,"") -> 3.236873971 | I33: =IFERROR(VLOOKUP(A33,STAGIONALITA!$A$3:$M$106,9,FALSE)*P33,"") -> 207.4859503 | J33: =IFERROR(VLOOKUP(A33,STAGIONALITA!$A$3:$M$106,10,FALSE)*P33,"") -> 86.68922905 | K33: =IFERROR(VLOOKUP(A33,STAGIONALITA!$A$3:$M$106,11,FALSE)*P33,"") -> 141.0640544 | L33: =IFERROR(VLOOKUP(A33,STAGIONALITA!$A$3:$M$106,12,FALSE)*P33,"") -> 134.0857578 | M33: =IFERROR(VLOOKUP(A33,STAGIONALITA!$A$3:$M$106,13,FALSE)*P33,"") -> 77.001894 | O33: Carrier | P33: 1000
A34: Rubinetterie Bresciane | B34: =IFERROR(VLOOKUP(A34,STAGIONALITA!$A$3:$M$106,2,FALSE)*P34,"") -> 55.26834881 | C34: =IFERROR(VLOOKUP(A34,STAGIONALITA!$A$3:$M$106,3,FALSE)*P34,"") -> 72.75031661 | D34: =IFERROR(VLOOKUP(A34,STAGIONALITA!$A$3:$M$106,4,FALSE)*P34,"") -> 140.7805817 | E34: =IFERROR(VLOOKUP(A34,STAGIONALITA!$A$3:$M$106,5,FALSE)*P34,"") -> 83.80305009 | F34: =IFERROR(VLOOKUP(A34,STAGIONALITA!$A$3:$M$106,6,FALSE)*P34,"") -> 72.86421295 | G34: =IFERROR(VLOOKUP(A34,STAGIONALITA!$A$3:$M$106,7,FALSE)*P34,"") -> 111.4529119 | H34: =IFERROR(VLOOKUP(A34,STAGIONALITA!$A$3:$M$106,8,FALSE)*P34,"") -> 88.35903774 | I34: =IFERROR(VLOOKUP(A34,STAGIONALITA!$A$3:$M$106,9,FALSE)*P34,"") -> 21.51103566 | J34: =IFERROR(VLOOKUP(A34,STAGIONALITA!$A$3:$M$106,10,FALSE)*P34,"") -> 82.45196133 | K34: =IFERROR(VLOOKUP(A34,STAGIONALITA!$A$3:$M$106,11,FALSE)*P34,"") -> 93.18559459 | L34: =IFERROR(VLOOKUP(A34,STAGIONALITA!$A$3:$M$106,12,FALSE)*P34,"") -> 109.7537626 | M34: =IFERROR(VLOOKUP(A34,STAGIONALITA!$A$3:$M$106,13,FALSE)*P34,"") -> 67.819186 | O34: Rubinetterie Bresciane | P34: 1000
A35: =IF(O35=0,"",O35) -> Neoperl | B35: =IFERROR(VLOOKUP(A35,STAGIONALITA!$A$3:$M$106,2,FALSE)*P35,"") -> 78.71819542 | C35: =IFERROR(VLOOKUP(A35,STAGIONALITA!$A$3:$M$106,3,FALSE)*P35,"") -> 96.99601542 | D35: =IFERROR(VLOOKUP(A35,STAGIONALITA!$A$3:$M$106,4,FALSE)*P35,"") -> 67.0751203 | E35: =IFERROR(VLOOKUP(A35,STAGIONALITA!$A$3:$M$106,5,FALSE)*P35,"") -> 106.479561 | F35: =IFERROR(VLOOKUP(A35,STAGIONALITA!$A$3:$M$106,6,FALSE)*P35,"") -> 105.236203 | G35: =IFERROR(VLOOKUP(A35,STAGIONALITA!$A$3:$M$106,7,FALSE)*P35,"") -> 89.11721211 | H35: =IFERROR(VLOOKUP(A35,STAGIONALITA!$A$3:$M$106,8,FALSE)*P35,"") -> 79.47141237 | I35: =IFERROR(VLOOKUP(A35,STAGIONALITA!$A$3:$M$106,9,FALSE)*P35,"") -> 44.74547851 | J35: =IFERROR(VLOOKUP(A35,STAGIONALITA!$A$3:$M$106,10,FALSE)*P35,"") -> 89.46586491 | K35: =IFERROR(VLOOKUP(A35,STAGIONALITA!$A$3:$M$106,11,FALSE)*P35,"") -> 108.4236444 | L35: =IFERROR(VLOOKUP(A35,STAGIONALITA!$A$3:$M$106,12,FALSE)*P35,"") -> 81.92009877 | M35: =IFERROR(VLOOKUP(A35,STAGIONALITA!$A$3:$M$106,13,FALSE)*P35,"") -> 52.35119382 | O35: Neoperl | P35: 1000
A36: System Group (Rototec) | B36: =IFERROR(VLOOKUP(A36,STAGIONALITA!$A$3:$M$106,2,FALSE)*P36,"") -> 65.68228189 | C36: =IFERROR(VLOOKUP(A36,STAGIONALITA!$A$3:$M$106,3,FALSE)*P36,"") -> 0 | D36: =IFERROR(VLOOKUP(A36,STAGIONALITA!$A$3:$M$106,4,FALSE)*P36,"") -> 111.0455727 | E36: =IFERROR(VLOOKUP(A36,STAGIONALITA!$A$3:$M$106,5,FALSE)*P36,"") -> 119.5802228 | F36: =IFERROR(VLOOKUP(A36,STAGIONALITA!$A$3:$M$106,6,FALSE)*P36,"") -> 121.3952006 | G36: =IFERROR(VLOOKUP(A36,STAGIONALITA!$A$3:$M$106,7,FALSE)*P36,"") -> 208.7467743 | H36: =IFERROR(VLOOKUP(A36,STAGIONALITA!$A$3:$M$106,8,FALSE)*P36,"") -> 119.2246495 | I36: =IFERROR(VLOOKUP(A36,STAGIONALITA!$A$3:$M$106,9,FALSE)*P36,"") -> 44.18873152 | J36: =IFERROR(VLOOKUP(A36,STAGIONALITA!$A$3:$M$106,10,FALSE)*P36,"") -> 78.72886697 | K36: =IFERROR(VLOOKUP(A36,STAGIONALITA!$A$3:$M$106,11,FALSE)*P36,"") -> 23.5097049 | L36: =IFERROR(VLOOKUP(A36,STAGIONALITA!$A$3:$M$106,12,FALSE)*P36,"") -> 92.07271752 | M36: =IFERROR(VLOOKUP(A36,STAGIONALITA!$A$3:$M$106,13,FALSE)*P36,"") -> 15.82527722 | O36: System Group (Rototec) | P36: 1000
A37: Tecnosystemi | B37: =IFERROR(VLOOKUP(A37,STAGIONALITA!$A$3:$M$106,2,FALSE)*P37,"") -> 59.50778305 | C37: =IFERROR(VLOOKUP(A37,STAGIONALITA!$A$3:$M$106,3,FALSE)*P37,"") -> 69.42872833 | D37: =IFERROR(VLOOKUP(A37,STAGIONALITA!$A$3:$M$106,4,FALSE)*P37,"") -> 112.6149952 | E37: =IFERROR(VLOOKUP(A37,STAGIONALITA!$A$3:$M$106,5,FALSE)*P37,"") -> 69.9525232 | F37: =IFERROR(VLOOKUP(A37,STAGIONALITA!$A$3:$M$106,6,FALSE)*P37,"") -> 146.9134771 | G37: =IFERROR(VLOOKUP(A37,STAGIONALITA!$A$3:$M$106,7,FALSE)*P37,"") -> 55.37516549 | H37: =IFERROR(VLOOKUP(A37,STAGIONALITA!$A$3:$M$106,8,FALSE)*P37,"") -> 96.27329207 | I37: =IFERROR(VLOOKUP(A37,STAGIONALITA!$A$3:$M$106,9,FALSE)*P37,"") -> 53.62333029 | J37: =IFERROR(VLOOKUP(A37,STAGIONALITA!$A$3:$M$106,10,FALSE)*P37,"") -> 103.8529286 | K37: =IFERROR(VLOOKUP(A37,STAGIONALITA!$A$3:$M$106,11,FALSE)*P37,"") -> 87.49670126 | L37: =IFERROR(VLOOKUP(A37,STAGIONALITA!$A$3:$M$106,12,FALSE)*P37,"") -> 105.0317573 | M37: =IFERROR(VLOOKUP(A37,STAGIONALITA!$A$3:$M$106,13,FALSE)*P37,"") -> 39.92931814 | O37: Tecnosystemi | P37: 1000
A38: Arredamenti Montegrappa | B38: =IFERROR(VLOOKUP(A38,STAGIONALITA!$A$3:$M$106,2,FALSE)*P38,"") -> 110.3357095 | C38: =IFERROR(VLOOKUP(A38,STAGIONALITA!$A$3:$M$106,3,FALSE)*P38,"") -> 32.95759674 | D38: =IFERROR(VLOOKUP(A38,STAGIONALITA!$A$3:$M$106,4,FALSE)*P38,"") -> 132.9170782 | E38: =IFERROR(VLOOKUP(A38,STAGIONALITA!$A$3:$M$106,5,FALSE)*P38,"") -> 37.16558225 | F38: =IFERROR(VLOOKUP(A38,STAGIONALITA!$A$3:$M$106,6,FALSE)*P38,"") -> 56.39394476 | G38: =IFERROR(VLOOKUP(A38,STAGIONALITA!$A$3:$M$106,7,FALSE)*P38,"") -> 193.6992976 | H38: =IFERROR(VLOOKUP(A38,STAGIONALITA!$A$3:$M$106,8,FALSE)*P38,"") -> 42.13375595 | I38: =IFERROR(VLOOKUP(A38,STAGIONALITA!$A$3:$M$106,9,FALSE)*P38,"") -> 29.73097888 | J38: =IFERROR(VLOOKUP(A38,STAGIONALITA!$A$3:$M$106,10,FALSE)*P38,"") -> 189.4268788 | K38: =IFERROR(VLOOKUP(A38,STAGIONALITA!$A$3:$M$106,11,FALSE)*P38,"") -> 76.97850284 | L38: =IFERROR(VLOOKUP(A38,STAGIONALITA!$A$3:$M$106,12,FALSE)*P38,"") -> 24.29752291 | M38: =IFERROR(VLOOKUP(A38,STAGIONALITA!$A$3:$M$106,13,FALSE)*P38,"") -> 73.96315163 | O38: Arredamenti Montegrappa | P38: 1000
A39: Atusa | B39: =IFERROR(VLOOKUP(A39,STAGIONALITA!$A$3:$M$106,2,FALSE)*P39,"") -> 56.37102347 | C39: =IFERROR(VLOOKUP(A39,STAGIONALITA!$A$3:$M$106,3,FALSE)*P39,"") -> 68.31343377 | D39: =IFERROR(VLOOKUP(A39,STAGIONALITA!$A$3:$M$106,4,FALSE)*P39,"") -> 81.94690243 | E39: =IFERROR(VLOOKUP(A39,STAGIONALITA!$A$3:$M$106,5,FALSE)*P39,"") -> 58.09740401 | F39: =IFERROR(VLOOKUP(A39,STAGIONALITA!$A$3:$M$106,6,FALSE)*P39,"") -> 68.13993623 | G39: =IFERROR(VLOOKUP(A39,STAGIONALITA!$A$3:$M$106,7,FALSE)*P39,"") -> 117.812569 | H39: =IFERROR(VLOOKUP(A39,STAGIONALITA!$A$3:$M$106,8,FALSE)*P39,"") -> 77.08026685 | I39: =IFERROR(VLOOKUP(A39,STAGIONALITA!$A$3:$M$106,9,FALSE)*P39,"") -> 48.32894221 | J39: =IFERROR(VLOOKUP(A39,STAGIONALITA!$A$3:$M$106,10,FALSE)*P39,"") -> 0 | K39: =IFERROR(VLOOKUP(A39,STAGIONALITA!$A$3:$M$106,11,FALSE)*P39,"") -> 135.8761558 | L39: =IFERROR(VLOOKUP(A39,STAGIONALITA!$A$3:$M$106,12,FALSE)*P39,"") -> 123.4171775 | M39: =IFERROR(VLOOKUP(A39,STAGIONALITA!$A$3:$M$106,13,FALSE)*P39,"") -> 164.6161887 | O39: Atusa | P39: 1000
A40: Cordivari | B40: =IFERROR(VLOOKUP(A40,STAGIONALITA!$A$3:$M$106,2,FALSE)*P40,"") -> 47.5053856 | C40: =IFERROR(VLOOKUP(A40,STAGIONALITA!$A$3:$M$106,3,FALSE)*P40,"") -> 66.20869753 | D40: =IFERROR(VLOOKUP(A40,STAGIONALITA!$A$3:$M$106,4,FALSE)*P40,"") -> 85.67446119 | E40: =IFERROR(VLOOKUP(A40,STAGIONALITA!$A$3:$M$106,5,FALSE)*P40,"") -> 87.96447648 | F40: =IFERROR(VLOOKUP(A40,STAGIONALITA!$A$3:$M$106,6,FALSE)*P40,"") -> 83.17164181 | G40: =IFERROR(VLOOKUP(A40,STAGIONALITA!$A$3:$M$106,7,FALSE)*P40,"") -> 86.75078605 | H40: =IFERROR(VLOOKUP(A40,STAGIONALITA!$A$3:$M$106,8,FALSE)*P40,"") -> 99.83849264 | I40: =IFERROR(VLOOKUP(A40,STAGIONALITA!$A$3:$M$106,9,FALSE)*P40,"") -> 45.75586945 | J40: =IFERROR(VLOOKUP(A40,STAGIONALITA!$A$3:$M$106,10,FALSE)*P40,"") -> 79.68456465 | K40: =IFERROR(VLOOKUP(A40,STAGIONALITA!$A$3:$M$106,11,FALSE)*P40,"") -> 100.4302527 | L40: =IFERROR(VLOOKUP(A40,STAGIONALITA!$A$3:$M$106,12,FALSE)*P40,"") -> 133.6746896 | M40: =IFERROR(VLOOKUP(A40,STAGIONALITA!$A$3:$M$106,13,FALSE)*P40,"") -> 83.34068225 | O40: Cordivari | P40: 1000
A41: Olimpia Splendid | B41: =IFERROR(VLOOKUP(A41,STAGIONALITA!$A$3:$M$106,2,FALSE)*P41,"") -> 38.99415507 | C41: =IFERROR(VLOOKUP(A41,STAGIONALITA!$A$3:$M$106,3,FALSE)*P41,"") -> 58.08897859 | D41: =IFERROR(VLOOKUP(A41,STAGIONALITA!$A$3:$M$106,4,FALSE)*P41,"") -> 94.06797743 | E41: =IFERROR(VLOOKUP(A41,STAGIONALITA!$A$3:$M$106,5,FALSE)*P41,"") -> 60.51999202 | F41: =IFERROR(VLOOKUP(A41,STAGIONALITA!$A$3:$M$106,6,FALSE)*P41,"") -> 83.50443704 | G41: =IFERROR(VLOOKUP(A41,STAGIONALITA!$A$3:$M$106,7,FALSE)*P41,"") -> 41.54409579 | H41: =IFERROR(VLOOKUP(A41,STAGIONALITA!$A$3:$M$106,8,FALSE)*P41,"") -> 109.5250254 | I41: =IFERROR(VLOOKUP(A41,STAGIONALITA!$A$3:$M$106,9,FALSE)*P41,"") -> 4.228914019 | J41: =IFERROR(VLOOKUP(A41,STAGIONALITA!$A$3:$M$106,10,FALSE)*P41,"") -> 163.1997034 | K41: =IFERROR(VLOOKUP(A41,STAGIONALITA!$A$3:$M$106,11,FALSE)*P41,"") -> 117.8114583 | L41: =IFERROR(VLOOKUP(A41,STAGIONALITA!$A$3:$M$106,12,FALSE)*P41,"") -> 164.5114013 | M41: =IFERROR(VLOOKUP(A41,STAGIONALITA!$A$3:$M$106,13,FALSE)*P41,"") -> 64.00386164 | O41: Olimpia Splendid | P41: 1000
A42: L'isolante K-Flex | B42: =IFERROR(VLOOKUP(A42,STAGIONALITA!$A$3:$M$106,2,FALSE)*P42,"") -> 32.40900725 | C42: =IFERROR(VLOOKUP(A42,STAGIONALITA!$A$3:$M$106,3,FALSE)*P42,"") -> 67.55411242 | D42: =IFERROR(VLOOKUP(A42,STAGIONALITA!$A$3:$M$106,4,FALSE)*P42,"") -> 107.0621062 | E42: =IFERROR(VLOOKUP(A42,STAGIONALITA!$A$3:$M$106,5,FALSE)*P42,"") -> 85.02915926 | F42: =IFERROR(VLOOKUP(A42,STAGIONALITA!$A$3:$M$106,6,FALSE)*P42,"") -> 68.00180087 | G42: =IFERROR(VLOOKUP(A42,STAGIONALITA!$A$3:$M$106,7,FALSE)*P42,"") -> 121.620247 | H42: =IFERROR(VLOOKUP(A42,STAGIONALITA!$A$3:$M$106,8,FALSE)*P42,"") -> 100.4376808 | I42: =IFERROR(VLOOKUP(A42,STAGIONALITA!$A$3:$M$106,9,FALSE)*P42,"") -> 34.67327109 | J42: =IFERROR(VLOOKUP(A42,STAGIONALITA!$A$3:$M$106,10,FALSE)*P42,"") -> 98.69541713 | K42: =IFERROR(VLOOKUP(A42,STAGIONALITA!$A$3:$M$106,11,FALSE)*P42,"") -> 171.7690224 | L42: =IFERROR(VLOOKUP(A42,STAGIONALITA!$A$3:$M$106,12,FALSE)*P42,"") -> 64.29112839 | M42: =IFERROR(VLOOKUP(A42,STAGIONALITA!$A$3:$M$106,13,FALSE)*P42,"") -> 48.45704718 | O42: L'isolante K-Flex | P42: 1000
B43: =IFERROR(VLOOKUP(A43,STAGIONALITA!$A$3:$M$106,2,FALSE)*P43,"") ->  | C43: =IFERROR(VLOOKUP(A43,STAGIONALITA!$A$3:$M$106,3,FALSE)*P43,"") ->  | D43: =IFERROR(VLOOKUP(A43,STAGIONALITA!$A$3:$M$106,4,FALSE)*P43,"") ->  | E43: =IFERROR(VLOOKUP(A43,STAGIONALITA!$A$3:$M$106,5,FALSE)*P43,"") ->  | F43: =IFERROR(VLOOKUP(A43,STAGIONALITA!$A$3:$M$106,6,FALSE)*P43,"") ->  | G43: =IFERROR(VLOOKUP(A43,STAGIONALITA!$A$3:$M$106,7,FALSE)*P43,"") ->  | H43: =IFERROR(VLOOKUP(A43,STAGIONALITA!$A$3:$M$106,8,FALSE)*P43,"") ->  | I43: =IFERROR(VLOOKUP(A43,STAGIONALITA!$A$3:$M$106,9,FALSE)*P43,"") ->  | J43: =IFERROR(VLOOKUP(A43,STAGIONALITA!$A$3:$M$106,10,FALSE)*P43,"") ->  | K43: =IFERROR(VLOOKUP(A43,STAGIONALITA!$A$3:$M$106,11,FALSE)*P43,"") ->  | L43: =IFERROR(VLOOKUP(A43,STAGIONALITA!$A$3:$M$106,12,FALSE)*P43,"") ->  | M43: =IFERROR(VLOOKUP(A43,STAGIONALITA!$A$3:$M$106,13,FALSE)*P43,"") -> 
B44: =IFERROR(VLOOKUP(A44,STAGIONALITA!$A$3:$M$106,2,FALSE)*P44,"") ->  | C44: =IFERROR(VLOOKUP(A44,STAGIONALITA!$A$3:$M$106,3,FALSE)*P44,"") ->  | D44: =IFERROR(VLOOKUP(A44,STAGIONALITA!$A$3:$M$106,4,FALSE)*P44,"") ->  | E44: =IFERROR(VLOOKUP(A44,STAGIONALITA!$A$3:$M$106,5,FALSE)*P44,"") ->  | F44: =IFERROR(VLOOKUP(A44,STAGIONALITA!$A$3:$M$106,6,FALSE)*P44,"") ->  | G44: =IFERROR(VLOOKUP(A44,STAGIONALITA!$A$3:$M$106,7,FALSE)*P44,"") ->  | H44: =IFERROR(VLOOKUP(A44,STAGIONALITA!$A$3:$M$106,8,FALSE)*P44,"") ->  | I44: =IFERROR(VLOOKUP(A44,STAGIONALITA!$A$3:$M$106,9,FALSE)*P44,"") ->  | J44: =IFERROR(VLOOKUP(A44,STAGIONALITA!$A$3:$M$106,10,FALSE)*P44,"") ->  | K44: =IFERROR(VLOOKUP(A44,STAGIONALITA!$A$3:$M$106,11,FALSE)*P44,"") ->  | L44: =IFERROR(VLOOKUP(A44,STAGIONALITA!$A$3:$M$106,12,FALSE)*P44,"") ->  | M44: =IFERROR(VLOOKUP(A44,STAGIONALITA!$A$3:$M$106,13,FALSE)*P44,"") -> 
B45: =IFERROR(VLOOKUP(A45,STAGIONALITA!$A$3:$M$106,2,FALSE)*P45,"") ->  | C45: =IFERROR(VLOOKUP(A45,STAGIONALITA!$A$3:$M$106,3,FALSE)*P45,"") ->  | D45: =IFERROR(VLOOKUP(A45,STAGIONALITA!$A$3:$M$106,4,FALSE)*P45,"") ->  | E45: =IFERROR(VLOOKUP(A45,STAGIONALITA!$A$3:$M$106,5,FALSE)*P45,"") ->  | F45: =IFERROR(VLOOKUP(A45,STAGIONALITA!$A$3:$M$106,6,FALSE)*P45,"") ->  | G45: =IFERROR(VLOOKUP(A45,STAGIONALITA!$A$3:$M$106,7,FALSE)*P45,"") ->  | H45: =IFERROR(VLOOKUP(A45,STAGIONALITA!$A$3:$M$106,8,FALSE)*P45,"") ->  | I45: =IFERROR(VLOOKUP(A45,STAGIONALITA!$A$3:$M$106,9,FALSE)*P45,"") ->  | J45: =IFERROR(VLOOKUP(A45,STAGIONALITA!$A$3:$M$106,10,FALSE)*P45,"") ->  | K45: =IFERROR(VLOOKUP(A45,STAGIONALITA!$A$3:$M$106,11,FALSE)*P45,"") ->  | L45: =IFERROR(VLOOKUP(A45,STAGIONALITA!$A$3:$M$106,12,FALSE)*P45,"") ->  | M45: =IFERROR(VLOOKUP(A45,STAGIONALITA!$A$3:$M$106,13,FALSE)*P45,"") -> 
B46: =IFERROR(VLOOKUP(A46,STAGIONALITA!$A$3:$M$106,2,FALSE)*P46,"") ->  | C46: =IFERROR(VLOOKUP(A46,STAGIONALITA!$A$3:$M$106,3,FALSE)*P46,"") ->  | D46: =IFERROR(VLOOKUP(A46,STAGIONALITA!$A$3:$M$106,4,FALSE)*P46,"") ->  | E46: =IFERROR(VLOOKUP(A46,STAGIONALITA!$A$3:$M$106,5,FALSE)*P46,"") ->  | F46: =IFERROR(VLOOKUP(A46,STAGIONALITA!$A$3:$M$106,6,FALSE)*P46,"") ->  | G46: =IFERROR(VLOOKUP(A46,STAGIONALITA!$A$3:$M$106,7,FALSE)*P46,"") ->  | H46: =IFERROR(VLOOKUP(A46,STAGIONALITA!$A$3:$M$106,8,FALSE)*P46,"") ->  | I46: =IFERROR(VLOOKUP(A46,STAGIONALITA!$A$3:$M$106,9,FALSE)*P46,"") ->  | J46: =IFERROR(VLOOKUP(A46,STAGIONALITA!$A$3:$M$106,10,FALSE)*P46,"") ->  | K46: =IFERROR(VLOOKUP(A46,STAGIONALITA!$A$3:$M$106,11,FALSE)*P46,"") ->  | L46: =IFERROR(VLOOKUP(A46,STAGIONALITA!$A$3:$M$106,12,FALSE)*P46,"") ->  | M46: =IFERROR(VLOOKUP(A46,STAGIONALITA!$A$3:$M$106,13,FALSE)*P46,"") -> 
B47: =IFERROR(VLOOKUP(A47,STAGIONALITA!$A$3:$M$106,2,FALSE)*P47,"") ->  | C47: =IFERROR(VLOOKUP(A47,STAGIONALITA!$A$3:$M$106,3,FALSE)*P47,"") ->  | D47: =IFERROR(VLOOKUP(A47,STAGIONALITA!$A$3:$M$106,4,FALSE)*P47,"") ->  | E47: =IFERROR(VLOOKUP(A47,STAGIONALITA!$A$3:$M$106,5,FALSE)*P47,"") ->  | F47: =IFERROR(VLOOKUP(A47,STAGIONALITA!$A$3:$M$106,6,FALSE)*P47,"") ->  | G47: =IFERROR(VLOOKUP(A47,STAGIONALITA!$A$3:$M$106,7,FALSE)*P47,"") ->  | H47: =IFERROR(VLOOKUP(A47,STAGIONALITA!$A$3:$M$106,8,FALSE)*P47,"") ->  | I47: =IFERROR(VLOOKUP(A47,STAGIONALITA!$A$3:$M$106,9,FALSE)*P47,"") ->  | J47: =IFERROR(VLOOKUP(A47,STAGIONALITA!$A$3:$M$106,10,FALSE)*P47,"") ->  | K47: =IFERROR(VLOOKUP(A47,STAGIONALITA!$A$3:$M$106,11,FALSE)*P47,"") ->  | L47: =IFERROR(VLOOKUP(A47,STAGIONALITA!$A$3:$M$106,12,FALSE)*P47,"") ->  | M47: =IFERROR(VLOOKUP(A47,STAGIONALITA!$A$3:$M$106,13,FALSE)*P47,"") -> 
B48: =IFERROR(VLOOKUP(A48,STAGIONALITA!$A$3:$M$106,2,FALSE)*P48,"") ->  | C48: =IFERROR(VLOOKUP(A48,STAGIONALITA!$A$3:$M$106,3,FALSE)*P48,"") ->  | D48: =IFERROR(VLOOKUP(A48,STAGIONALITA!$A$3:$M$106,4,FALSE)*P48,"") ->  | E48: =IFERROR(VLOOKUP(A48,STAGIONALITA!$A$3:$M$106,5,FALSE)*P48,"") ->  | F48: =IFERROR(VLOOKUP(A48,STAGIONALITA!$A$3:$M$106,6,FALSE)*P48,"") ->  | G48: =IFERROR(VLOOKUP(A48,STAGIONALITA!$A$3:$M$106,7,FALSE)*P48,"") ->  | H48: =IFERROR(VLOOKUP(A48,STAGIONALITA!$A$3:$M$106,8,FALSE)*P48,"") ->  | I48: =IFERROR(VLOOKUP(A48,STAGIONALITA!$A$3:$M$106,9,FALSE)*P48,"") ->  | J48: =IFERROR(VLOOKUP(A48,STAGIONALITA!$A$3:$M$106,10,FALSE)*P48,"") ->  | K48: =IFERROR(VLOOKUP(A48,STAGIONALITA!$A$3:$M$106,11,FALSE)*P48,"") ->  | L48: =IFERROR(VLOOKUP(A48,STAGIONALITA!$A$3:$M$106,12,FALSE)*P48,"") ->  | M48: =IFERROR(VLOOKUP(A48,STAGIONALITA!$A$3:$M$106,13,FALSE)*P48,"") -> 
B49: =IFERROR(VLOOKUP(A49,STAGIONALITA!$A$3:$M$106,2,FALSE)*P49,"") ->  | C49: =IFERROR(VLOOKUP(A49,STAGIONALITA!$A$3:$M$106,3,FALSE)*P49,"") ->  | D49: =IFERROR(VLOOKUP(A49,STAGIONALITA!$A$3:$M$106,4,FALSE)*P49,"") ->  | E49: =IFERROR(VLOOKUP(A49,STAGIONALITA!$A$3:$M$106,5,FALSE)*P49,"") ->  | F49: =IFERROR(VLOOKUP(A49,STAGIONALITA!$A$3:$M$106,6,FALSE)*P49,"") ->  | G49: =IFERROR(VLOOKUP(A49,STAGIONALITA!$A$3:$M$106,7,FALSE)*P49,"") ->  | H49: =IFERROR(VLOOKUP(A49,STAGIONALITA!$A$3:$M$106,8,FALSE)*P49,"") ->  | I49: =IFERROR(VLOOKUP(A49,STAGIONALITA!$A$3:$M$106,9,FALSE)*P49,"") ->  | J49: =IFERROR(VLOOKUP(A49,STAGIONALITA!$A$3:$M$106,10,FALSE)*P49,"") ->  | K49: =IFERROR(VLOOKUP(A49,STAGIONALITA!$A$3:$M$106,11,FALSE)*P49,"") ->  | L49: =IFERROR(VLOOKUP(A49,STAGIONALITA!$A$3:$M$106,12,FALSE)*P49,"") ->  | M49: =IFERROR(VLOOKUP(A49,STAGIONALITA!$A$3:$M$106,13,FALSE)*P49,"") -> 
B50: =IFERROR(VLOOKUP(A50,STAGIONALITA!$A$3:$M$106,2,FALSE)*P50,"") ->  | C50: =IFERROR(VLOOKUP(A50,STAGIONALITA!$A$3:$M$106,3,FALSE)*P50,"") ->  | D50: =IFERROR(VLOOKUP(A50,STAGIONALITA!$A$3:$M$106,4,FALSE)*P50,"") ->  | E50: =IFERROR(VLOOKUP(A50,STAGIONALITA!$A$3:$M$106,5,FALSE)*P50,"") ->  | F50: =IFERROR(VLOOKUP(A50,STAGIONALITA!$A$3:$M$106,6,FALSE)*P50,"") ->  | G50: =IFERROR(VLOOKUP(A50,STAGIONALITA!$A$3:$M$106,7,FALSE)*P50,"") ->  | H50: =IFERROR(VLOOKUP(A50,STAGIONALITA!$A$3:$M$106,8,FALSE)*P50,"") ->  | I50: =IFERROR(VLOOKUP(A50,STAGIONALITA!$A$3:$M$106,9,FALSE)*P50,"") ->  | J50: =IFERROR(VLOOKUP(A50,STAGIONALITA!$A$3:$M$106,10,FALSE)*P50,"") ->  | K50: =IFERROR(VLOOKUP(A50,STAGIONALITA!$A$3:$M$106,11,FALSE)*P50,"") ->  | L50: =IFERROR(VLOOKUP(A50,STAGIONALITA!$A$3:$M$106,12,FALSE)*P50,"") ->  | M50: =IFERROR(VLOOKUP(A50,STAGIONALITA!$A$3:$M$106,13,FALSE)*P50,"") -> 
B51: =IFERROR(VLOOKUP(A51,STAGIONALITA!$A$3:$M$106,2,FALSE)*P51,"") ->  | C51: =IFERROR(VLOOKUP(A51,STAGIONALITA!$A$3:$M$106,3,FALSE)*P51,"") ->  | D51: =IFERROR(VLOOKUP(A51,STAGIONALITA!$A$3:$M$106,4,FALSE)*P51,"") ->  | E51: =IFERROR(VLOOKUP(A51,STAGIONALITA!$A$3:$M$106,5,FALSE)*P51,"") ->  | F51: =IFERROR(VLOOKUP(A51,STAGIONALITA!$A$3:$M$106,6,FALSE)*P51,"") ->  | G51: =IFERROR(VLOOKUP(A51,STAGIONALITA!$A$3:$M$106,7,FALSE)*P51,"") ->  | H51: =IFERROR(VLOOKUP(A51,STAGIONALITA!$A$3:$M$106,8,FALSE)*P51,"") ->  | I51: =IFERROR(VLOOKUP(A51,STAGIONALITA!$A$3:$M$106,9,FALSE)*P51,"") ->  | J51: =IFERROR(VLOOKUP(A51,STAGIONALITA!$A$3:$M$106,10,FALSE)*P51,"") ->  | K51: =IFERROR(VLOOKUP(A51,STAGIONALITA!$A$3:$M$106,11,FALSE)*P51,"") ->  | L51: =IFERROR(VLOOKUP(A51,STAGIONALITA!$A$3:$M$106,12,FALSE)*P51,"") ->  | M51: =IFERROR(VLOOKUP(A51,STAGIONALITA!$A$3:$M$106,13,FALSE)*P51,"") -> 
B52: =IFERROR(VLOOKUP(A52,STAGIONALITA!$A$3:$M$106,2,FALSE)*P52,"") ->  | C52: =IFERROR(VLOOKUP(A52,STAGIONALITA!$A$3:$M$106,3,FALSE)*P52,"") ->  | D52: =IFERROR(VLOOKUP(A52,STAGIONALITA!$A$3:$M$106,4,FALSE)*P52,"") ->  | E52: =IFERROR(VLOOKUP(A52,STAGIONALITA!$A$3:$M$106,5,FALSE)*P52,"") ->  | F52: =IFERROR(VLOOKUP(A52,STAGIONALITA!$A$3:$M$106,6,FALSE)*P52,"") ->  | G52: =IFERROR(VLOOKUP(A52,STAGIONALITA!$A$3:$M$106,7,FALSE)*P52,"") ->  | H52: =IFERROR(VLOOKUP(A52,STAGIONALITA!$A$3:$M$106,8,FALSE)*P52,"") ->  | I52: =IFERROR(VLOOKUP(A52,STAGIONALITA!$A$3:$M$106,9,FALSE)*P52,"") ->  | J52: =IFERROR(VLOOKUP(A52,STAGIONALITA!$A$3:$M$106,10,FALSE)*P52,"") ->  | K52: =IFERROR(VLOOKUP(A52,STAGIONALITA!$A$3:$M$106,11,FALSE)*P52,"") ->  | L52: =IFERROR(VLOOKUP(A52,STAGIONALITA!$A$3:$M$106,12,FALSE)*P52,"") ->  | M52: =IFERROR(VLOOKUP(A52,STAGIONALITA!$A$3:$M$106,13,FALSE)*P52,"") -> 
B53: =IFERROR(VLOOKUP(A53,STAGIONALITA!$A$3:$M$106,2,FALSE)*P53,"") ->  | C53: =IFERROR(VLOOKUP(A53,STAGIONALITA!$A$3:$M$106,3,FALSE)*P53,"") ->  | D53: =IFERROR(VLOOKUP(A53,STAGIONALITA!$A$3:$M$106,4,FALSE)*P53,"") ->  | E53: =IFERROR(VLOOKUP(A53,STAGIONALITA!$A$3:$M$106,5,FALSE)*P53,"") ->  | F53: =IFERROR(VLOOKUP(A53,STAGIONALITA!$A$3:$M$106,6,FALSE)*P53,"") ->  | G53: =IFERROR(VLOOKUP(A53,STAGIONALITA!$A$3:$M$106,7,FALSE)*P53,"") ->  | H53: =IFERROR(VLOOKUP(A53,STAGIONALITA!$A$3:$M$106,8,FALSE)*P53,"") ->  | I53: =IFERROR(VLOOKUP(A53,STAGIONALITA!$A$3:$M$106,9,FALSE)*P53,"") ->  | J53: =IFERROR(VLOOKUP(A53,STAGIONALITA!$A$3:$M$106,10,FALSE)*P53,"") ->  | K53: =IFERROR(VLOOKUP(A53,STAGIONALITA!$A$3:$M$106,11,FALSE)*P53,"") ->  | L53: =IFERROR(VLOOKUP(A53,STAGIONALITA!$A$3:$M$106,12,FALSE)*P53,"") ->  | M53: =IFERROR(VLOOKUP(A53,STAGIONALITA!$A$3:$M$106,13,FALSE)*P53,"") -> 
B54: =IFERROR(VLOOKUP(A54,STAGIONALITA!$A$3:$M$106,2,FALSE)*P54,"") ->  | C54: =IFERROR(VLOOKUP(A54,STAGIONALITA!$A$3:$M$106,3,FALSE)*P54,"") ->  | D54: =IFERROR(VLOOKUP(A54,STAGIONALITA!$A$3:$M$106,4,FALSE)*P54,"") ->  | E54: =IFERROR(VLOOKUP(A54,STAGIONALITA!$A$3:$M$106,5,FALSE)*P54,"") ->  | F54: =IFERROR(VLOOKUP(A54,STAGIONALITA!$A$3:$M$106,6,FALSE)*P54,"") ->  | G54: =IFERROR(VLOOKUP(A54,STAGIONALITA!$A$3:$M$106,7,FALSE)*P54,"") ->  | H54: =IFERROR(VLOOKUP(A54,STAGIONALITA!$A$3:$M$106,8,FALSE)*P54,"") ->  | I54: =IFERROR(VLOOKUP(A54,STAGIONALITA!$A$3:$M$106,9,FALSE)*P54,"") ->  | J54: =IFERROR(VLOOKUP(A54,STAGIONALITA!$A$3:$M$106,10,FALSE)*P54,"") ->  | K54: =IFERROR(VLOOKUP(A54,STAGIONALITA!$A$3:$M$106,11,FALSE)*P54,"") ->  | L54: =IFERROR(VLOOKUP(A54,STAGIONALITA!$A$3:$M$106,12,FALSE)*P54,"") ->  | M54: =IFERROR(VLOOKUP(A54,STAGIONALITA!$A$3:$M$106,13,FALSE)*P54,"") -> 
B55: =IFERROR(VLOOKUP(A55,STAGIONALITA!$A$3:$M$106,2,FALSE)*P55,"") ->  | C55: =IFERROR(VLOOKUP(A55,STAGIONALITA!$A$3:$M$106,3,FALSE)*P55,"") ->  | D55: =IFERROR(VLOOKUP(A55,STAGIONALITA!$A$3:$M$106,4,FALSE)*P55,"") ->  | E55: =IFERROR(VLOOKUP(A55,STAGIONALITA!$A$3:$M$106,5,FALSE)*P55,"") ->  | F55: =IFERROR(VLOOKUP(A55,STAGIONALITA!$A$3:$M$106,6,FALSE)*P55,"") ->  | G55: =IFERROR(VLOOKUP(A55,STAGIONALITA!$A$3:$M$106,7,FALSE)*P55,"") ->  | H55: =IFERROR(VLOOKUP(A55,STAGIONALITA!$A$3:$M$106,8,FALSE)*P55,"") ->  | I55: =IFERROR(VLOOKUP(A55,STAGIONALITA!$A$3:$M$106,9,FALSE)*P55,"") ->  | J55: =IFERROR(VLOOKUP(A55,STAGIONALITA!$A$3:$M$106,10,FALSE)*P55,"") ->  | K55: =IFERROR(VLOOKUP(A55,STAGIONALITA!$A$3:$M$106,11,FALSE)*P55,"") ->  | L55: =IFERROR(VLOOKUP(A55,STAGIONALITA!$A$3:$M$106,12,FALSE)*P55,"") ->  | M55: =IFERROR(VLOOKUP(A55,STAGIONALITA!$A$3:$M$106,13,FALSE)*P55,"") -> 
B56: =IFERROR(VLOOKUP(A56,STAGIONALITA!$A$3:$M$106,2,FALSE)*P56,"") ->  | C56: =IFERROR(VLOOKUP(A56,STAGIONALITA!$A$3:$M$106,3,FALSE)*P56,"") ->  | D56: =IFERROR(VLOOKUP(A56,STAGIONALITA!$A$3:$M$106,4,FALSE)*P56,"") ->  | E56: =IFERROR(VLOOKUP(A56,STAGIONALITA!$A$3:$M$106,5,FALSE)*P56,"") ->  | F56: =IFERROR(VLOOKUP(A56,STAGIONALITA!$A$3:$M$106,6,FALSE)*P56,"") ->  | G56: =IFERROR(VLOOKUP(A56,STAGIONALITA!$A$3:$M$106,7,FALSE)*P56,"") ->  | H56: =IFERROR(VLOOKUP(A56,STAGIONALITA!$A$3:$M$106,8,FALSE)*P56,"") ->  | I56: =IFERROR(VLOOKUP(A56,STAGIONALITA!$A$3:$M$106,9,FALSE)*P56,"") ->  | J56: =IFERROR(VLOOKUP(A56,STAGIONALITA!$A$3:$M$106,10,FALSE)*P56,"") ->  | K56: =IFERROR(VLOOKUP(A56,STAGIONALITA!$A$3:$M$106,11,FALSE)*P56,"") ->  | L56: =IFERROR(VLOOKUP(A56,STAGIONALITA!$A$3:$M$106,12,FALSE)*P56,"") ->  | M56: =IFERROR(VLOOKUP(A56,STAGIONALITA!$A$3:$M$106,13,FALSE)*P56,"") -> 
B57: =IFERROR(VLOOKUP(A57,STAGIONALITA!$A$3:$M$106,2,FALSE)*P57,"") ->  | C57: =IFERROR(VLOOKUP(A57,STAGIONALITA!$A$3:$M$106,3,FALSE)*P57,"") ->  | D57: =IFERROR(VLOOKUP(A57,STAGIONALITA!$A$3:$M$106,4,FALSE)*P57,"") ->  | E57: =IFERROR(VLOOKUP(A57,STAGIONALITA!$A$3:$M$106,5,FALSE)*P57,"") ->  | F57: =IFERROR(VLOOKUP(A57,STAGIONALITA!$A$3:$M$106,6,FALSE)*P57,"") ->  | G57: =IFERROR(VLOOKUP(A57,STAGIONALITA!$A$3:$M$106,7,FALSE)*P57,"") ->  | H57: =IFERROR(VLOOKUP(A57,STAGIONALITA!$A$3:$M$106,8,FALSE)*P57,"") ->  | I57: =IFERROR(VLOOKUP(A57,STAGIONALITA!$A$3:$M$106,9,FALSE)*P57,"") ->  | J57: =IFERROR(VLOOKUP(A57,STAGIONALITA!$A$3:$M$106,10,FALSE)*P57,"") ->  | K57: =IFERROR(VLOOKUP(A57,STAGIONALITA!$A$3:$M$106,11,FALSE)*P57,"") ->  | L57: =IFERROR(VLOOKUP(A57,STAGIONALITA!$A$3:$M$106,12,FALSE)*P57,"") ->  | M57: =IFERROR(VLOOKUP(A57,STAGIONALITA!$A$3:$M$106,13,FALSE)*P57,"") -> 
B58: =IFERROR(VLOOKUP(A58,STAGIONALITA!$A$3:$M$106,2,FALSE)*P58,"") ->  | C58: =IFERROR(VLOOKUP(A58,STAGIONALITA!$A$3:$M$106,3,FALSE)*P58,"") ->  | D58: =IFERROR(VLOOKUP(A58,STAGIONALITA!$A$3:$M$106,4,FALSE)*P58,"") ->  | E58: =IFERROR(VLOOKUP(A58,STAGIONALITA!$A$3:$M$106,5,FALSE)*P58,"") ->  | F58: =IFERROR(VLOOKUP(A58,STAGIONALITA!$A$3:$M$106,6,FALSE)*P58,"") ->  | G58: =IFERROR(VLOOKUP(A58,STAGIONALITA!$A$3:$M$106,7,FALSE)*P58,"") ->  | H58: =IFERROR(VLOOKUP(A58,STAGIONALITA!$A$3:$M$106,8,FALSE)*P58,"") ->  | I58: =IFERROR(VLOOKUP(A58,STAGIONALITA!$A$3:$M$106,9,FALSE)*P58,"") ->  | J58: =IFERROR(VLOOKUP(A58,STAGIONALITA!$A$3:$M$106,10,FALSE)*P58,"") ->  | K58: =IFERROR(VLOOKUP(A58,STAGIONALITA!$A$3:$M$106,11,FALSE)*P58,"") ->  | L58: =IFERROR(VLOOKUP(A58,STAGIONALITA!$A$3:$M$106,12,FALSE)*P58,"") ->  | M58: =IFERROR(VLOOKUP(A58,STAGIONALITA!$A$3:$M$106,13,FALSE)*P58,"") -> 
B59: =IFERROR(VLOOKUP(A59,STAGIONALITA!$A$3:$M$106,2,FALSE)*P59,"") ->  | C59: =IFERROR(VLOOKUP(A59,STAGIONALITA!$A$3:$M$106,3,FALSE)*P59,"") ->  | D59: =IFERROR(VLOOKUP(A59,STAGIONALITA!$A$3:$M$106,4,FALSE)*P59,"") ->  | E59: =IFERROR(VLOOKUP(A59,STAGIONALITA!$A$3:$M$106,5,FALSE)*P59,"") ->  | F59: =IFERROR(VLOOKUP(A59,STAGIONALITA!$A$3:$M$106,6,FALSE)*P59,"") ->  | G59: =IFERROR(VLOOKUP(A59,STAGIONALITA!$A$3:$M$106,7,FALSE)*P59,"") ->  | H59: =IFERROR(VLOOKUP(A59,STAGIONALITA!$A$3:$M$106,8,FALSE)*P59,"") ->  | I59: =IFERROR(VLOOKUP(A59,STAGIONALITA!$A$3:$M$106,9,FALSE)*P59,"") ->  | J59: =IFERROR(VLOOKUP(A59,STAGIONALITA!$A$3:$M$106,10,FALSE)*P59,"") ->  | K59: =IFERROR(VLOOKUP(A59,STAGIONALITA!$A$3:$M$106,11,FALSE)*P59,"") ->  | L59: =IFERROR(VLOOKUP(A59,STAGIONALITA!$A$3:$M$106,12,FALSE)*P59,"") ->  | M59: =IFERROR(VLOOKUP(A59,STAGIONALITA!$A$3:$M$106,13,FALSE)*P59,"") -> 
B60: =IFERROR(VLOOKUP(A60,STAGIONALITA!$A$3:$M$106,2,FALSE)*P60,"") ->  | C60: =IFERROR(VLOOKUP(A60,STAGIONALITA!$A$3:$M$106,3,FALSE)*P60,"") ->  | D60: =IFERROR(VLOOKUP(A60,STAGIONALITA!$A$3:$M$106,4,FALSE)*P60,"") ->  | E60: =IFERROR(VLOOKUP(A60,STAGIONALITA!$A$3:$M$106,5,FALSE)*P60,"") ->  | F60: =IFERROR(VLOOKUP(A60,STAGIONALITA!$A$3:$M$106,6,FALSE)*P60,"") ->  | G60: =IFERROR(VLOOKUP(A60,STAGIONALITA!$A$3:$M$106,7,FALSE)*P60,"") ->  | H60: =IFERROR(VLOOKUP(A60,STAGIONALITA!$A$3:$M$106,8,FALSE)*P60,"") ->  | I60: =IFERROR(VLOOKUP(A60,STAGIONALITA!$A$3:$M$106,9,FALSE)*P60,"") ->  | J60: =IFERROR(VLOOKUP(A60,STAGIONALITA!$A$3:$M$106,10,FALSE)*P60,"") ->  | K60: =IFERROR(VLOOKUP(A60,STAGIONALITA!$A$3:$M$106,11,FALSE)*P60,"") ->  | L60: =IFERROR(VLOOKUP(A60,STAGIONALITA!$A$3:$M$106,12,FALSE)*P60,"") ->  | M60: =IFERROR(VLOOKUP(A60,STAGIONALITA!$A$3:$M$106,13,FALSE)*P60,"") -> 
B61: =IFERROR(VLOOKUP(A61,STAGIONALITA!$A$3:$M$106,2,FALSE)*P61,"") ->  | C61: =IFERROR(VLOOKUP(A61,STAGIONALITA!$A$3:$M$106,3,FALSE)*P61,"") ->  | D61: =IFERROR(VLOOKUP(A61,STAGIONALITA!$A$3:$M$106,4,FALSE)*P61,"") ->  | E61: =IFERROR(VLOOKUP(A61,STAGIONALITA!$A$3:$M$106,5,FALSE)*P61,"") ->  | F61: =IFERROR(VLOOKUP(A61,STAGIONALITA!$A$3:$M$106,6,FALSE)*P61,"") ->  | G61: =IFERROR(VLOOKUP(A61,STAGIONALITA!$A$3:$M$106,7,FALSE)*P61,"") ->  | H61: =IFERROR(VLOOKUP(A61,STAGIONALITA!$A$3:$M$106,8,FALSE)*P61,"") ->  | I61: =IFERROR(VLOOKUP(A61,STAGIONALITA!$A$3:$M$106,9,FALSE)*P61,"") ->  | J61: =IFERROR(VLOOKUP(A61,STAGIONALITA!$A$3:$M$106,10,FALSE)*P61,"") ->  | K61: =IFERROR(VLOOKUP(A61,STAGIONALITA!$A$3:$M$106,11,FALSE)*P61,"") ->  | L61: =IFERROR(VLOOKUP(A61,STAGIONALITA!$A$3:$M$106,12,FALSE)*P61,"") ->  | M61: =IFERROR(VLOOKUP(A61,STAGIONALITA!$A$3:$M$106,13,FALSE)*P61,"") -> 
B62: =IFERROR(VLOOKUP(A62,STAGIONALITA!$A$3:$M$106,2,FALSE)*P62,"") ->  | C62: =IFERROR(VLOOKUP(A62,STAGIONALITA!$A$3:$M$106,3,FALSE)*P62,"") ->  | D62: =IFERROR(VLOOKUP(A62,STAGIONALITA!$A$3:$M$106,4,FALSE)*P62,"") ->  | E62: =IFERROR(VLOOKUP(A62,STAGIONALITA!$A$3:$M$106,5,FALSE)*P62,"") ->  | F62: =IFERROR(VLOOKUP(A62,STAGIONALITA!$A$3:$M$106,6,FALSE)*P62,"") ->  | G62: =IFERROR(VLOOKUP(A62,STAGIONALITA!$A$3:$M$106,7,FALSE)*P62,"") ->  | H62: =IFERROR(VLOOKUP(A62,STAGIONALITA!$A$3:$M$106,8,FALSE)*P62,"") ->  | I62: =IFERROR(VLOOKUP(A62,STAGIONALITA!$A$3:$M$106,9,FALSE)*P62,"") ->  | J62: =IFERROR(VLOOKUP(A62,STAGIONALITA!$A$3:$M$106,10,FALSE)*P62,"") ->  | K62: =IFERROR(VLOOKUP(A62,STAGIONALITA!$A$3:$M$106,11,FALSE)*P62,"") ->  | L62: =IFERROR(VLOOKUP(A62,STAGIONALITA!$A$3:$M$106,12,FALSE)*P62,"") ->  | M62: =IFERROR(VLOOKUP(A62,STAGIONALITA!$A$3:$M$106,13,FALSE)*P62,"") -> 
B63: =IFERROR(VLOOKUP(A63,STAGIONALITA!$A$3:$M$106,2,FALSE)*P63,"") ->  | C63: =IFERROR(VLOOKUP(A63,STAGIONALITA!$A$3:$M$106,3,FALSE)*P63,"") ->  | D63: =IFERROR(VLOOKUP(A63,STAGIONALITA!$A$3:$M$106,4,FALSE)*P63,"") ->  | E63: =IFERROR(VLOOKUP(A63,STAGIONALITA!$A$3:$M$106,5,FALSE)*P63,"") ->  | F63: =IFERROR(VLOOKUP(A63,STAGIONALITA!$A$3:$M$106,6,FALSE)*P63,"") ->  | G63: =IFERROR(VLOOKUP(A63,STAGIONALITA!$A$3:$M$106,7,FALSE)*P63,"") ->  | H63: =IFERROR(VLOOKUP(A63,STAGIONALITA!$A$3:$M$106,8,FALSE)*P63,"") ->  | I63: =IFERROR(VLOOKUP(A63,STAGIONALITA!$A$3:$M$106,9,FALSE)*P63,"") ->  | J63: =IFERROR(VLOOKUP(A63,STAGIONALITA!$A$3:$M$106,10,FALSE)*P63,"") ->  | K63: =IFERROR(VLOOKUP(A63,STAGIONALITA!$A$3:$M$106,11,FALSE)*P63,"") ->  | L63: =IFERROR(VLOOKUP(A63,STAGIONALITA!$A$3:$M$106,12,FALSE)*P63,"") ->  | M63: =IFERROR(VLOOKUP(A63,STAGIONALITA!$A$3:$M$106,13,FALSE)*P63,"") -> 
B64: =IFERROR(VLOOKUP(A64,STAGIONALITA!$A$3:$M$106,2,FALSE)*P64,"") ->  | C64: =IFERROR(VLOOKUP(A64,STAGIONALITA!$A$3:$M$106,3,FALSE)*P64,"") ->  | D64: =IFERROR(VLOOKUP(A64,STAGIONALITA!$A$3:$M$106,4,FALSE)*P64,"") ->  | E64: =IFERROR(VLOOKUP(A64,STAGIONALITA!$A$3:$M$106,5,FALSE)*P64,"") ->  | F64: =IFERROR(VLOOKUP(A64,STAGIONALITA!$A$3:$M$106,6,FALSE)*P64,"") ->  | G64: =IFERROR(VLOOKUP(A64,STAGIONALITA!$A$3:$M$106,7,FALSE)*P64,"") ->  | H64: =IFERROR(VLOOKUP(A64,STAGIONALITA!$A$3:$M$106,8,FALSE)*P64,"") ->  | I64: =IFERROR(VLOOKUP(A64,STAGIONALITA!$A$3:$M$106,9,FALSE)*P64,"") ->  | J64: =IFERROR(VLOOKUP(A64,STAGIONALITA!$A$3:$M$106,10,FALSE)*P64,"") ->  | K64: =IFERROR(VLOOKUP(A64,STAGIONALITA!$A$3:$M$106,11,FALSE)*P64,"") ->  | L64: =IFERROR(VLOOKUP(A64,STAGIONALITA!$A$3:$M$106,12,FALSE)*P64,"") ->  | M64: =IFERROR(VLOOKUP(A64,STAGIONALITA!$A$3:$M$106,13,FALSE)*P64,"") -> 
B65: =IFERROR(VLOOKUP(A65,STAGIONALITA!$A$3:$M$106,2,FALSE)*P65,"") ->  | C65: =IFERROR(VLOOKUP(A65,STAGIONALITA!$A$3:$M$106,3,FALSE)*P65,"") ->  | D65: =IFERROR(VLOOKUP(A65,STAGIONALITA!$A$3:$M$106,4,FALSE)*P65,"") ->  | E65: =IFERROR(VLOOKUP(A65,STAGIONALITA!$A$3:$M$106,5,FALSE)*P65,"") ->  | F65: =IFERROR(VLOOKUP(A65,STAGIONALITA!$A$3:$M$106,6,FALSE)*P65,"") ->  | G65: =IFERROR(VLOOKUP(A65,STAGIONALITA!$A$3:$M$106,7,FALSE)*P65,"") ->  | H65: =IFERROR(VLOOKUP(A65,STAGIONALITA!$A$3:$M$106,8,FALSE)*P65,"") ->  | I65: =IFERROR(VLOOKUP(A65,STAGIONALITA!$A$3:$M$106,9,FALSE)*P65,"") ->  | J65: =IFERROR(VLOOKUP(A65,STAGIONALITA!$A$3:$M$106,10,FALSE)*P65,"") ->  | K65: =IFERROR(VLOOKUP(A65,STAGIONALITA!$A$3:$M$106,11,FALSE)*P65,"") ->  | L65: =IFERROR(VLOOKUP(A65,STAGIONALITA!$A$3:$M$106,12,FALSE)*P65,"") ->  | M65: =IFERROR(VLOOKUP(A65,STAGIONALITA!$A$3:$M$106,13,FALSE)*P65,"") -> 
B66: =IFERROR(VLOOKUP(A66,STAGIONALITA!$A$3:$M$106,2,FALSE)*P66,"") ->  | C66: =IFERROR(VLOOKUP(A66,STAGIONALITA!$A$3:$M$106,3,FALSE)*P66,"") ->  | D66: =IFERROR(VLOOKUP(A66,STAGIONALITA!$A$3:$M$106,4,FALSE)*P66,"") ->  | E66: =IFERROR(VLOOKUP(A66,STAGIONALITA!$A$3:$M$106,5,FALSE)*P66,"") ->  | F66: =IFERROR(VLOOKUP(A66,STAGIONALITA!$A$3:$M$106,6,FALSE)*P66,"") ->  | G66: =IFERROR(VLOOKUP(A66,STAGIONALITA!$A$3:$M$106,7,FALSE)*P66,"") ->  | H66: =IFERROR(VLOOKUP(A66,STAGIONALITA!$A$3:$M$106,8,FALSE)*P66,"") ->  | I66: =IFERROR(VLOOKUP(A66,STAGIONALITA!$A$3:$M$106,9,FALSE)*P66,"") ->  | J66: =IFERROR(VLOOKUP(A66,STAGIONALITA!$A$3:$M$106,10,FALSE)*P66,"") ->  | K66: =IFERROR(VLOOKUP(A66,STAGIONALITA!$A$3:$M$106,11,FALSE)*P66,"") ->  | L66: =IFERROR(VLOOKUP(A66,STAGIONALITA!$A$3:$M$106,12,FALSE)*P66,"") ->  | M66: =IFERROR(VLOOKUP(A66,STAGIONALITA!$A$3:$M$106,13,FALSE)*P66,"") -> 
A67: =IF(O67=0,"",O67) ->  | B67: =IFERROR(VLOOKUP(A67,STAGIONALITA!$A$3:$M$106,2,FALSE)*P67,"") ->  | C67: =IFERROR(VLOOKUP(A67,STAGIONALITA!$A$3:$M$106,3,FALSE)*P67,"") ->  | D67: =IFERROR(VLOOKUP(A67,STAGIONALITA!$A$3:$M$106,4,FALSE)*P67,"") ->  | E67: =IFERROR(VLOOKUP(A67,STAGIONALITA!$A$3:$M$106,5,FALSE)*P67,"") ->  | F67: =IFERROR(VLOOKUP(A67,STAGIONALITA!$A$3:$M$106,6,FALSE)*P67,"") ->  | G67: =IFERROR(VLOOKUP(A67,STAGIONALITA!$A$3:$M$106,7,FALSE)*P67,"") ->  | H67: =IFERROR(VLOOKUP(A67,STAGIONALITA!$A$3:$M$106,8,FALSE)*P67,"") ->  | I67: =IFERROR(VLOOKUP(A67,STAGIONALITA!$A$3:$M$106,9,FALSE)*P67,"") ->  | J67: =IFERROR(VLOOKUP(A67,STAGIONALITA!$A$3:$M$106,10,FALSE)*P67,"") ->  | K67: =IFERROR(VLOOKUP(A67,STAGIONALITA!$A$3:$M$106,11,FALSE)*P67,"") ->  | L67: =IFERROR(VLOOKUP(A67,STAGIONALITA!$A$3:$M$106,12,FALSE)*P67,"") ->  | M67: =IFERROR(VLOOKUP(A67,STAGIONALITA!$A$3:$M$106,13,FALSE)*P67,"") -> 
B68: =IFERROR(VLOOKUP(A68,STAGIONALITA!$A$3:$M$106,2,FALSE)*P68,"") ->  | C68: =IFERROR(VLOOKUP(A68,STAGIONALITA!$A$3:$M$106,3,FALSE)*P68,"") ->  | D68: =IFERROR(VLOOKUP(A68,STAGIONALITA!$A$3:$M$106,4,FALSE)*P68,"") ->  | E68: =IFERROR(VLOOKUP(A68,STAGIONALITA!$A$3:$M$106,5,FALSE)*P68,"") ->  | F68: =IFERROR(VLOOKUP(A68,STAGIONALITA!$A$3:$M$106,6,FALSE)*P68,"") ->  | G68: =IFERROR(VLOOKUP(A68,STAGIONALITA!$A$3:$M$106,7,FALSE)*P68,"") ->  | H68: =IFERROR(VLOOKUP(A68,STAGIONALITA!$A$3:$M$106,8,FALSE)*P68,"") ->  | I68: =IFERROR(VLOOKUP(A68,STAGIONALITA!$A$3:$M$106,9,FALSE)*P68,"") ->  | J68: =IFERROR(VLOOKUP(A68,STAGIONALITA!$A$3:$M$106,10,FALSE)*P68,"") ->  | K68: =IFERROR(VLOOKUP(A68,STAGIONALITA!$A$3:$M$106,11,FALSE)*P68,"") ->  | L68: =IFERROR(VLOOKUP(A68,STAGIONALITA!$A$3:$M$106,12,FALSE)*P68,"") ->  | M68: =IFERROR(VLOOKUP(A68,STAGIONALITA!$A$3:$M$106,13,FALSE)*P68,"") -> 
B69: =IFERROR(VLOOKUP(A69,STAGIONALITA!$A$3:$M$106,2,FALSE)*P69,"") ->  | C69: =IFERROR(VLOOKUP(A69,STAGIONALITA!$A$3:$M$106,3,FALSE)*P69,"") ->  | D69: =IFERROR(VLOOKUP(A69,STAGIONALITA!$A$3:$M$106,4,FALSE)*P69,"") ->  | E69: =IFERROR(VLOOKUP(A69,STAGIONALITA!$A$3:$M$106,5,FALSE)*P69,"") ->  | F69: =IFERROR(VLOOKUP(A69,STAGIONALITA!$A$3:$M$106,6,FALSE)*P69,"") ->  | G69: =IFERROR(VLOOKUP(A69,STAGIONALITA!$A$3:$M$106,7,FALSE)*P69,"") ->  | H69: =IFERROR(VLOOKUP(A69,STAGIONALITA!$A$3:$M$106,8,FALSE)*P69,"") ->  | I69: =IFERROR(VLOOKUP(A69,STAGIONALITA!$A$3:$M$106,9,FALSE)*P69,"") ->  | J69: =IFERROR(VLOOKUP(A69,STAGIONALITA!$A$3:$M$106,10,FALSE)*P69,"") ->  | K69: =IFERROR(VLOOKUP(A69,STAGIONALITA!$A$3:$M$106,11,FALSE)*P69,"") ->  | L69: =IFERROR(VLOOKUP(A69,STAGIONALITA!$A$3:$M$106,12,FALSE)*P69,"") ->  | M69: =IFERROR(VLOOKUP(A69,STAGIONALITA!$A$3:$M$106,13,FALSE)*P69,"") -> 
B70: =IFERROR(VLOOKUP(A70,STAGIONALITA!$A$3:$M$106,2,FALSE)*P70,"") ->  | C70: =IFERROR(VLOOKUP(A70,STAGIONALITA!$A$3:$M$106,3,FALSE)*P70,"") ->  | D70: =IFERROR(VLOOKUP(A70,STAGIONALITA!$A$3:$M$106,4,FALSE)*P70,"") ->  | E70: =IFERROR(VLOOKUP(A70,STAGIONALITA!$A$3:$M$106,5,FALSE)*P70,"") ->  | F70: =IFERROR(VLOOKUP(A70,STAGIONALITA!$A$3:$M$106,6,FALSE)*P70,"") ->  | G70: =IFERROR(VLOOKUP(A70,STAGIONALITA!$A$3:$M$106,7,FALSE)*P70,"") ->  | H70: =IFERROR(VLOOKUP(A70,STAGIONALITA!$A$3:$M$106,8,FALSE)*P70,"") ->  | I70: =IFERROR(VLOOKUP(A70,STAGIONALITA!$A$3:$M$106,9,FALSE)*P70,"") ->  | J70: =IFERROR(VLOOKUP(A70,STAGIONALITA!$A$3:$M$106,10,FALSE)*P70,"") ->  | K70: =IFERROR(VLOOKUP(A70,STAGIONALITA!$A$3:$M$106,11,FALSE)*P70,"") ->  | L70: =IFERROR(VLOOKUP(A70,STAGIONALITA!$A$3:$M$106,12,FALSE)*P70,"") ->  | M70: =IFERROR(VLOOKUP(A70,STAGIONALITA!$A$3:$M$106,13,FALSE)*P70,"") -> 
B71: =IFERROR(VLOOKUP(A71,STAGIONALITA!$A$3:$M$106,2,FALSE)*P71,"") ->  | C71: =IFERROR(VLOOKUP(A71,STAGIONALITA!$A$3:$M$106,3,FALSE)*P71,"") ->  | D71: =IFERROR(VLOOKUP(A71,STAGIONALITA!$A$3:$M$106,4,FALSE)*P71,"") ->  | E71: =IFERROR(VLOOKUP(A71,STAGIONALITA!$A$3:$M$106,5,FALSE)*P71,"") ->  | F71: =IFERROR(VLOOKUP(A71,STAGIONALITA!$A$3:$M$106,6,FALSE)*P71,"") ->  | G71: =IFERROR(VLOOKUP(A71,STAGIONALITA!$A$3:$M$106,7,FALSE)*P71,"") ->  | H71: =IFERROR(VLOOKUP(A71,STAGIONALITA!$A$3:$M$106,8,FALSE)*P71,"") ->  | I71: =IFERROR(VLOOKUP(A71,STAGIONALITA!$A$3:$M$106,9,FALSE)*P71,"") ->  | J71: =IFERROR(VLOOKUP(A71,STAGIONALITA!$A$3:$M$106,10,FALSE)*P71,"") ->  | K71: =IFERROR(VLOOKUP(A71,STAGIONALITA!$A$3:$M$106,11,FALSE)*P71,"") ->  | L71: =IFERROR(VLOOKUP(A71,STAGIONALITA!$A$3:$M$106,12,FALSE)*P71,"") ->  | M71: =IFERROR(VLOOKUP(A71,STAGIONALITA!$A$3:$M$106,13,FALSE)*P71,"") -> 
B72: =IFERROR(VLOOKUP(A72,STAGIONALITA!$A$3:$M$106,2,FALSE)*P72,"") ->  | C72: =IFERROR(VLOOKUP(A72,STAGIONALITA!$A$3:$M$106,3,FALSE)*P72,"") ->  | D72: =IFERROR(VLOOKUP(A72,STAGIONALITA!$A$3:$M$106,4,FALSE)*P72,"") ->  | E72: =IFERROR(VLOOKUP(A72,STAGIONALITA!$A$3:$M$106,5,FALSE)*P72,"") ->  | F72: =IFERROR(VLOOKUP(A72,STAGIONALITA!$A$3:$M$106,6,FALSE)*P72,"") ->  | G72: =IFERROR(VLOOKUP(A72,STAGIONALITA!$A$3:$M$106,7,FALSE)*P72,"") ->  | H72: =IFERROR(VLOOKUP(A72,STAGIONALITA!$A$3:$M$106,8,FALSE)*P72,"") ->  | I72: =IFERROR(VLOOKUP(A72,STAGIONALITA!$A$3:$M$106,9,FALSE)*P72,"") ->  | J72: =IFERROR(VLOOKUP(A72,STAGIONALITA!$A$3:$M$106,10,FALSE)*P72,"") ->  | K72: =IFERROR(VLOOKUP(A72,STAGIONALITA!$A$3:$M$106,11,FALSE)*P72,"") ->  | L72: =IFERROR(VLOOKUP(A72,STAGIONALITA!$A$3:$M$106,12,FALSE)*P72,"") ->  | M72: =IFERROR(VLOOKUP(A72,STAGIONALITA!$A$3:$M$106,13,FALSE)*P72,"") -> 
B73: =IFERROR(VLOOKUP(A73,STAGIONALITA!$A$3:$M$106,2,FALSE)*P73,"") ->  | C73: =IFERROR(VLOOKUP(A73,STAGIONALITA!$A$3:$M$106,3,FALSE)*P73,"") ->  | D73: =IFERROR(VLOOKUP(A73,STAGIONALITA!$A$3:$M$106,4,FALSE)*P73,"") ->  | E73: =IFERROR(VLOOKUP(A73,STAGIONALITA!$A$3:$M$106,5,FALSE)*P73,"") ->  | F73: =IFERROR(VLOOKUP(A73,STAGIONALITA!$A$3:$M$106,6,FALSE)*P73,"") ->  | G73: =IFERROR(VLOOKUP(A73,STAGIONALITA!$A$3:$M$106,7,FALSE)*P73,"") ->  | H73: =IFERROR(VLOOKUP(A73,STAGIONALITA!$A$3:$M$106,8,FALSE)*P73,"") ->  | I73: =IFERROR(VLOOKUP(A73,STAGIONALITA!$A$3:$M$106,9,FALSE)*P73,"") ->  | J73: =IFERROR(VLOOKUP(A73,STAGIONALITA!$A$3:$M$106,10,FALSE)*P73,"") ->  | K73: =IFERROR(VLOOKUP(A73,STAGIONALITA!$A$3:$M$106,11,FALSE)*P73,"") ->  | L73: =IFERROR(VLOOKUP(A73,STAGIONALITA!$A$3:$M$106,12,FALSE)*P73,"") ->  | M73: =IFERROR(VLOOKUP(A73,STAGIONALITA!$A$3:$M$106,13,FALSE)*P73,"") -> 
B74: =IFERROR(VLOOKUP(A74,STAGIONALITA!$A$3:$M$106,2,FALSE)*P74,"") ->  | C74: =IFERROR(VLOOKUP(A74,STAGIONALITA!$A$3:$M$106,3,FALSE)*P74,"") ->  | D74: =IFERROR(VLOOKUP(A74,STAGIONALITA!$A$3:$M$106,4,FALSE)*P74,"") ->  | E74: =IFERROR(VLOOKUP(A74,STAGIONALITA!$A$3:$M$106,5,FALSE)*P74,"") ->  | F74: =IFERROR(VLOOKUP(A74,STAGIONALITA!$A$3:$M$106,6,FALSE)*P74,"") ->  | G74: =IFERROR(VLOOKUP(A74,STAGIONALITA!$A$3:$M$106,7,FALSE)*P74,"") ->  | H74: =IFERROR(VLOOKUP(A74,STAGIONALITA!$A$3:$M$106,8,FALSE)*P74,"") ->  | I74: =IFERROR(VLOOKUP(A74,STAGIONALITA!$A$3:$M$106,9,FALSE)*P74,"") ->  | J74: =IFERROR(VLOOKUP(A74,STAGIONALITA!$A$3:$M$106,10,FALSE)*P74,"") ->  | K74: =IFERROR(VLOOKUP(A74,STAGIONALITA!$A$3:$M$106,11,FALSE)*P74,"") ->  | L74: =IFERROR(VLOOKUP(A74,STAGIONALITA!$A$3:$M$106,12,FALSE)*P74,"") ->  | M74: =IFERROR(VLOOKUP(A74,STAGIONALITA!$A$3:$M$106,13,FALSE)*P74,"") -> 
B75: =IFERROR(VLOOKUP(A75,STAGIONALITA!$A$3:$M$106,2,FALSE)*P75,"") ->  | C75: =IFERROR(VLOOKUP(A75,STAGIONALITA!$A$3:$M$106,3,FALSE)*P75,"") ->  | D75: =IFERROR(VLOOKUP(A75,STAGIONALITA!$A$3:$M$106,4,FALSE)*P75,"") ->  | E75: =IFERROR(VLOOKUP(A75,STAGIONALITA!$A$3:$M$106,5,FALSE)*P75,"") ->  | F75: =IFERROR(VLOOKUP(A75,STAGIONALITA!$A$3:$M$106,6,FALSE)*P75,"") ->  | G75: =IFERROR(VLOOKUP(A75,STAGIONALITA!$A$3:$M$106,7,FALSE)*P75,"") ->  | H75: =IFERROR(VLOOKUP(A75,STAGIONALITA!$A$3:$M$106,8,FALSE)*P75,"") ->  | I75: =IFERROR(VLOOKUP(A75,STAGIONALITA!$A$3:$M$106,9,FALSE)*P75,"") ->  | J75: =IFERROR(VLOOKUP(A75,STAGIONALITA!$A$3:$M$106,10,FALSE)*P75,"") ->  | K75: =IFERROR(VLOOKUP(A75,STAGIONALITA!$A$3:$M$106,11,FALSE)*P75,"") ->  | L75: =IFERROR(VLOOKUP(A75,STAGIONALITA!$A$3:$M$106,12,FALSE)*P75,"") ->  | M75: =IFERROR(VLOOKUP(A75,STAGIONALITA!$A$3:$M$106,13,FALSE)*P75,"") -> 
B76: =IFERROR(VLOOKUP(A76,STAGIONALITA!$A$3:$M$106,2,FALSE)*P76,"") ->  | C76: =IFERROR(VLOOKUP(A76,STAGIONALITA!$A$3:$M$106,3,FALSE)*P76,"") ->  | D76: =IFERROR(VLOOKUP(A76,STAGIONALITA!$A$3:$M$106,4,FALSE)*P76,"") ->  | E76: =IFERROR(VLOOKUP(A76,STAGIONALITA!$A$3:$M$106,5,FALSE)*P76,"") ->  | F76: =IFERROR(VLOOKUP(A76,STAGIONALITA!$A$3:$M$106,6,FALSE)*P76,"") ->  | G76: =IFERROR(VLOOKUP(A76,STAGIONALITA!$A$3:$M$106,7,FALSE)*P76,"") ->  | H76: =IFERROR(VLOOKUP(A76,STAGIONALITA!$A$3:$M$106,8,FALSE)*P76,"") ->  | I76: =IFERROR(VLOOKUP(A76,STAGIONALITA!$A$3:$M$106,9,FALSE)*P76,"") ->  | J76: =IFERROR(VLOOKUP(A76,STAGIONALITA!$A$3:$M$106,10,FALSE)*P76,"") ->  | K76: =IFERROR(VLOOKUP(A76,STAGIONALITA!$A$3:$M$106,11,FALSE)*P76,"") ->  | L76: =IFERROR(VLOOKUP(A76,STAGIONALITA!$A$3:$M$106,12,FALSE)*P76,"") ->  | M76: =IFERROR(VLOOKUP(A76,STAGIONALITA!$A$3:$M$106,13,FALSE)*P76,"") -> 
B77: =IFERROR(VLOOKUP(A77,STAGIONALITA!$A$3:$M$106,2,FALSE)*P77,"") ->  | C77: =IFERROR(VLOOKUP(A77,STAGIONALITA!$A$3:$M$106,3,FALSE)*P77,"") ->  | D77: =IFERROR(VLOOKUP(A77,STAGIONALITA!$A$3:$M$106,4,FALSE)*P77,"") ->  | E77: =IFERROR(VLOOKUP(A77,STAGIONALITA!$A$3:$M$106,5,FALSE)*P77,"") ->  | F77: =IFERROR(VLOOKUP(A77,STAGIONALITA!$A$3:$M$106,6,FALSE)*P77,"") ->  | G77: =IFERROR(VLOOKUP(A77,STAGIONALITA!$A$3:$M$106,7,FALSE)*P77,"") ->  | H77: =IFERROR(VLOOKUP(A77,STAGIONALITA!$A$3:$M$106,8,FALSE)*P77,"") ->  | I77: =IFERROR(VLOOKUP(A77,STAGIONALITA!$A$3:$M$106,9,FALSE)*P77,"") ->  | J77: =IFERROR(VLOOKUP(A77,STAGIONALITA!$A$3:$M$106,10,FALSE)*P77,"") ->  | K77: =IFERROR(VLOOKUP(A77,STAGIONALITA!$A$3:$M$106,11,FALSE)*P77,"") ->  | L77: =IFERROR(VLOOKUP(A77,STAGIONALITA!$A$3:$M$106,12,FALSE)*P77,"") ->  | M77: =IFERROR(VLOOKUP(A77,STAGIONALITA!$A$3:$M$106,13,FALSE)*P77,"") -> 
B78: =IFERROR(VLOOKUP(A78,STAGIONALITA!$A$3:$M$106,2,FALSE)*P78,"") ->  | C78: =IFERROR(VLOOKUP(A78,STAGIONALITA!$A$3:$M$106,3,FALSE)*P78,"") ->  | D78: =IFERROR(VLOOKUP(A78,STAGIONALITA!$A$3:$M$106,4,FALSE)*P78,"") ->  | E78: =IFERROR(VLOOKUP(A78,STAGIONALITA!$A$3:$M$106,5,FALSE)*P78,"") ->  | F78: =IFERROR(VLOOKUP(A78,STAGIONALITA!$A$3:$M$106,6,FALSE)*P78,"") ->  | G78: =IFERROR(VLOOKUP(A78,STAGIONALITA!$A$3:$M$106,7,FALSE)*P78,"") ->  | H78: =IFERROR(VLOOKUP(A78,STAGIONALITA!$A$3:$M$106,8,FALSE)*P78,"") ->  | I78: =IFERROR(VLOOKUP(A78,STAGIONALITA!$A$3:$M$106,9,FALSE)*P78,"") ->  | J78: =IFERROR(VLOOKUP(A78,STAGIONALITA!$A$3:$M$106,10,FALSE)*P78,"") ->  | K78: =IFERROR(VLOOKUP(A78,STAGIONALITA!$A$3:$M$106,11,FALSE)*P78,"") ->  | L78: =IFERROR(VLOOKUP(A78,STAGIONALITA!$A$3:$M$106,12,FALSE)*P78,"") ->  | M78: =IFERROR(VLOOKUP(A78,STAGIONALITA!$A$3:$M$106,13,FALSE)*P78,"") -> 
B79: =IFERROR(VLOOKUP(A79,STAGIONALITA!$A$3:$M$106,2,FALSE)*P79,"") ->  | C79: =IFERROR(VLOOKUP(A79,STAGIONALITA!$A$3:$M$106,3,FALSE)*P79,"") ->  | D79: =IFERROR(VLOOKUP(A79,STAGIONALITA!$A$3:$M$106,4,FALSE)*P79,"") ->  | E79: =IFERROR(VLOOKUP(A79,STAGIONALITA!$A$3:$M$106,5,FALSE)*P79,"") ->  | F79: =IFERROR(VLOOKUP(A79,STAGIONALITA!$A$3:$M$106,6,FALSE)*P79,"") ->  | G79: =IFERROR(VLOOKUP(A79,STAGIONALITA!$A$3:$M$106,7,FALSE)*P79,"") ->  | H79: =IFERROR(VLOOKUP(A79,STAGIONALITA!$A$3:$M$106,8,FALSE)*P79,"") ->  | I79: =IFERROR(VLOOKUP(A79,STAGIONALITA!$A$3:$M$106,9,FALSE)*P79,"") ->  | J79: =IFERROR(VLOOKUP(A79,STAGIONALITA!$A$3:$M$106,10,FALSE)*P79,"") ->  | K79: =IFERROR(VLOOKUP(A79,STAGIONALITA!$A$3:$M$106,11,FALSE)*P79,"") ->  | L79: =IFERROR(VLOOKUP(A79,STAGIONALITA!$A$3:$M$106,12,FALSE)*P79,"") ->  | M79: =IFERROR(VLOOKUP(A79,STAGIONALITA!$A$3:$M$106,13,FALSE)*P79,"") -> 
B80: =IFERROR(VLOOKUP(A80,STAGIONALITA!$A$3:$M$106,2,FALSE)*P80,"") ->  | C80: =IFERROR(VLOOKUP(A80,STAGIONALITA!$A$3:$M$106,3,FALSE)*P80,"") ->  | D80: =IFERROR(VLOOKUP(A80,STAGIONALITA!$A$3:$M$106,4,FALSE)*P80,"") ->  | E80: =IFERROR(VLOOKUP(A80,STAGIONALITA!$A$3:$M$106,5,FALSE)*P80,"") ->  | F80: =IFERROR(VLOOKUP(A80,STAGIONALITA!$A$3:$M$106,6,FALSE)*P80,"") ->  | G80: =IFERROR(VLOOKUP(A80,STAGIONALITA!$A$3:$M$106,7,FALSE)*P80,"") ->  | H80: =IFERROR(VLOOKUP(A80,STAGIONALITA!$A$3:$M$106,8,FALSE)*P80,"") ->  | I80: =IFERROR(VLOOKUP(A80,STAGIONALITA!$A$3:$M$106,9,FALSE)*P80,"") ->  | J80: =IFERROR(VLOOKUP(A80,STAGIONALITA!$A$3:$M$106,10,FALSE)*P80,"") ->  | K80: =IFERROR(VLOOKUP(A80,STAGIONALITA!$A$3:$M$106,11,FALSE)*P80,"") ->  | L80: =IFERROR(VLOOKUP(A80,STAGIONALITA!$A$3:$M$106,12,FALSE)*P80,"") ->  | M80: =IFERROR(VLOOKUP(A80,STAGIONALITA!$A$3:$M$106,13,FALSE)*P80,"") -> 
B81: =IFERROR(VLOOKUP(A81,STAGIONALITA!$A$3:$M$106,2,FALSE)*P81,"") ->  | C81: =IFERROR(VLOOKUP(A81,STAGIONALITA!$A$3:$M$106,3,FALSE)*P81,"") ->  | D81: =IFERROR(VLOOKUP(A81,STAGIONALITA!$A$3:$M$106,4,FALSE)*P81,"") ->  | E81: =IFERROR(VLOOKUP(A81,STAGIONALITA!$A$3:$M$106,5,FALSE)*P81,"") ->  | F81: =IFERROR(VLOOKUP(A81,STAGIONALITA!$A$3:$M$106,6,FALSE)*P81,"") ->  | G81: =IFERROR(VLOOKUP(A81,STAGIONALITA!$A$3:$M$106,7,FALSE)*P81,"") ->  | H81: =IFERROR(VLOOKUP(A81,STAGIONALITA!$A$3:$M$106,8,FALSE)*P81,"") ->  | I81: =IFERROR(VLOOKUP(A81,STAGIONALITA!$A$3:$M$106,9,FALSE)*P81,"") ->  | J81: =IFERROR(VLOOKUP(A81,STAGIONALITA!$A$3:$M$106,10,FALSE)*P81,"") ->  | K81: =IFERROR(VLOOKUP(A81,STAGIONALITA!$A$3:$M$106,11,FALSE)*P81,"") ->  | L81: =IFERROR(VLOOKUP(A81,STAGIONALITA!$A$3:$M$106,12,FALSE)*P81,"") ->  | M81: =IFERROR(VLOOKUP(A81,STAGIONALITA!$A$3:$M$106,13,FALSE)*P81,"") -> 
B82: =IFERROR(VLOOKUP(A82,STAGIONALITA!$A$3:$M$106,2,FALSE)*P82,"") ->  | C82: =IFERROR(VLOOKUP(A82,STAGIONALITA!$A$3:$M$106,3,FALSE)*P82,"") ->  | D82: =IFERROR(VLOOKUP(A82,STAGIONALITA!$A$3:$M$106,4,FALSE)*P82,"") ->  | E82: =IFERROR(VLOOKUP(A82,STAGIONALITA!$A$3:$M$106,5,FALSE)*P82,"") ->  | F82: =IFERROR(VLOOKUP(A82,STAGIONALITA!$A$3:$M$106,6,FALSE)*P82,"") ->  | G82: =IFERROR(VLOOKUP(A82,STAGIONALITA!$A$3:$M$106,7,FALSE)*P82,"") ->  | H82: =IFERROR(VLOOKUP(A82,STAGIONALITA!$A$3:$M$106,8,FALSE)*P82,"") ->  | I82: =IFERROR(VLOOKUP(A82,STAGIONALITA!$A$3:$M$106,9,FALSE)*P82,"") ->  | J82: =IFERROR(VLOOKUP(A82,STAGIONALITA!$A$3:$M$106,10,FALSE)*P82,"") ->  | K82: =IFERROR(VLOOKUP(A82,STAGIONALITA!$A$3:$M$106,11,FALSE)*P82,"") ->  | L82: =IFERROR(VLOOKUP(A82,STAGIONALITA!$A$3:$M$106,12,FALSE)*P82,"") ->  | M82: =IFERROR(VLOOKUP(A82,STAGIONALITA!$A$3:$M$106,13,FALSE)*P82,"") -> 
B83: =IFERROR(VLOOKUP(A83,STAGIONALITA!$A$3:$M$106,2,FALSE)*P83,"") ->  | C83: =IFERROR(VLOOKUP(A83,STAGIONALITA!$A$3:$M$106,3,FALSE)*P83,"") ->  | D83: =IFERROR(VLOOKUP(A83,STAGIONALITA!$A$3:$M$106,4,FALSE)*P83,"") ->  | E83: =IFERROR(VLOOKUP(A83,STAGIONALITA!$A$3:$M$106,5,FALSE)*P83,"") ->  | F83: =IFERROR(VLOOKUP(A83,STAGIONALITA!$A$3:$M$106,6,FALSE)*P83,"") ->  | G83: =IFERROR(VLOOKUP(A83,STAGIONALITA!$A$3:$M$106,7,FALSE)*P83,"") ->  | H83: =IFERROR(VLOOKUP(A83,STAGIONALITA!$A$3:$M$106,8,FALSE)*P83,"") ->  | I83: =IFERROR(VLOOKUP(A83,STAGIONALITA!$A$3:$M$106,9,FALSE)*P83,"") ->  | J83: =IFERROR(VLOOKUP(A83,STAGIONALITA!$A$3:$M$106,10,FALSE)*P83,"") ->  | K83: =IFERROR(VLOOKUP(A83,STAGIONALITA!$A$3:$M$106,11,FALSE)*P83,"") ->  | L83: =IFERROR(VLOOKUP(A83,STAGIONALITA!$A$3:$M$106,12,FALSE)*P83,"") ->  | M83: =IFERROR(VLOOKUP(A83,STAGIONALITA!$A$3:$M$106,13,FALSE)*P83,"") -> 
B84: =IFERROR(VLOOKUP(A84,STAGIONALITA!$A$3:$M$106,2,FALSE)*P84,"") ->  | C84: =IFERROR(VLOOKUP(A84,STAGIONALITA!$A$3:$M$106,3,FALSE)*P84,"") ->  | D84: =IFERROR(VLOOKUP(A84,STAGIONALITA!$A$3:$M$106,4,FALSE)*P84,"") ->  | E84: =IFERROR(VLOOKUP(A84,STAGIONALITA!$A$3:$M$106,5,FALSE)*P84,"") ->  | F84: =IFERROR(VLOOKUP(A84,STAGIONALITA!$A$3:$M$106,6,FALSE)*P84,"") ->  | G84: =IFERROR(VLOOKUP(A84,STAGIONALITA!$A$3:$M$106,7,FALSE)*P84,"") ->  | H84: =IFERROR(VLOOKUP(A84,STAGIONALITA!$A$3:$M$106,8,FALSE)*P84,"") ->  | I84: =IFERROR(VLOOKUP(A84,STAGIONALITA!$A$3:$M$106,9,FALSE)*P84,"") ->  | J84: =IFERROR(VLOOKUP(A84,STAGIONALITA!$A$3:$M$106,10,FALSE)*P84,"") ->  | K84: =IFERROR(VLOOKUP(A84,STAGIONALITA!$A$3:$M$106,11,FALSE)*P84,"") ->  | L84: =IFERROR(VLOOKUP(A84,STAGIONALITA!$A$3:$M$106,12,FALSE)*P84,"") ->  | M84: =IFERROR(VLOOKUP(A84,STAGIONALITA!$A$3:$M$106,13,FALSE)*P84,"") -> 
B85: =IFERROR(VLOOKUP(A85,STAGIONALITA!$A$3:$M$106,2,FALSE)*P85,"") ->  | C85: =IFERROR(VLOOKUP(A85,STAGIONALITA!$A$3:$M$106,3,FALSE)*P85,"") ->  | D85: =IFERROR(VLOOKUP(A85,STAGIONALITA!$A$3:$M$106,4,FALSE)*P85,"") ->  | E85: =IFERROR(VLOOKUP(A85,STAGIONALITA!$A$3:$M$106,5,FALSE)*P85,"") ->  | F85: =IFERROR(VLOOKUP(A85,STAGIONALITA!$A$3:$M$106,6,FALSE)*P85,"") ->  | G85: =IFERROR(VLOOKUP(A85,STAGIONALITA!$A$3:$M$106,7,FALSE)*P85,"") ->  | H85: =IFERROR(VLOOKUP(A85,STAGIONALITA!$A$3:$M$106,8,FALSE)*P85,"") ->  | I85: =IFERROR(VLOOKUP(A85,STAGIONALITA!$A$3:$M$106,9,FALSE)*P85,"") ->  | J85: =IFERROR(VLOOKUP(A85,STAGIONALITA!$A$3:$M$106,10,FALSE)*P85,"") ->  | K85: =IFERROR(VLOOKUP(A85,STAGIONALITA!$A$3:$M$106,11,FALSE)*P85,"") ->  | L85: =IFERROR(VLOOKUP(A85,STAGIONALITA!$A$3:$M$106,12,FALSE)*P85,"") ->  | M85: =IFERROR(VLOOKUP(A85,STAGIONALITA!$A$3:$M$106,13,FALSE)*P85,"") -> 
B86: =IFERROR(VLOOKUP(A86,STAGIONALITA!$A$3:$M$106,2,FALSE)*P86,"") ->  | C86: =IFERROR(VLOOKUP(A86,STAGIONALITA!$A$3:$M$106,3,FALSE)*P86,"") ->  | D86: =IFERROR(VLOOKUP(A86,STAGIONALITA!$A$3:$M$106,4,FALSE)*P86,"") ->  | E86: =IFERROR(VLOOKUP(A86,STAGIONALITA!$A$3:$M$106,5,FALSE)*P86,"") ->  | F86: =IFERROR(VLOOKUP(A86,STAGIONALITA!$A$3:$M$106,6,FALSE)*P86,"") ->  | G86: =IFERROR(VLOOKUP(A86,STAGIONALITA!$A$3:$M$106,7,FALSE)*P86,"") ->  | H86: =IFERROR(VLOOKUP(A86,STAGIONALITA!$A$3:$M$106,8,FALSE)*P86,"") ->  | I86: =IFERROR(VLOOKUP(A86,STAGIONALITA!$A$3:$M$106,9,FALSE)*P86,"") ->  | J86: =IFERROR(VLOOKUP(A86,STAGIONALITA!$A$3:$M$106,10,FALSE)*P86,"") ->  | K86: =IFERROR(VLOOKUP(A86,STAGIONALITA!$A$3:$M$106,11,FALSE)*P86,"") ->  | L86: =IFERROR(VLOOKUP(A86,STAGIONALITA!$A$3:$M$106,12,FALSE)*P86,"") ->  | M86: =IFERROR(VLOOKUP(A86,STAGIONALITA!$A$3:$M$106,13,FALSE)*P86,"") -> 
B87: =IFERROR(VLOOKUP(A87,STAGIONALITA!$A$3:$M$106,2,FALSE)*P87,"") ->  | C87: =IFERROR(VLOOKUP(A87,STAGIONALITA!$A$3:$M$106,3,FALSE)*P87,"") ->  | D87: =IFERROR(VLOOKUP(A87,STAGIONALITA!$A$3:$M$106,4,FALSE)*P87,"") ->  | E87: =IFERROR(VLOOKUP(A87,STAGIONALITA!$A$3:$M$106,5,FALSE)*P87,"") ->  | F87: =IFERROR(VLOOKUP(A87,STAGIONALITA!$A$3:$M$106,6,FALSE)*P87,"") ->  | G87: =IFERROR(VLOOKUP(A87,STAGIONALITA!$A$3:$M$106,7,FALSE)*P87,"") ->  | H87: =IFERROR(VLOOKUP(A87,STAGIONALITA!$A$3:$M$106,8,FALSE)*P87,"") ->  | I87: =IFERROR(VLOOKUP(A87,STAGIONALITA!$A$3:$M$106,9,FALSE)*P87,"") ->  | J87: =IFERROR(VLOOKUP(A87,STAGIONALITA!$A$3:$M$106,10,FALSE)*P87,"") ->  | K87: =IFERROR(VLOOKUP(A87,STAGIONALITA!$A$3:$M$106,11,FALSE)*P87,"") ->  | L87: =IFERROR(VLOOKUP(A87,STAGIONALITA!$A$3:$M$106,12,FALSE)*P87,"") ->  | M87: =IFERROR(VLOOKUP(A87,STAGIONALITA!$A$3:$M$106,13,FALSE)*P87,"") -> 
B88: =IFERROR(VLOOKUP(A88,STAGIONALITA!$A$3:$M$106,2,FALSE)*P88,"") ->  | C88: =IFERROR(VLOOKUP(A88,STAGIONALITA!$A$3:$M$106,3,FALSE)*P88,"") ->  | D88: =IFERROR(VLOOKUP(A88,STAGIONALITA!$A$3:$M$106,4,FALSE)*P88,"") ->  | E88: =IFERROR(VLOOKUP(A88,STAGIONALITA!$A$3:$M$106,5,FALSE)*P88,"") ->  | F88: =IFERROR(VLOOKUP(A88,STAGIONALITA!$A$3:$M$106,6,FALSE)*P88,"") ->  | G88: =IFERROR(VLOOKUP(A88,STAGIONALITA!$A$3:$M$106,7,FALSE)*P88,"") ->  | H88: =IFERROR(VLOOKUP(A88,STAGIONALITA!$A$3:$M$106,8,FALSE)*P88,"") ->  | I88: =IFERROR(VLOOKUP(A88,STAGIONALITA!$A$3:$M$106,9,FALSE)*P88,"") ->  | J88: =IFERROR(VLOOKUP(A88,STAGIONALITA!$A$3:$M$106,10,FALSE)*P88,"") ->  | K88: =IFERROR(VLOOKUP(A88,STAGIONALITA!$A$3:$M$106,11,FALSE)*P88,"") ->  | L88: =IFERROR(VLOOKUP(A88,STAGIONALITA!$A$3:$M$106,12,FALSE)*P88,"") ->  | M88: =IFERROR(VLOOKUP(A88,STAGIONALITA!$A$3:$M$106,13,FALSE)*P88,"") -> 
B89: =IFERROR(VLOOKUP(A89,STAGIONALITA!$A$3:$M$106,2,FALSE)*P89,"") ->  | C89: =IFERROR(VLOOKUP(A89,STAGIONALITA!$A$3:$M$106,3,FALSE)*P89,"") ->  | D89: =IFERROR(VLOOKUP(A89,STAGIONALITA!$A$3:$M$106,4,FALSE)*P89,"") ->  | E89: =IFERROR(VLOOKUP(A89,STAGIONALITA!$A$3:$M$106,5,FALSE)*P89,"") ->  | F89: =IFERROR(VLOOKUP(A89,STAGIONALITA!$A$3:$M$106,6,FALSE)*P89,"") ->  | G89: =IFERROR(VLOOKUP(A89,STAGIONALITA!$A$3:$M$106,7,FALSE)*P89,"") ->  | H89: =IFERROR(VLOOKUP(A89,STAGIONALITA!$A$3:$M$106,8,FALSE)*P89,"") ->  | I89: =IFERROR(VLOOKUP(A89,STAGIONALITA!$A$3:$M$106,9,FALSE)*P89,"") ->  | J89: =IFERROR(VLOOKUP(A89,STAGIONALITA!$A$3:$M$106,10,FALSE)*P89,"") ->  | K89: =IFERROR(VLOOKUP(A89,STAGIONALITA!$A$3:$M$106,11,FALSE)*P89,"") ->  | L89: =IFERROR(VLOOKUP(A89,STAGIONALITA!$A$3:$M$106,12,FALSE)*P89,"") ->  | M89: =IFERROR(VLOOKUP(A89,STAGIONALITA!$A$3:$M$106,13,FALSE)*P89,"") -> 
B90: =IFERROR(VLOOKUP(A90,STAGIONALITA!$A$3:$M$106,2,FALSE)*P90,"") ->  | C90: =IFERROR(VLOOKUP(A90,STAGIONALITA!$A$3:$M$106,3,FALSE)*P90,"") ->  | D90: =IFERROR(VLOOKUP(A90,STAGIONALITA!$A$3:$M$106,4,FALSE)*P90,"") ->  | E90: =IFERROR(VLOOKUP(A90,STAGIONALITA!$A$3:$M$106,5,FALSE)*P90,"") ->  | F90: =IFERROR(VLOOKUP(A90,STAGIONALITA!$A$3:$M$106,6,FALSE)*P90,"") ->  | G90: =IFERROR(VLOOKUP(A90,STAGIONALITA!$A$3:$M$106,7,FALSE)*P90,"") ->  | H90: =IFERROR(VLOOKUP(A90,STAGIONALITA!$A$3:$M$106,8,FALSE)*P90,"") ->  | I90: =IFERROR(VLOOKUP(A90,STAGIONALITA!$A$3:$M$106,9,FALSE)*P90,"") ->  | J90: =IFERROR(VLOOKUP(A90,STAGIONALITA!$A$3:$M$106,10,FALSE)*P90,"") ->  | K90: =IFERROR(VLOOKUP(A90,STAGIONALITA!$A$3:$M$106,11,FALSE)*P90,"") ->  | L90: =IFERROR(VLOOKUP(A90,STAGIONALITA!$A$3:$M$106,12,FALSE)*P90,"") ->  | M90: =IFERROR(VLOOKUP(A90,STAGIONALITA!$A$3:$M$106,13,FALSE)*P90,"") -> 
B91: =IFERROR(VLOOKUP(A91,STAGIONALITA!$A$3:$M$106,2,FALSE)*P91,"") ->  | C91: =IFERROR(VLOOKUP(A91,STAGIONALITA!$A$3:$M$106,3,FALSE)*P91,"") ->  | D91: =IFERROR(VLOOKUP(A91,STAGIONALITA!$A$3:$M$106,4,FALSE)*P91,"") ->  | E91: =IFERROR(VLOOKUP(A91,STAGIONALITA!$A$3:$M$106,5,FALSE)*P91,"") ->  | F91: =IFERROR(VLOOKUP(A91,STAGIONALITA!$A$3:$M$106,6,FALSE)*P91,"") ->  | G91: =IFERROR(VLOOKUP(A91,STAGIONALITA!$A$3:$M$106,7,FALSE)*P91,"") ->  | H91: =IFERROR(VLOOKUP(A91,STAGIONALITA!$A$3:$M$106,8,FALSE)*P91,"") ->  | I91: =IFERROR(VLOOKUP(A91,STAGIONALITA!$A$3:$M$106,9,FALSE)*P91,"") ->  | J91: =IFERROR(VLOOKUP(A91,STAGIONALITA!$A$3:$M$106,10,FALSE)*P91,"") ->  | K91: =IFERROR(VLOOKUP(A91,STAGIONALITA!$A$3:$M$106,11,FALSE)*P91,"") ->  | L91: =IFERROR(VLOOKUP(A91,STAGIONALITA!$A$3:$M$106,12,FALSE)*P91,"") ->  | M91: =IFERROR(VLOOKUP(A91,STAGIONALITA!$A$3:$M$106,13,FALSE)*P91,"") -> 
B92: =IFERROR(VLOOKUP(A92,STAGIONALITA!$A$3:$M$106,2,FALSE)*P92,"") ->  | C92: =IFERROR(VLOOKUP(A92,STAGIONALITA!$A$3:$M$106,3,FALSE)*P92,"") ->  | D92: =IFERROR(VLOOKUP(A92,STAGIONALITA!$A$3:$M$106,4,FALSE)*P92,"") ->  | E92: =IFERROR(VLOOKUP(A92,STAGIONALITA!$A$3:$M$106,5,FALSE)*P92,"") ->  | F92: =IFERROR(VLOOKUP(A92,STAGIONALITA!$A$3:$M$106,6,FALSE)*P92,"") ->  | G92: =IFERROR(VLOOKUP(A92,STAGIONALITA!$A$3:$M$106,7,FALSE)*P92,"") ->  | H92: =IFERROR(VLOOKUP(A92,STAGIONALITA!$A$3:$M$106,8,FALSE)*P92,"") ->  | I92: =IFERROR(VLOOKUP(A92,STAGIONALITA!$A$3:$M$106,9,FALSE)*P92,"") ->  | J92: =IFERROR(VLOOKUP(A92,STAGIONALITA!$A$3:$M$106,10,FALSE)*P92,"") ->  | K92: =IFERROR(VLOOKUP(A92,STAGIONALITA!$A$3:$M$106,11,FALSE)*P92,"") ->  | L92: =IFERROR(VLOOKUP(A92,STAGIONALITA!$A$3:$M$106,12,FALSE)*P92,"") ->  | M92: =IFERROR(VLOOKUP(A92,STAGIONALITA!$A$3:$M$106,13,FALSE)*P92,"") -> 
B93: =IFERROR(VLOOKUP(A93,STAGIONALITA!$A$3:$M$106,2,FALSE)*P93,"") ->  | C93: =IFERROR(VLOOKUP(A93,STAGIONALITA!$A$3:$M$106,3,FALSE)*P93,"") ->  | D93: =IFERROR(VLOOKUP(A93,STAGIONALITA!$A$3:$M$106,4,FALSE)*P93,"") ->  | E93: =IFERROR(VLOOKUP(A93,STAGIONALITA!$A$3:$M$106,5,FALSE)*P93,"") ->  | F93: =IFERROR(VLOOKUP(A93,STAGIONALITA!$A$3:$M$106,6,FALSE)*P93,"") ->  | G93: =IFERROR(VLOOKUP(A93,STAGIONALITA!$A$3:$M$106,7,FALSE)*P93,"") ->  | H93: =IFERROR(VLOOKUP(A93,STAGIONALITA!$A$3:$M$106,8,FALSE)*P93,"") ->  | I93: =IFERROR(VLOOKUP(A93,STAGIONALITA!$A$3:$M$106,9,FALSE)*P93,"") ->  | J93: =IFERROR(VLOOKUP(A93,STAGIONALITA!$A$3:$M$106,10,FALSE)*P93,"") ->  | K93: =IFERROR(VLOOKUP(A93,STAGIONALITA!$A$3:$M$106,11,FALSE)*P93,"") ->  | L93: =IFERROR(VLOOKUP(A93,STAGIONALITA!$A$3:$M$106,12,FALSE)*P93,"") ->  | M93: =IFERROR(VLOOKUP(A93,STAGIONALITA!$A$3:$M$106,13,FALSE)*P93,"") -> 
B94: =IFERROR(VLOOKUP(A94,STAGIONALITA!$A$3:$M$106,2,FALSE)*P94,"") ->  | C94: =IFERROR(VLOOKUP(A94,STAGIONALITA!$A$3:$M$106,3,FALSE)*P94,"") ->  | D94: =IFERROR(VLOOKUP(A94,STAGIONALITA!$A$3:$M$106,4,FALSE)*P94,"") ->  | E94: =IFERROR(VLOOKUP(A94,STAGIONALITA!$A$3:$M$106,5,FALSE)*P94,"") ->  | F94: =IFERROR(VLOOKUP(A94,STAGIONALITA!$A$3:$M$106,6,FALSE)*P94,"") ->  | G94: =IFERROR(VLOOKUP(A94,STAGIONALITA!$A$3:$M$106,7,FALSE)*P94,"") ->  | H94: =IFERROR(VLOOKUP(A94,STAGIONALITA!$A$3:$M$106,8,FALSE)*P94,"") ->  | I94: =IFERROR(VLOOKUP(A94,STAGIONALITA!$A$3:$M$106,9,FALSE)*P94,"") ->  | J94: =IFERROR(VLOOKUP(A94,STAGIONALITA!$A$3:$M$106,10,FALSE)*P94,"") ->  | K94: =IFERROR(VLOOKUP(A94,STAGIONALITA!$A$3:$M$106,11,FALSE)*P94,"") ->  | L94: =IFERROR(VLOOKUP(A94,STAGIONALITA!$A$3:$M$106,12,FALSE)*P94,"") ->  | M94: =IFERROR(VLOOKUP(A94,STAGIONALITA!$A$3:$M$106,13,FALSE)*P94,"") -> 
B95: =IFERROR(VLOOKUP(A95,STAGIONALITA!$A$3:$M$106,2,FALSE)*P95,"") ->  | C95: =IFERROR(VLOOKUP(A95,STAGIONALITA!$A$3:$M$106,3,FALSE)*P95,"") ->  | D95: =IFERROR(VLOOKUP(A95,STAGIONALITA!$A$3:$M$106,4,FALSE)*P95,"") ->  | E95: =IFERROR(VLOOKUP(A95,STAGIONALITA!$A$3:$M$106,5,FALSE)*P95,"") ->  | F95: =IFERROR(VLOOKUP(A95,STAGIONALITA!$A$3:$M$106,6,FALSE)*P95,"") ->  | G95: =IFERROR(VLOOKUP(A95,STAGIONALITA!$A$3:$M$106,7,FALSE)*P95,"") ->  | H95: =IFERROR(VLOOKUP(A95,STAGIONALITA!$A$3:$M$106,8,FALSE)*P95,"") ->  | I95: =IFERROR(VLOOKUP(A95,STAGIONALITA!$A$3:$M$106,9,FALSE)*P95,"") ->  | J95: =IFERROR(VLOOKUP(A95,STAGIONALITA!$A$3:$M$106,10,FALSE)*P95,"") ->  | K95: =IFERROR(VLOOKUP(A95,STAGIONALITA!$A$3:$M$106,11,FALSE)*P95,"") ->  | L95: =IFERROR(VLOOKUP(A95,STAGIONALITA!$A$3:$M$106,12,FALSE)*P95,"") ->  | M95: =IFERROR(VLOOKUP(A95,STAGIONALITA!$A$3:$M$106,13,FALSE)*P95,"") -> 
B96: =IFERROR(VLOOKUP(A96,STAGIONALITA!$A$3:$M$106,2,FALSE)*P96,"") ->  | C96: =IFERROR(VLOOKUP(A96,STAGIONALITA!$A$3:$M$106,3,FALSE)*P96,"") ->  | D96: =IFERROR(VLOOKUP(A96,STAGIONALITA!$A$3:$M$106,4,FALSE)*P96,"") ->  | E96: =IFERROR(VLOOKUP(A96,STAGIONALITA!$A$3:$M$106,5,FALSE)*P96,"") ->  | F96: =IFERROR(VLOOKUP(A96,STAGIONALITA!$A$3:$M$106,6,FALSE)*P96,"") ->  | G96: =IFERROR(VLOOKUP(A96,STAGIONALITA!$A$3:$M$106,7,FALSE)*P96,"") ->  | H96: =IFERROR(VLOOKUP(A96,STAGIONALITA!$A$3:$M$106,8,FALSE)*P96,"") ->  | I96: =IFERROR(VLOOKUP(A96,STAGIONALITA!$A$3:$M$106,9,FALSE)*P96,"") ->  | J96: =IFERROR(VLOOKUP(A96,STAGIONALITA!$A$3:$M$106,10,FALSE)*P96,"") ->  | K96: =IFERROR(VLOOKUP(A96,STAGIONALITA!$A$3:$M$106,11,FALSE)*P96,"") ->  | L96: =IFERROR(VLOOKUP(A96,STAGIONALITA!$A$3:$M$106,12,FALSE)*P96,"") ->  | M96: =IFERROR(VLOOKUP(A96,STAGIONALITA!$A$3:$M$106,13,FALSE)*P96,"") -> 
B97: =IFERROR(VLOOKUP(A97,STAGIONALITA!$A$3:$M$106,2,FALSE)*P97,"") ->  | C97: =IFERROR(VLOOKUP(A97,STAGIONALITA!$A$3:$M$106,3,FALSE)*P97,"") ->  | D97: =IFERROR(VLOOKUP(A97,STAGIONALITA!$A$3:$M$106,4,FALSE)*P97,"") ->  | E97: =IFERROR(VLOOKUP(A97,STAGIONALITA!$A$3:$M$106,5,FALSE)*P97,"") ->  | F97: =IFERROR(VLOOKUP(A97,STAGIONALITA!$A$3:$M$106,6,FALSE)*P97,"") ->  | G97: =IFERROR(VLOOKUP(A97,STAGIONALITA!$A$3:$M$106,7,FALSE)*P97,"") ->  | H97: =IFERROR(VLOOKUP(A97,STAGIONALITA!$A$3:$M$106,8,FALSE)*P97,"") ->  | I97: =IFERROR(VLOOKUP(A97,STAGIONALITA!$A$3:$M$106,9,FALSE)*P97,"") ->  | J97: =IFERROR(VLOOKUP(A97,STAGIONALITA!$A$3:$M$106,10,FALSE)*P97,"") ->  | K97: =IFERROR(VLOOKUP(A97,STAGIONALITA!$A$3:$M$106,11,FALSE)*P97,"") ->  | L97: =IFERROR(VLOOKUP(A97,STAGIONALITA!$A$3:$M$106,12,FALSE)*P97,"") ->  | M97: =IFERROR(VLOOKUP(A97,STAGIONALITA!$A$3:$M$106,13,FALSE)*P97,"") -> 
B98: =IFERROR(VLOOKUP(A98,STAGIONALITA!$A$3:$M$106,2,FALSE)*P98,"") ->  | C98: =IFERROR(VLOOKUP(A98,STAGIONALITA!$A$3:$M$106,3,FALSE)*P98,"") ->  | D98: =IFERROR(VLOOKUP(A98,STAGIONALITA!$A$3:$M$106,4,FALSE)*P98,"") ->  | E98: =IFERROR(VLOOKUP(A98,STAGIONALITA!$A$3:$M$106,5,FALSE)*P98,"") ->  | F98: =IFERROR(VLOOKUP(A98,STAGIONALITA!$A$3:$M$106,6,FALSE)*P98,"") ->  | G98: =IFERROR(VLOOKUP(A98,STAGIONALITA!$A$3:$M$106,7,FALSE)*P98,"") ->  | H98: =IFERROR(VLOOKUP(A98,STAGIONALITA!$A$3:$M$106,8,FALSE)*P98,"") ->  | I98: =IFERROR(VLOOKUP(A98,STAGIONALITA!$A$3:$M$106,9,FALSE)*P98,"") ->  | J98: =IFERROR(VLOOKUP(A98,STAGIONALITA!$A$3:$M$106,10,FALSE)*P98,"") ->  | K98: =IFERROR(VLOOKUP(A98,STAGIONALITA!$A$3:$M$106,11,FALSE)*P98,"") ->  | L98: =IFERROR(VLOOKUP(A98,STAGIONALITA!$A$3:$M$106,12,FALSE)*P98,"") ->  | M98: =IFERROR(VLOOKUP(A98,STAGIONALITA!$A$3:$M$106,13,FALSE)*P98,"") -> 
A99: =IF(O99=0,"",O99) ->  | B99: =IFERROR(VLOOKUP(A99,STAGIONALITA!$A$3:$M$106,2,FALSE)*P99,"") ->  | C99: =IFERROR(VLOOKUP(A99,STAGIONALITA!$A$3:$M$106,3,FALSE)*P99,"") ->  | D99: =IFERROR(VLOOKUP(A99,STAGIONALITA!$A$3:$M$106,4,FALSE)*P99,"") ->  | E99: =IFERROR(VLOOKUP(A99,STAGIONALITA!$A$3:$M$106,5,FALSE)*P99,"") ->  | F99: =IFERROR(VLOOKUP(A99,STAGIONALITA!$A$3:$M$106,6,FALSE)*P99,"") ->  | G99: =IFERROR(VLOOKUP(A99,STAGIONALITA!$A$3:$M$106,7,FALSE)*P99,"") ->  | H99: =IFERROR(VLOOKUP(A99,STAGIONALITA!$A$3:$M$106,8,FALSE)*P99,"") ->  | I99: =IFERROR(VLOOKUP(A99,STAGIONALITA!$A$3:$M$106,9,FALSE)*P99,"") ->  | J99: =IFERROR(VLOOKUP(A99,STAGIONALITA!$A$3:$M$106,10,FALSE)*P99,"") ->  | K99: =IFERROR(VLOOKUP(A99,STAGIONALITA!$A$3:$M$106,11,FALSE)*P99,"") ->  | L99: =IFERROR(VLOOKUP(A99,STAGIONALITA!$A$3:$M$106,12,FALSE)*P99,"") ->  | M99: =IFERROR(VLOOKUP(A99,STAGIONALITA!$A$3:$M$106,13,FALSE)*P99,"") -> 
B100: =IFERROR(VLOOKUP(A100,STAGIONALITA!$A$3:$M$106,2,FALSE)*P100,"") ->  | C100: =IFERROR(VLOOKUP(A100,STAGIONALITA!$A$3:$M$106,3,FALSE)*P100,"") ->  | D100: =IFERROR(VLOOKUP(A100,STAGIONALITA!$A$3:$M$106,4,FALSE)*P100,"") ->  | E100: =IFERROR(VLOOKUP(A100,STAGIONALITA!$A$3:$M$106,5,FALSE)*P100,"") ->  | F100: =IFERROR(VLOOKUP(A100,STAGIONALITA!$A$3:$M$106,6,FALSE)*P100,"") ->  | G100: =IFERROR(VLOOKUP(A100,STAGIONALITA!$A$3:$M$106,7,FALSE)*P100,"") ->  | H100: =IFERROR(VLOOKUP(A100,STAGIONALITA!$A$3:$M$106,8,FALSE)*P100,"") ->  | I100: =IFERROR(VLOOKUP(A100,STAGIONALITA!$A$3:$M$106,9,FALSE)*P100,"") ->  | J100: =IFERROR(VLOOKUP(A100,STAGIONALITA!$A$3:$M$106,10,FALSE)*P100,"") ->  | K100: =IFERROR(VLOOKUP(A100,STAGIONALITA!$A$3:$M$106,11,FALSE)*P100,"") ->  | L100: =IFERROR(VLOOKUP(A100,STAGIONALITA!$A$3:$M$106,12,FALSE)*P100,"") ->  | M100: =IFERROR(VLOOKUP(A100,STAGIONALITA!$A$3:$M$106,13,FALSE)*P100,"") -> 
B101: =IFERROR(VLOOKUP(A101,STAGIONALITA!$A$3:$M$106,2,FALSE)*P101,"") ->  | C101: =IFERROR(VLOOKUP(A101,STAGIONALITA!$A$3:$M$106,3,FALSE)*P101,"") ->  | D101: =IFERROR(VLOOKUP(A101,STAGIONALITA!$A$3:$M$106,4,FALSE)*P101,"") ->  | E101: =IFERROR(VLOOKUP(A101,STAGIONALITA!$A$3:$M$106,5,FALSE)*P101,"") ->  | F101: =IFERROR(VLOOKUP(A101,STAGIONALITA!$A$3:$M$106,6,FALSE)*P101,"") ->  | G101: =IFERROR(VLOOKUP(A101,STAGIONALITA!$A$3:$M$106,7,FALSE)*P101,"") ->  | H101: =IFERROR(VLOOKUP(A101,STAGIONALITA!$A$3:$M$106,8,FALSE)*P101,"") ->  | I101: =IFERROR(VLOOKUP(A101,STAGIONALITA!$A$3:$M$106,9,FALSE)*P101,"") ->  | J101: =IFERROR(VLOOKUP(A101,STAGIONALITA!$A$3:$M$106,10,FALSE)*P101,"") ->  | K101: =IFERROR(VLOOKUP(A101,STAGIONALITA!$A$3:$M$106,11,FALSE)*P101,"") ->  | L101: =IFERROR(VLOOKUP(A101,STAGIONALITA!$A$3:$M$106,12,FALSE)*P101,"") ->  | M101: =IFERROR(VLOOKUP(A101,STAGIONALITA!$A$3:$M$106,13,FALSE)*P101,"") -> 
B102: =IFERROR(VLOOKUP(A102,STAGIONALITA!$A$3:$M$106,2,FALSE)*P102,"") ->  | C102: =IFERROR(VLOOKUP(A102,STAGIONALITA!$A$3:$M$106,3,FALSE)*P102,"") ->  | D102: =IFERROR(VLOOKUP(A102,STAGIONALITA!$A$3:$M$106,4,FALSE)*P102,"") ->  | E102: =IFERROR(VLOOKUP(A102,STAGIONALITA!$A$3:$M$106,5,FALSE)*P102,"") ->  | F102: =IFERROR(VLOOKUP(A102,STAGIONALITA!$A$3:$M$106,6,FALSE)*P102,"") ->  | G102: =IFERROR(VLOOKUP(A102,STAGIONALITA!$A$3:$M$106,7,FALSE)*P102,"") ->  | H102: =IFERROR(VLOOKUP(A102,STAGIONALITA!$A$3:$M$106,8,FALSE)*P102,"") ->  | I102: =IFERROR(VLOOKUP(A102,STAGIONALITA!$A$3:$M$106,9,FALSE)*P102,"") ->  | J102: =IFERROR(VLOOKUP(A102,STAGIONALITA!$A$3:$M$106,10,FALSE)*P102,"") ->  | K102: =IFERROR(VLOOKUP(A102,STAGIONALITA!$A$3:$M$106,11,FALSE)*P102,"") ->  | L102: =IFERROR(VLOOKUP(A102,STAGIONALITA!$A$3:$M$106,12,FALSE)*P102,"") ->  | M102: =IFERROR(VLOOKUP(A102,STAGIONALITA!$A$3:$M$106,13,FALSE)*P102,"") -> 
B103: =IFERROR(VLOOKUP(A103,STAGIONALITA!$A$3:$M$106,2,FALSE)*P103,"") ->  | C103: =IFERROR(VLOOKUP(A103,STAGIONALITA!$A$3:$M$106,3,FALSE)*P103,"") ->  | D103: =IFERROR(VLOOKUP(A103,STAGIONALITA!$A$3:$M$106,4,FALSE)*P103,"") ->  | E103: =IFERROR(VLOOKUP(A103,STAGIONALITA!$A$3:$M$106,5,FALSE)*P103,"") ->  | F103: =IFERROR(VLOOKUP(A103,STAGIONALITA!$A$3:$M$106,6,FALSE)*P103,"") ->  | G103: =IFERROR(VLOOKUP(A103,STAGIONALITA!$A$3:$M$106,7,FALSE)*P103,"") ->  | H103: =IFERROR(VLOOKUP(A103,STAGIONALITA!$A$3:$M$106,8,FALSE)*P103,"") ->  | I103: =IFERROR(VLOOKUP(A103,STAGIONALITA!$A$3:$M$106,9,FALSE)*P103,"") ->  | J103: =IFERROR(VLOOKUP(A103,STAGIONALITA!$A$3:$M$106,10,FALSE)*P103,"") ->  | K103: =IFERROR(VLOOKUP(A103,STAGIONALITA!$A$3:$M$106,11,FALSE)*P103,"") ->  | L103: =IFERROR(VLOOKUP(A103,STAGIONALITA!$A$3:$M$106,12,FALSE)*P103,"") ->  | M103: =IFERROR(VLOOKUP(A103,STAGIONALITA!$A$3:$M$106,13,FALSE)*P103,"") -> 
B104: =IFERROR(VLOOKUP(A104,STAGIONALITA!$A$3:$M$106,2,FALSE)*P104,"") ->  | C104: =IFERROR(VLOOKUP(A104,STAGIONALITA!$A$3:$M$106,3,FALSE)*P104,"") ->  | D104: =IFERROR(VLOOKUP(A104,STAGIONALITA!$A$3:$M$106,4,FALSE)*P104,"") ->  | E104: =IFERROR(VLOOKUP(A104,STAGIONALITA!$A$3:$M$106,5,FALSE)*P104,"") ->  | F104: =IFERROR(VLOOKUP(A104,STAGIONALITA!$A$3:$M$106,6,FALSE)*P104,"") ->  | G104: =IFERROR(VLOOKUP(A104,STAGIONALITA!$A$3:$M$106,7,FALSE)*P104,"") ->  | H104: =IFERROR(VLOOKUP(A104,STAGIONALITA!$A$3:$M$106,8,FALSE)*P104,"") ->  | I104: =IFERROR(VLOOKUP(A104,STAGIONALITA!$A$3:$M$106,9,FALSE)*P104,"") ->  | J104: =IFERROR(VLOOKUP(A104,STAGIONALITA!$A$3:$M$106,10,FALSE)*P104,"") ->  | K104: =IFERROR(VLOOKUP(A104,STAGIONALITA!$A$3:$M$106,11,FALSE)*P104,"") ->  | L104: =IFERROR(VLOOKUP(A104,STAGIONALITA!$A$3:$M$106,12,FALSE)*P104,"") ->  | M104: =IFERROR(VLOOKUP(A104,STAGIONALITA!$A$3:$M$106,13,FALSE)*P104,"") -> 
B105: =IFERROR(VLOOKUP(A105,STAGIONALITA!$A$3:$M$106,2,FALSE)*P105,"") ->  | C105: =IFERROR(VLOOKUP(A105,STAGIONALITA!$A$3:$M$106,3,FALSE)*P105,"") ->  | D105: =IFERROR(VLOOKUP(A105,STAGIONALITA!$A$3:$M$106,4,FALSE)*P105,"") ->  | E105: =IFERROR(VLOOKUP(A105,STAGIONALITA!$A$3:$M$106,5,FALSE)*P105,"") ->  | F105: =IFERROR(VLOOKUP(A105,STAGIONALITA!$A$3:$M$106,6,FALSE)*P105,"") ->  | G105: =IFERROR(VLOOKUP(A105,STAGIONALITA!$A$3:$M$106,7,FALSE)*P105,"") ->  | H105: =IFERROR(VLOOKUP(A105,STAGIONALITA!$A$3:$M$106,8,FALSE)*P105,"") ->  | I105: =IFERROR(VLOOKUP(A105,STAGIONALITA!$A$3:$M$106,9,FALSE)*P105,"") ->  | J105: =IFERROR(VLOOKUP(A105,STAGIONALITA!$A$3:$M$106,10,FALSE)*P105,"") ->  | K105: =IFERROR(VLOOKUP(A105,STAGIONALITA!$A$3:$M$106,11,FALSE)*P105,"") ->  | L105: =IFERROR(VLOOKUP(A105,STAGIONALITA!$A$3:$M$106,12,FALSE)*P105,"") ->  | M105: =IFERROR(VLOOKUP(A105,STAGIONALITA!$A$3:$M$106,13,FALSE)*P105,"") -> 
B106: =IFERROR(VLOOKUP(A106,STAGIONALITA!$A$3:$M$106,2,FALSE)*P106,"") ->  | C106: =IFERROR(VLOOKUP(A106,STAGIONALITA!$A$3:$M$106,3,FALSE)*P106,"") ->  | D106: =IFERROR(VLOOKUP(A106,STAGIONALITA!$A$3:$M$106,4,FALSE)*P106,"") ->  | E106: =IFERROR(VLOOKUP(A106,STAGIONALITA!$A$3:$M$106,5,FALSE)*P106,"") ->  | F106: =IFERROR(VLOOKUP(A106,STAGIONALITA!$A$3:$M$106,6,FALSE)*P106,"") ->  | G106: =IFERROR(VLOOKUP(A106,STAGIONALITA!$A$3:$M$106,7,FALSE)*P106,"") ->  | H106: =IFERROR(VLOOKUP(A106,STAGIONALITA!$A$3:$M$106,8,FALSE)*P106,"") ->  | I106: =IFERROR(VLOOKUP(A106,STAGIONALITA!$A$3:$M$106,9,FALSE)*P106,"") ->  | J106: =IFERROR(VLOOKUP(A106,STAGIONALITA!$A$3:$M$106,10,FALSE)*P106,"") ->  | K106: =IFERROR(VLOOKUP(A106,STAGIONALITA!$A$3:$M$106,11,FALSE)*P106,"") ->  | L106: =IFERROR(VLOOKUP(A106,STAGIONALITA!$A$3:$M$106,12,FALSE)*P106,"") ->  | M106: =IFERROR(VLOOKUP(A106,STAGIONALITA!$A$3:$M$106,13,FALSE)*P106,"") -> 
B107: =IFERROR(VLOOKUP(A107,STAGIONALITA!$A$3:$M$106,2,FALSE)*P107,"") ->  | C107: =IFERROR(VLOOKUP(A107,STAGIONALITA!$A$3:$M$106,3,FALSE)*P107,"") ->  | D107: =IFERROR(VLOOKUP(A107,STAGIONALITA!$A$3:$M$106,4,FALSE)*P107,"") ->  | E107: =IFERROR(VLOOKUP(A107,STAGIONALITA!$A$3:$M$106,5,FALSE)*P107,"") ->  | F107: =IFERROR(VLOOKUP(A107,STAGIONALITA!$A$3:$M$106,6,FALSE)*P107,"") ->  | G107: =IFERROR(VLOOKUP(A107,STAGIONALITA!$A$3:$M$106,7,FALSE)*P107,"") ->  | H107: =IFERROR(VLOOKUP(A107,STAGIONALITA!$A$3:$M$106,8,FALSE)*P107,"") ->  | I107: =IFERROR(VLOOKUP(A107,STAGIONALITA!$A$3:$M$106,9,FALSE)*P107,"") ->  | J107: =IFERROR(VLOOKUP(A107,STAGIONALITA!$A$3:$M$106,10,FALSE)*P107,"") ->  | K107: =IFERROR(VLOOKUP(A107,STAGIONALITA!$A$3:$M$106,11,FALSE)*P107,"") ->  | L107: =IFERROR(VLOOKUP(A107,STAGIONALITA!$A$3:$M$106,12,FALSE)*P107,"") ->  | M107: =IFERROR(VLOOKUP(A107,STAGIONALITA!$A$3:$M$106,13,FALSE)*P107,"") -> 
B108: =IFERROR(VLOOKUP(A108,STAGIONALITA!$A$3:$M$106,2,FALSE)*P108,"") ->  | C108: =IFERROR(VLOOKUP(A108,STAGIONALITA!$A$3:$M$106,3,FALSE)*P108,"") ->  | D108: =IFERROR(VLOOKUP(A108,STAGIONALITA!$A$3:$M$106,4,FALSE)*P108,"") ->  | E108: =IFERROR(VLOOKUP(A108,STAGIONALITA!$A$3:$M$106,5,FALSE)*P108,"") ->  | F108: =IFERROR(VLOOKUP(A108,STAGIONALITA!$A$3:$M$106,6,FALSE)*P108,"") ->  | G108: =IFERROR(VLOOKUP(A108,STAGIONALITA!$A$3:$M$106,7,FALSE)*P108,"") ->  | H108: =IFERROR(VLOOKUP(A108,STAGIONALITA!$A$3:$M$106,8,FALSE)*P108,"") ->  | I108: =IFERROR(VLOOKUP(A108,STAGIONALITA!$A$3:$M$106,9,FALSE)*P108,"") ->  | J108: =IFERROR(VLOOKUP(A108,STAGIONALITA!$A$3:$M$106,10,FALSE)*P108,"") ->  | K108: =IFERROR(VLOOKUP(A108,STAGIONALITA!$A$3:$M$106,11,FALSE)*P108,"") ->  | L108: =IFERROR(VLOOKUP(A108,STAGIONALITA!$A$3:$M$106,12,FALSE)*P108,"") ->  | M108: =IFERROR(VLOOKUP(A108,STAGIONALITA!$A$3:$M$106,13,FALSE)*P108,"") -> 
B109: =IFERROR(VLOOKUP(A109,STAGIONALITA!$A$3:$M$106,2,FALSE)*P109,"") ->  | C109: =IFERROR(VLOOKUP(A109,STAGIONALITA!$A$3:$M$106,3,FALSE)*P109,"") ->  | D109: =IFERROR(VLOOKUP(A109,STAGIONALITA!$A$3:$M$106,4,FALSE)*P109,"") ->  | E109: =IFERROR(VLOOKUP(A109,STAGIONALITA!$A$3:$M$106,5,FALSE)*P109,"") ->  | F109: =IFERROR(VLOOKUP(A109,STAGIONALITA!$A$3:$M$106,6,FALSE)*P109,"") ->  | G109: =IFERROR(VLOOKUP(A109,STAGIONALITA!$A$3:$M$106,7,FALSE)*P109,"") ->  | H109: =IFERROR(VLOOKUP(A109,STAGIONALITA!$A$3:$M$106,8,FALSE)*P109,"") ->  | I109: =IFERROR(VLOOKUP(A109,STAGIONALITA!$A$3:$M$106,9,FALSE)*P109,"") ->  | J109: =IFERROR(VLOOKUP(A109,STAGIONALITA!$A$3:$M$106,10,FALSE)*P109,"") ->  | K109: =IFERROR(VLOOKUP(A109,STAGIONALITA!$A$3:$M$106,11,FALSE)*P109,"") ->  | L109: =IFERROR(VLOOKUP(A109,STAGIONALITA!$A$3:$M$106,12,FALSE)*P109,"") ->  | M109: =IFERROR(VLOOKUP(A109,STAGIONALITA!$A$3:$M$106,13,FALSE)*P109,"") -> 
B110: =IFERROR(VLOOKUP(A110,STAGIONALITA!$A$3:$M$106,2,FALSE)*P110,"") ->  | C110: =IFERROR(VLOOKUP(A110,STAGIONALITA!$A$3:$M$106,3,FALSE)*P110,"") ->  | D110: =IFERROR(VLOOKUP(A110,STAGIONALITA!$A$3:$M$106,4,FALSE)*P110,"") ->  | E110: =IFERROR(VLOOKUP(A110,STAGIONALITA!$A$3:$M$106,5,FALSE)*P110,"") ->  | F110: =IFERROR(VLOOKUP(A110,STAGIONALITA!$A$3:$M$106,6,FALSE)*P110,"") ->  | G110: =IFERROR(VLOOKUP(A110,STAGIONALITA!$A$3:$M$106,7,FALSE)*P110,"") ->  | H110: =IFERROR(VLOOKUP(A110,STAGIONALITA!$A$3:$M$106,8,FALSE)*P110,"") ->  | I110: =IFERROR(VLOOKUP(A110,STAGIONALITA!$A$3:$M$106,9,FALSE)*P110,"") ->  | J110: =IFERROR(VLOOKUP(A110,STAGIONALITA!$A$3:$M$106,10,FALSE)*P110,"") ->  | K110: =IFERROR(VLOOKUP(A110,STAGIONALITA!$A$3:$M$106,11,FALSE)*P110,"") ->  | L110: =IFERROR(VLOOKUP(A110,STAGIONALITA!$A$3:$M$106,12,FALSE)*P110,"") ->  | M110: =IFERROR(VLOOKUP(A110,STAGIONALITA!$A$3:$M$106,13,FALSE)*P110,"") -> 
B111: =IFERROR(VLOOKUP(A111,STAGIONALITA!$A$3:$M$106,2,FALSE)*P111,"") ->  | C111: =IFERROR(VLOOKUP(A111,STAGIONALITA!$A$3:$M$106,3,FALSE)*P111,"") ->  | D111: =IFERROR(VLOOKUP(A111,STAGIONALITA!$A$3:$M$106,4,FALSE)*P111,"") ->  | E111: =IFERROR(VLOOKUP(A111,STAGIONALITA!$A$3:$M$106,5,FALSE)*P111,"") ->  | F111: =IFERROR(VLOOKUP(A111,STAGIONALITA!$A$3:$M$106,6,FALSE)*P111,"") ->  | G111: =IFERROR(VLOOKUP(A111,STAGIONALITA!$A$3:$M$106,7,FALSE)*P111,"") ->  | H111: =IFERROR(VLOOKUP(A111,STAGIONALITA!$A$3:$M$106,8,FALSE)*P111,"") ->  | I111: =IFERROR(VLOOKUP(A111,STAGIONALITA!$A$3:$M$106,9,FALSE)*P111,"") ->  | J111: =IFERROR(VLOOKUP(A111,STAGIONALITA!$A$3:$M$106,10,FALSE)*P111,"") ->  | K111: =IFERROR(VLOOKUP(A111,STAGIONALITA!$A$3:$M$106,11,FALSE)*P111,"") ->  | L111: =IFERROR(VLOOKUP(A111,STAGIONALITA!$A$3:$M$106,12,FALSE)*P111,"") ->  | M111: =IFERROR(VLOOKUP(A111,STAGIONALITA!$A$3:$M$106,13,FALSE)*P111,"") -> 
B112: =IFERROR(VLOOKUP(A112,STAGIONALITA!$A$3:$M$106,2,FALSE)*P112,"") ->  | C112: =IFERROR(VLOOKUP(A112,STAGIONALITA!$A$3:$M$106,3,FALSE)*P112,"") ->  | D112: =IFERROR(VLOOKUP(A112,STAGIONALITA!$A$3:$M$106,4,FALSE)*P112,"") ->  | E112: =IFERROR(VLOOKUP(A112,STAGIONALITA!$A$3:$M$106,5,FALSE)*P112,"") ->  | F112: =IFERROR(VLOOKUP(A112,STAGIONALITA!$A$3:$M$106,6,FALSE)*P112,"") ->  | G112: =IFERROR(VLOOKUP(A112,STAGIONALITA!$A$3:$M$106,7,FALSE)*P112,"") ->  | H112: =IFERROR(VLOOKUP(A112,STAGIONALITA!$A$3:$M$106,8,FALSE)*P112,"") ->  | I112: =IFERROR(VLOOKUP(A112,STAGIONALITA!$A$3:$M$106,9,FALSE)*P112,"") ->  | J112: =IFERROR(VLOOKUP(A112,STAGIONALITA!$A$3:$M$106,10,FALSE)*P112,"") ->  | K112: =IFERROR(VLOOKUP(A112,STAGIONALITA!$A$3:$M$106,11,FALSE)*P112,"") ->  | L112: =IFERROR(VLOOKUP(A112,STAGIONALITA!$A$3:$M$106,12,FALSE)*P112,"") ->  | M112: =IFERROR(VLOOKUP(A112,STAGIONALITA!$A$3:$M$106,13,FALSE)*P112,"") -> 
B113: =IFERROR(VLOOKUP(A113,STAGIONALITA!$A$3:$M$106,2,FALSE)*P113,"") ->  | C113: =IFERROR(VLOOKUP(A113,STAGIONALITA!$A$3:$M$106,3,FALSE)*P113,"") ->  | D113: =IFERROR(VLOOKUP(A113,STAGIONALITA!$A$3:$M$106,4,FALSE)*P113,"") ->  | E113: =IFERROR(VLOOKUP(A113,STAGIONALITA!$A$3:$M$106,5,FALSE)*P113,"") ->  | F113: =IFERROR(VLOOKUP(A113,STAGIONALITA!$A$3:$M$106,6,FALSE)*P113,"") ->  | G113: =IFERROR(VLOOKUP(A113,STAGIONALITA!$A$3:$M$106,7,FALSE)*P113,"") ->  | H113: =IFERROR(VLOOKUP(A113,STAGIONALITA!$A$3:$M$106,8,FALSE)*P113,"") ->  | I113: =IFERROR(VLOOKUP(A113,STAGIONALITA!$A$3:$M$106,9,FALSE)*P113,"") ->  | J113: =IFERROR(VLOOKUP(A113,STAGIONALITA!$A$3:$M$106,10,FALSE)*P113,"") ->  | K113: =IFERROR(VLOOKUP(A113,STAGIONALITA!$A$3:$M$106,11,FALSE)*P113,"") ->  | L113: =IFERROR(VLOOKUP(A113,STAGIONALITA!$A$3:$M$106,12,FALSE)*P113,"") ->  | M113: =IFERROR(VLOOKUP(A113,STAGIONALITA!$A$3:$M$106,13,FALSE)*P113,"") -> 
B114: =IFERROR(VLOOKUP(A114,STAGIONALITA!$A$3:$M$106,2,FALSE)*P114,"") ->  | C114: =IFERROR(VLOOKUP(A114,STAGIONALITA!$A$3:$M$106,3,FALSE)*P114,"") ->  | D114: =IFERROR(VLOOKUP(A114,STAGIONALITA!$A$3:$M$106,4,FALSE)*P114,"") ->  | E114: =IFERROR(VLOOKUP(A114,STAGIONALITA!$A$3:$M$106,5,FALSE)*P114,"") ->  | F114: =IFERROR(VLOOKUP(A114,STAGIONALITA!$A$3:$M$106,6,FALSE)*P114,"") ->  | G114: =IFERROR(VLOOKUP(A114,STAGIONALITA!$A$3:$M$106,7,FALSE)*P114,"") ->  | H114: =IFERROR(VLOOKUP(A114,STAGIONALITA!$A$3:$M$106,8,FALSE)*P114,"") ->  | I114: =IFERROR(VLOOKUP(A114,STAGIONALITA!$A$3:$M$106,9,FALSE)*P114,"") ->  | J114: =IFERROR(VLOOKUP(A114,STAGIONALITA!$A$3:$M$106,10,FALSE)*P114,"") ->  | K114: =IFERROR(VLOOKUP(A114,STAGIONALITA!$A$3:$M$106,11,FALSE)*P114,"") ->  | L114: =IFERROR(VLOOKUP(A114,STAGIONALITA!$A$3:$M$106,12,FALSE)*P114,"") ->  | M114: =IFERROR(VLOOKUP(A114,STAGIONALITA!$A$3:$M$106,13,FALSE)*P114,"") -> 
B115: =IFERROR(VLOOKUP(A115,STAGIONALITA!$A$3:$M$106,2,FALSE)*P115,"") ->  | C115: =IFERROR(VLOOKUP(A115,STAGIONALITA!$A$3:$M$106,3,FALSE)*P115,"") ->  | D115: =IFERROR(VLOOKUP(A115,STAGIONALITA!$A$3:$M$106,4,FALSE)*P115,"") ->  | E115: =IFERROR(VLOOKUP(A115,STAGIONALITA!$A$3:$M$106,5,FALSE)*P115,"") ->  | F115: =IFERROR(VLOOKUP(A115,STAGIONALITA!$A$3:$M$106,6,FALSE)*P115,"") ->  | G115: =IFERROR(VLOOKUP(A115,STAGIONALITA!$A$3:$M$106,7,FALSE)*P115,"") ->  | H115: =IFERROR(VLOOKUP(A115,STAGIONALITA!$A$3:$M$106,8,FALSE)*P115,"") ->  | I115: =IFERROR(VLOOKUP(A115,STAGIONALITA!$A$3:$M$106,9,FALSE)*P115,"") ->  | J115: =IFERROR(VLOOKUP(A115,STAGIONALITA!$A$3:$M$106,10,FALSE)*P115,"") ->  | K115: =IFERROR(VLOOKUP(A115,STAGIONALITA!$A$3:$M$106,11,FALSE)*P115,"") ->  | L115: =IFERROR(VLOOKUP(A115,STAGIONALITA!$A$3:$M$106,12,FALSE)*P115,"") ->  | M115: =IFERROR(VLOOKUP(A115,STAGIONALITA!$A$3:$M$106,13,FALSE)*P115,"") -> 
B116: =IFERROR(VLOOKUP(A116,STAGIONALITA!$A$3:$M$106,2,FALSE)*P116,"") ->  | C116: =IFERROR(VLOOKUP(A116,STAGIONALITA!$A$3:$M$106,3,FALSE)*P116,"") ->  | D116: =IFERROR(VLOOKUP(A116,STAGIONALITA!$A$3:$M$106,4,FALSE)*P116,"") ->  | E116: =IFERROR(VLOOKUP(A116,STAGIONALITA!$A$3:$M$106,5,FALSE)*P116,"") ->  | F116: =IFERROR(VLOOKUP(A116,STAGIONALITA!$A$3:$M$106,6,FALSE)*P116,"") ->  | G116: =IFERROR(VLOOKUP(A116,STAGIONALITA!$A$3:$M$106,7,FALSE)*P116,"") ->  | H116: =IFERROR(VLOOKUP(A116,STAGIONALITA!$A$3:$M$106,8,FALSE)*P116,"") ->  | I116: =IFERROR(VLOOKUP(A116,STAGIONALITA!$A$3:$M$106,9,FALSE)*P116,"") ->  | J116: =IFERROR(VLOOKUP(A116,STAGIONALITA!$A$3:$M$106,10,FALSE)*P116,"") ->  | K116: =IFERROR(VLOOKUP(A116,STAGIONALITA!$A$3:$M$106,11,FALSE)*P116,"") ->  | L116: =IFERROR(VLOOKUP(A116,STAGIONALITA!$A$3:$M$106,12,FALSE)*P116,"") ->  | M116: =IFERROR(VLOOKUP(A116,STAGIONALITA!$A$3:$M$106,13,FALSE)*P116,"") -> 

Sheet PREMI
B1: STIMA PREMI AD OGGI
A4: SOCIO | B4: FORNITORE | C4: Fatt. Progr.2022 | D4: Incondizionato | E4: Premio a Target | F4: Totale premi
A5: CALLIPO Srl | C5: 587659.104 | F5: =SUM(F6:F102) -> 27575.90458
B6: Albatros | C6: 6117 | D6: =IFERROR(VLOOKUP(B6,'[1]FATT+ORD+P.O.'!$A$3:$I$99,6,FALSE),"") -> 0 | E6: =IFERROR(VLOOKUP(B6,'[1]FATT+ORD+P.O.'!$A$3:$I$99,7,FALSE),"") -> 0 | F6: =IFERROR(C6*(D6+E6),"") -> 0
B7: Arblu | C7: 46001.85 | D7: =IFERROR(VLOOKUP(B7,'[1]FATT+ORD+P.O.'!$A$3:$I$99,6,FALSE),"") -> 0 | E7: =IFERROR(VLOOKUP(B7,'[1]FATT+ORD+P.O.'!$A$3:$I$99,7,FALSE),"") -> 0.035 | F7: =IFERROR(C7*(D7+E7),"") -> 1610.06475
B8: Arredamenti Montegrappa | C8: 1958.57 | D8: =IFERROR(VLOOKUP(B8,'[1]FATT+ORD+P.O.'!$A$3:$I$99,6,FALSE),"") -> 0.05 | E8: =IFERROR(VLOOKUP(B8,'[1]FATT+ORD+P.O.'!$A$3:$I$99,7,FALSE),"") -> 0 | F8: 97.9285
B9: BT-Flex | C9: 8308.24 | D9: =IFERROR(VLOOKUP(B9,'[1]FATT+ORD+P.O.'!$A$3:$I$99,6,FALSE),"") -> 0.04 | E9: =IFERROR(VLOOKUP(B9,'[1]FATT+ORD+P.O.'!$A$3:$I$99,7,FALSE),"") -> 0 | F9: 332.3296
B10: Caleffi | C10: 2392.78 | D10: =IFERROR(VLOOKUP(B10,'[1]FATT+ORD+P.O.'!$A$3:$I$99,6,FALSE),"") -> 0 | E10: =IFERROR(VLOOKUP(B10,'[1]FATT+ORD+P.O.'!$A$3:$I$99,7,FALSE),"") -> 0.01 | F10: 23.9278
B11: Dab Pumps | C11: 2706.67 | D11: =IFERROR(VLOOKUP(B11,'[1]FATT+ORD+P.O.'!$A$3:$I$99,6,FALSE),"") -> 0 | E11: =IFERROR(VLOOKUP(B11,'[1]FATT+ORD+P.O.'!$A$3:$I$99,7,FALSE),"") -> 0.04 | F11: 108.2668
B12: First Corporation | C12: 4656.96 | D12: =IFERROR(VLOOKUP(B12,'[1]FATT+ORD+P.O.'!$A$3:$I$99,6,FALSE),"") -> 0.05 | E12: =IFERROR(VLOOKUP(B12,'[1]FATT+ORD+P.O.'!$A$3:$I$99,7,FALSE),"") -> 0 | F12: 232.848
B13: Galassia | C13: 16964 | D13: =IFERROR(VLOOKUP(B13,'[1]FATT+ORD+P.O.'!$A$3:$I$99,6,FALSE),"") -> 0 | E13: =IFERROR(VLOOKUP(B13,'[1]FATT+ORD+P.O.'!$A$3:$I$99,7,FALSE),"") -> 0.03 | F13: 508.92
B14: Galletti | C14: 6012.66 | D14: =IFERROR(VLOOKUP(B14,'[1]FATT+ORD+P.O.'!$A$3:$I$99,6,FALSE),"") -> 0 | E14: =IFERROR(VLOOKUP(B14,'[1]FATT+ORD+P.O.'!$A$3:$I$99,7,FALSE),"") -> 0.02 | F14: 120.2532
B15: GBD | C15: 660.204 | D15: =IFERROR(VLOOKUP(B15,'[1]FATT+ORD+P.O.'!$A$3:$I$99,6,FALSE),"") -> 0 | E15: =IFERROR(VLOOKUP(B15,'[1]FATT+ORD+P.O.'!$A$3:$I$99,7,FALSE),"") -> 0 | F15: 0
B16: Geberit | C16: 885.31 | D16: =IFERROR(VLOOKUP(B16,'[1]FATT+ORD+P.O.'!$A$3:$I$99,6,FALSE),"") -> 0 | E16: =IFERROR(VLOOKUP(B16,'[1]FATT+ORD+P.O.'!$A$3:$I$99,7,FALSE),"") -> 0.0075 | F16: 6.639825
B17: Giacomini | C17: 72924.08 | D17: =IFERROR(VLOOKUP(B17,'[1]FATT+ORD+P.O.'!$A$3:$I$99,6,FALSE),"") -> 0 | E17: =IFERROR(VLOOKUP(B17,'[1]FATT+ORD+P.O.'!$A$3:$I$99,7,FALSE),"") -> 0.045 | F17: 3281.5836
B18: Global | C18: 16184 | D18: =IFERROR(VLOOKUP(B18,'[1]FATT+ORD+P.O.'!$A$3:$I$99,6,FALSE),"") -> 0.06 | E18: =IFERROR(VLOOKUP(B18,'[1]FATT+ORD+P.O.'!$A$3:$I$99,7,FALSE),"") -> 0 | F18: 971.04
B19: Haier | C19: 100088.61 | D19: =IFERROR(VLOOKUP(B19,'[1]FATT+ORD+P.O.'!$A$3:$I$99,6,TRUE),"") -> 0 | E19: =IFERROR(VLOOKUP(B19,'[1]FATT+ORD+P.O.'!$A$3:$I$99,7,TRUE),"") -> 0.05 | F19: 5004.4305
B20: Immergas | C20: 108115 | D20: =IFERROR(VLOOKUP(B20,'[1]FATT+ORD+P.O.'!$A$3:$I$99,6,TRUE),"") -> 0 | E20: =IFERROR(VLOOKUP(B20,'[1]FATT+ORD+P.O.'!$A$3:$I$99,7,TRUE),"") -> 0.02 | F20: 2162.3
B21: Isoclima | C21: 13271.25 | D21: =IFERROR(VLOOKUP(B21,'[1]FATT+ORD+P.O.'!$A$3:$I$99,6,TRUE),"") -> 0 | E21: =IFERROR(VLOOKUP(B21,'[1]FATT+ORD+P.O.'!$A$3:$I$99,7,TRUE),"") -> 0.02 | F21: 265.425
B22: LG | C22: 25547.13 | D22: =IFERROR(VLOOKUP(B22,'[1]FATT+ORD+P.O.'!$A$3:$I$99,6,FALSE),"") -> 0 | E22: =IFERROR(VLOOKUP(B22,'[1]FATT+ORD+P.O.'!$A$3:$I$99,7,FALSE),"") -> 0.09 | F22: 2299.2417
B23: Mut Meccanica Tovo | C23: 8669.05 | D23: =IFERROR(VLOOKUP(B23,'[1]FATT+ORD+P.O.'!$A$3:$I$99,6,FALSE),"") -> 0 | E23: =IFERROR(VLOOKUP(B23,'[1]FATT+ORD+P.O.'!$A$3:$I$99,7,FALSE),"") -> 0.01 | F23: 86.6905
B24: Negrari | C24: 114.02 | D24: =IFERROR(VLOOKUP(B24,'[1]FATT+ORD+P.O.'!$A$3:$I$99,6,FALSE),"") -> 0.025 | E24: =IFERROR(VLOOKUP(B24,'[1]FATT+ORD+P.O.'!$A$3:$I$99,7,FALSE),"") -> 0 | F24: 2.8505
B25: Neoperl | C25: 694.6 | D25: =IFERROR(VLOOKUP(B25,'[1]FATT+ORD+P.O.'!$A$3:$I$99,6,FALSE),"") -> 0 | E25: =IFERROR(VLOOKUP(B25,'[1]FATT+ORD+P.O.'!$A$3:$I$99,7,FALSE),"") -> 0.05 | F25: 34.73
B26: Novellini | C26: 47680.96 | D26: =IFERROR(VLOOKUP(B26,'[1]FATT+ORD+P.O.'!$A$3:$I$99,6,FALSE),"") -> 0.05 | E26: =IFERROR(VLOOKUP(B26,'[1]FATT+ORD+P.O.'!$A$3:$I$99,7,FALSE),"") -> 0.03 | F26: 3814.4768
B27: Olimpia Splendid | C27: 4544.3 | D27: =IFERROR(VLOOKUP(B27,'[1]FATT+ORD+P.O.'!$A$3:$I$99,6,FALSE),"") -> 0 | E27: =IFERROR(VLOOKUP(B27,'[1]FATT+ORD+P.O.'!$A$3:$I$99,7,FALSE),"") -> 0.03 | F27: 136.329
B28: Omp Tea | C28: 3160.77 | D28: =IFERROR(VLOOKUP(B28,'[1]FATT+ORD+P.O.'!$A$3:$I$99,6,FALSE),"") -> 0.1 | E28: =IFERROR(VLOOKUP(B28,'[1]FATT+ORD+P.O.'!$A$3:$I$99,7,FALSE),"") -> 0 | F28: 316.077
B29: Rizzo Aquae | C29: 1234.59 | D29: =IFERROR(VLOOKUP(B29,'[1]FATT+ORD+P.O.'!$A$3:$I$99,6,FALSE),"") -> 0 | E29: =IFERROR(VLOOKUP(B29,'[1]FATT+ORD+P.O.'!$A$3:$I$99,7,FALSE),"") -> 0 | F29: 0
B30: Rubinetterie Bresciane | C30: 12724.55 | D30: =IFERROR(VLOOKUP(B30,'[1]FATT+ORD+P.O.'!$A$3:$I$99,6,FALSE),"") -> 0.17 | E30: =IFERROR(VLOOKUP(B30,'[1]FATT+ORD+P.O.'!$A$3:$I$99,7,FALSE),"") -> 0 | F30: 2163.1735
B31: Tiemme Raccorderie | C31: 56947.95 | D31: =IFERROR(VLOOKUP(B31,'[1]FATT+ORD+P.O.'!$A$3:$I$99,6,FALSE),"") -> 0.01 | E31: =IFERROR(VLOOKUP(B31,'[1]FATT+ORD+P.O.'!$A$3:$I$99,7,FALSE),"") -> 0.03 | F31: 2277.918
B32: Valsir | C32: 19094 | D32: =IFERROR(VLOOKUP(B32,'[1]FATT+ORD+P.O.'!$A$3:$I$99,6,FALSE),"") -> 0 | E32: =IFERROR(VLOOKUP(B32,'[1]FATT+ORD+P.O.'!$A$3:$I$99,7,FALSE),"") -> 0.09 | F32: 1718.46
A33: Totale complessivo | C33: 587659.104 | D33: =IFERROR(VLOOKUP(B33,'[1]FATT+ORD+P.O.'!$A$3:$I$99,6,FALSE),"") ->  | E33: =IFERROR(VLOOKUP(B33,'[1]FATT+ORD+P.O.'!$A$3:$I$99,7,FALSE),"") -> 
D34: =IFERROR(VLOOKUP(B34,'[1]FATT+ORD+P.O.'!$A$3:$I$99,6,FALSE),"") ->  | E34: =IFERROR(VLOOKUP(B34,'[1]FATT+ORD+P.O.'!$A$3:$I$99,7,FALSE),"") -> 
D35: =IFERROR(VLOOKUP(B35,'[1]FATT+ORD+P.O.'!$A$3:$I$99,6,FALSE),"") ->  | E35: =IFERROR(VLOOKUP(B35,'[1]FATT+ORD+P.O.'!$A$3:$I$99,7,FALSE),"") -> 
D36: =IFERROR(VLOOKUP(B36,'[1]FATT+ORD+P.O.'!$A$3:$I$99,6,FALSE),"") ->  | E36: =IFERROR(VLOOKUP(B36,'[1]FATT+ORD+P.O.'!$A$3:$I$99,7,FALSE),"") -> 
D37: =IFERROR(VLOOKUP(B37,'[1]FATT+ORD+P.O.'!$A$3:$I$99,6,FALSE),"") ->  | E37: =IFERROR(VLOOKUP(B37,'[1]FATT+ORD+P.O.'!$A$3:$I$99,7,FALSE),"") -> 
D38: =IFERROR(VLOOKUP(B38,'[1]FATT+ORD+P.O.'!$A$3:$I$99,6,FALSE),"") ->  | E38: =IFERROR(VLOOKUP(B38,'[1]FATT+ORD+P.O.'!$A$3:$I$99,7,FALSE),"") -> 
D39: =IFERROR(VLOOKUP(B39,'[1]FATT+ORD+P.O.'!$A$3:$I$99,6,FALSE),"") ->  | E39: =IFERROR(VLOOKUP(B39,'[1]FATT+ORD+P.O.'!$A$3:$I$99,7,FALSE),"") -> 
D40: =IFERROR(VLOOKUP(B40,'[1]FATT+ORD+P.O.'!$A$3:$I$99,6,FALSE),"") ->  | E40: =IFERROR(VLOOKUP(B40,'[1]FATT+ORD+P.O.'!$A$3:$I$99,7,FALSE),"") -> 
D41: =IFERROR(VLOOKUP(B41,'[1]FATT+ORD+P.O.'!$A$3:$I$99,6,FALSE),"") ->  | E41: =IFERROR(VLOOKUP(B41,'[1]FATT+ORD+P.O.'!$A$3:$I$99,7,FALSE),"") -> 
D42: =IFERROR(VLOOKUP(B42,'[1]FATT+ORD+P.O.'!$A$3:$I$99,6,FALSE),"") ->  | E42: =IFERROR(VLOOKUP(B42,'[1]FATT+ORD+P.O.'!$A$3:$I$99,7,FALSE),"") -> 
D43: =IFERROR(VLOOKUP(B43,'[1]FATT+ORD+P.O.'!$A$3:$I$99,6,FALSE),"") ->  | E43: =IFERROR(VLOOKUP(B43,'[1]FATT+ORD+P.O.'!$A$3:$I$99,7,FALSE),"") -> 
D44: =IFERROR(VLOOKUP(B44,'[1]FATT+ORD+P.O.'!$A$3:$I$99,6,FALSE),"") ->  | E44: =IFERROR(VLOOKUP(B44,'[1]FATT+ORD+P.O.'!$A$3:$I$99,7,FALSE),"") -> 
D45: =IFERROR(VLOOKUP(B45,'[1]FATT+ORD+P.O.'!$A$3:$I$99,6,FALSE),"") ->  | E45: =IFERROR(VLOOKUP(B45,'[1]FATT+ORD+P.O.'!$A$3:$I$99,7,FALSE),"") -> 
D46: =IFERROR(VLOOKUP(B46,'[1]FATT+ORD+P.O.'!$A$3:$I$99,6,FALSE),"") ->  | E46: =IFERROR(VLOOKUP(B46,'[1]FATT+ORD+P.O.'!$A$3:$I$99,7,FALSE),"") -> 
D47: =IFERROR(VLOOKUP(B47,'[1]FATT+ORD+P.O.'!$A$3:$I$99,6,FALSE),"") ->  | E47: =IFERROR(VLOOKUP(B47,'[1]FATT+ORD+P.O.'!$A$3:$I$99,7,FALSE),"") -> 
D48: =IFERROR(VLOOKUP(B48,'[1]FATT+ORD+P.O.'!$A$3:$I$99,6,FALSE),"") ->  | E48: =IFERROR(VLOOKUP(B48,'[1]FATT+ORD+P.O.'!$A$3:$I$99,7,FALSE),"") -> 
D49: =IFERROR(VLOOKUP(B49,'[1]FATT+ORD+P.O.'!$A$3:$I$99,6,FALSE),"") ->  | E49: =IFERROR(VLOOKUP(B49,'[1]FATT+ORD+P.O.'!$A$3:$I$99,7,FALSE),"") -> 
D50: =IFERROR(VLOOKUP(B50,'[1]FATT+ORD+P.O.'!$A$3:$I$99,6,FALSE),"") ->  | E50: =IFERROR(VLOOKUP(B50,'[1]FATT+ORD+P.O.'!$A$3:$I$99,7,FALSE),"") -> 
D51: =IFERROR(VLOOKUP(B51,'[1]FATT+ORD+P.O.'!$A$3:$I$99,6,FALSE),"") ->  | E51: =IFERROR(VLOOKUP(B51,'[1]FATT+ORD+P.O.'!$A$3:$I$99,7,FALSE),"") -> 
D52: =IFERROR(VLOOKUP(B52,'[1]FATT+ORD+P.O.'!$A$3:$I$99,6,FALSE),"") ->  | E52: =IFERROR(VLOOKUP(B52,'[1]FATT+ORD+P.O.'!$A$3:$I$99,7,FALSE),"") -> 
D53: =IFERROR(VLOOKUP(B53,'[1]FATT+ORD+P.O.'!$A$3:$I$99,6,FALSE),"") ->  | E53: =IFERROR(VLOOKUP(B53,'[1]FATT+ORD+P.O.'!$A$3:$I$99,7,FALSE),"") -> 
D54: =IFERROR(VLOOKUP(B54,'[1]FATT+ORD+P.O.'!$A$3:$I$99,6,FALSE),"") ->  | E54: =IFERROR(VLOOKUP(B54,'[1]FATT+ORD+P.O.'!$A$3:$I$99,7,FALSE),"") -> 
D55: =IFERROR(VLOOKUP(B55,'[1]FATT+ORD+P.O.'!$A$3:$I$99,6,FALSE),"") ->  | E55: =IFERROR(VLOOKUP(B55,'[1]FATT+ORD+P.O.'!$A$3:$I$99,7,FALSE),"") -> 
D56: =IFERROR(VLOOKUP(B56,'[1]FATT+ORD+P.O.'!$A$3:$I$99,6,FALSE),"") ->  | E56: =IFERROR(VLOOKUP(B56,'[1]FATT+ORD+P.O.'!$A$3:$I$99,7,FALSE),"") -> 
D57: =IFERROR(VLOOKUP(B57,'[1]FATT+ORD+P.O.'!$A$3:$I$99,6,FALSE),"") ->  | E57: =IFERROR(VLOOKUP(B57,'[1]FATT+ORD+P.O.'!$A$3:$I$99,7,FALSE),"") -> 
D58: =IFERROR(VLOOKUP(B58,'[1]FATT+ORD+P.O.'!$A$3:$I$99,6,FALSE),"") ->  | E58: =IFERROR(VLOOKUP(B58,'[1]FATT+ORD+P.O.'!$A$3:$I$99,7,FALSE),"") -> 
D59: =IFERROR(VLOOKUP(B59,'[1]FATT+ORD+P.O.'!$A$3:$I$99,6,FALSE),"") ->  | E59: =IFERROR(VLOOKUP(B59,'[1]FATT+ORD+P.O.'!$A$3:$I$99,7,FALSE),"") -> 
D60: =IFERROR(VLOOKUP(B60,'[1]FATT+ORD+P.O.'!$A$3:$I$99,6,FALSE),"") ->  | E60: =IFERROR(VLOOKUP(B60,'[1]FATT+ORD+P.O.'!$A$3:$I$99,7,FALSE),"") -> 
D61: =IFERROR(VLOOKUP(B61,'[1]FATT+ORD+P.O.'!$A$3:$I$99,6,FALSE),"") ->  | E61: =IFERROR(VLOOKUP(B61,'[1]FATT+ORD+P.O.'!$A$3:$I$99,7,FALSE),"") -> 
D62: =IFERROR(VLOOKUP(B62,'[1]FATT+ORD+P.O.'!$A$3:$I$99,6,FALSE),"") ->  | E62: =IFERROR(VLOOKUP(B62,'[1]FATT+ORD+P.O.'!$A$3:$I$99,7,FALSE),"") -> 
D63: =IFERROR(VLOOKUP(B63,'[1]FATT+ORD+P.O.'!$A$3:$I$99,6,FALSE),"") ->  | E63: =IFERROR(VLOOKUP(B63,'[1]FATT+ORD+P.O.'!$A$3:$I$99,7,FALSE),"") -> 
D64: =IFERROR(VLOOKUP(B64,'[1]FATT+ORD+P.O.'!$A$3:$I$99,6,FALSE),"") ->  | E64: =IFERROR(VLOOKUP(B64,'[1]FATT+ORD+P.O.'!$A$3:$I$99,7,FALSE),"") -> 
D65: =IFERROR(VLOOKUP(B65,'[1]FATT+ORD+P.O.'!$A$3:$I$99,6,FALSE),"") ->  | E65: =IFERROR(VLOOKUP(B65,'[1]FATT+ORD+P.O.'!$A$3:$I$99,7,FALSE),"") -> 
D66: =IFERROR(VLOOKUP(B66,'[1]FATT+ORD+P.O.'!$A$3:$I$99,6,FALSE),"") ->  | E66: =IFERROR(VLOOKUP(B66,'[1]FATT+ORD+P.O.'!$A$3:$I$99,7,FALSE),"") -> 
D67: =IFERROR(VLOOKUP(B67,'[1]FATT+ORD+P.O.'!$A$3:$I$99,6,FALSE),"") ->  | E67: =IFERROR(VLOOKUP(B67,'[1]FATT+ORD+P.O.'!$A$3:$I$99,7,FALSE),"") -> 
D68: =IFERROR(VLOOKUP(B68,'[1]FATT+ORD+P.O.'!$A$3:$I$99,6,FALSE),"") ->  | E68: =IFERROR(VLOOKUP(B68,'[1]FATT+ORD+P.O.'!$A$3:$I$99,7,FALSE),"") -> 
D69: =IFERROR(VLOOKUP(B69,'[1]FATT+ORD+P.O.'!$A$3:$I$99,6,FALSE),"") ->  | E69: =IFERROR(VLOOKUP(B69,'[1]FATT+ORD+P.O.'!$A$3:$I$99,7,FALSE),"") -> 
D70: =IFERROR(VLOOKUP(B70,'[1]FATT+ORD+P.O.'!$A$3:$I$99,6,FALSE),"") ->  | E70: =IFERROR(VLOOKUP(B70,'[1]FATT+ORD+P.O.'!$A$3:$I$99,7,FALSE),"") -> 
D71: =IFERROR(VLOOKUP(B71,'[1]FATT+ORD+P.O.'!$A$3:$I$99,6,FALSE),"") ->  | E71: =IFERROR(VLOOKUP(B71,'[1]FATT+ORD+P.O.'!$A$3:$I$99,7,FALSE),"") ->  | F71: =IFERROR(C71*(D71+E71),"") -> 
D72: =IFERROR(VLOOKUP(B72,'[1]FATT+ORD+P.O.'!$A$3:$I$99,6,FALSE),"") ->  | E72: =IFERROR(VLOOKUP(B72,'[1]FATT+ORD+P.O.'!$A$3:$I$99,7,FALSE),"") -> 
D73: =IFERROR(VLOOKUP(B73,'[1]FATT+ORD+P.O.'!$A$3:$I$99,6,FALSE),"") ->  | E73: =IFERROR(VLOOKUP(B73,'[1]FATT+ORD+P.O.'!$A$3:$I$99,7,FALSE),"") -> 
D74: =IFERROR(VLOOKUP(B74,'[1]FATT+ORD+P.O.'!$A$3:$I$99,6,FALSE),"") ->  | E74: =IFERROR(VLOOKUP(B74,'[1]FATT+ORD+P.O.'!$A$3:$I$99,7,FALSE),"") -> 
D75: =IFERROR(VLOOKUP(B75,'[1]FATT+ORD+P.O.'!$A$3:$I$99,6,FALSE),"") ->  | E75: =IFERROR(VLOOKUP(B75,'[1]FATT+ORD+P.O.'!$A$3:$I$99,7,FALSE),"") -> 
D76: =IFERROR(VLOOKUP(B76,'[1]FATT+ORD+P.O.'!$A$3:$I$99,6,FALSE),"") ->  | E76: =IFERROR(VLOOKUP(B76,'[1]FATT+ORD+P.O.'!$A$3:$I$99,7,FALSE),"") -> 
D77: =IFERROR(VLOOKUP(B77,'[1]FATT+ORD+P.O.'!$A$3:$I$99,6,FALSE),"") ->  | E77: =IFERROR(VLOOKUP(B77,'[1]FATT+ORD+P.O.'!$A$3:$I$99,7,FALSE),"") -> 
D78: =IFERROR(VLOOKUP(B78,'[1]FATT+ORD+P.O.'!$A$3:$I$99,6,FALSE),"") ->  | E78: =IFERROR(VLOOKUP(B78,'[1]FATT+ORD+P.O.'!$A$3:$I$99,7,FALSE),"") -> 
D79: =IFERROR(VLOOKUP(B79,'[1]FATT+ORD+P.O.'!$A$3:$I$99,6,FALSE),"") ->  | E79: =IFERROR(VLOOKUP(B79,'[1]FATT+ORD+P.O.'!$A$3:$I$99,7,FALSE),"") -> 
D80: =IFERROR(VLOOKUP(B80,'[1]FATT+ORD+P.O.'!$A$3:$I$99,6,FALSE),"") ->  | E80: =IFERROR(VLOOKUP(B80,'[1]FATT+ORD+P.O.'!$A$3:$I$99,7,FALSE),"") -> 
D81: =IFERROR(VLOOKUP(B81,'[1]FATT+ORD+P.O.'!$A$3:$I$99,6,FALSE),"") ->  | E81: =IFERROR(VLOOKUP(B81,'[1]FATT+ORD+P.O.'!$A$3:$I$99,7,FALSE),"") -> 
D82: =IFERROR(VLOOKUP(B82,'[1]FATT+ORD+P.O.'!$A$3:$I$99,6,FALSE),"") ->  | E82: =IFERROR(VLOOKUP(B82,'[1]FATT+ORD+P.O.'!$A$3:$I$99,7,FALSE),"") -> 
D83: =IFERROR(VLOOKUP(B83,'[1]FATT+ORD+P.O.'!$A$3:$I$99,6,FALSE),"") ->  | E83: =IFERROR(VLOOKUP(B83,'[1]FATT+ORD+P.O.'!$A$3:$I$99,7,FALSE),"") -> 
D84: =IFERROR(VLOOKUP(B84,'[1]FATT+ORD+P.O.'!$A$3:$I$99,6,FALSE),"") ->  | E84: =IFERROR(VLOOKUP(B84,'[1]FATT+ORD+P.O.'!$A$3:$I$99,7,FALSE),"") -> 
D85: =IFERROR(VLOOKUP(B85,'[1]FATT+ORD+P.O.'!$A$3:$I$99,6,FALSE),"") ->  | E85: =IFERROR(VLOOKUP(B85,'[1]FATT+ORD+P.O.'!$A$3:$I$99,7,FALSE),"") -> 
D86: =IFERROR(VLOOKUP(B86,'[1]FATT+ORD+P.O.'!$A$3:$I$99,6,FALSE),"") ->  | E86: =IFERROR(VLOOKUP(B86,'[1]FATT+ORD+P.O.'!$A$3:$I$99,7,FALSE),"") -> 
D87: =IFERROR(VLOOKUP(B87,'[1]FATT+ORD+P.O.'!$A$3:$I$99,6,FALSE),"") ->  | E87: =IFERROR(VLOOKUP(B87,'[1]FATT+ORD+P.O.'!$A$3:$I$99,7,FALSE),"") -> 
D88: =IFERROR(VLOOKUP(B88,'[1]FATT+ORD+P.O.'!$A$3:$I$99,6,FALSE),"") ->  | E88: =IFERROR(VLOOKUP(B88,'[1]FATT+ORD+P.O.'!$A$3:$I$99,7,FALSE),"") -> 
D89: =IFERROR(VLOOKUP(B89,'[1]FATT+ORD+P.O.'!$A$3:$I$99,6,FALSE),"") ->  | E89: =IFERROR(VLOOKUP(B89,'[1]FATT+ORD+P.O.'!$A$3:$I$99,7,FALSE),"") -> 
D90: =IFERROR(VLOOKUP(B90,'[1]FATT+ORD+P.O.'!$A$3:$I$99,6,FALSE),"") ->  | E90: =IFERROR(VLOOKUP(B90,'[1]FATT+ORD+P.O.'!$A$3:$I$99,7,FALSE),"") -> 
D91: =IFERROR(VLOOKUP(B91,'[1]FATT+ORD+P.O.'!$A$3:$I$99,6,FALSE),"") ->  | E91: =IFERROR(VLOOKUP(B91,'[1]FATT+ORD+P.O.'!$A$3:$I$99,7,FALSE),"") -> 
D92: =IFERROR(VLOOKUP(B92,'[1]FATT+ORD+P.O.'!$A$3:$I$99,6,FALSE),"") ->  | E92: =IFERROR(VLOOKUP(B92,'[1]FATT+ORD+P.O.'!$A$3:$I$99,7,FALSE),"") -> 
D93: =IFERROR(VLOOKUP(B93,'[1]FATT+ORD+P.O.'!$A$3:$I$99,6,FALSE),"") ->  | E93: =IFERROR(VLOOKUP(B93,'[1]FATT+ORD+P.O.'!$A$3:$I$99,7,FALSE),"") -> 
D94: =IFERROR(VLOOKUP(B94,'[1]FATT+ORD+P.O.'!$A$3:$I$99,6,FALSE),"") ->  | E94: =IFERROR(VLOOKUP(B94,'[1]FATT+ORD+P.O.'!$A$3:$I$99,7,FALSE),"") -> 
D95: =IFERROR(VLOOKUP(B95,'[1]FATT+ORD+P.O.'!$A$3:$I$99,6,FALSE),"") ->  | E95: =IFERROR(VLOOKUP(B95,'[1]FATT+ORD+P.O.'!$A$3:$I$99,7,FALSE),"") -> 
D96: =IFERROR(VLOOKUP(B96,'[1]FATT+ORD+P.O.'!$A$3:$I$99,6,FALSE),"") ->  | E96: =IFERROR(VLOOKUP(B96,'[1]FATT+ORD+P.O.'!$A$3:$I$99,7,FALSE),"") -> 
D97: =IFERROR(VLOOKUP(B97,'[1]FATT+ORD+P.O.'!$A$3:$I$99,6,FALSE),"") ->  | E97: =IFERROR(VLOOKUP(B97,'[1]FATT+ORD+P.O.'!$A$3:$I$99,7,FALSE),"") -> 
D98: =IFERROR(VLOOKUP(B98,'[1]FATT+ORD+P.O.'!$A$3:$I$99,6,FALSE),"") ->  | E98: =IFERROR(VLOOKUP(B98,'[1]FATT+ORD+P.O.'!$A$3:$I$99,7,FALSE),"") -> 
D99: =IFERROR(VLOOKUP(B99,'[1]FATT+ORD+P.O.'!$A$3:$I$99,6,FALSE),"") ->  | E99: =IFERROR(VLOOKUP(B99,'[1]FATT+ORD+P.O.'!$A$3:$I$99,7,FALSE),"") -> 
D100: =IFERROR(VLOOKUP(B100,'[1]FATT+ORD+P.O.'!$A$3:$I$99,6,FALSE),"") ->  | E100: =IFERROR(VLOOKUP(B100,'[1]FATT+ORD+P.O.'!$A$3:$I$99,7,FALSE),"") -> 
D101: =IFERROR(VLOOKUP(B101,'[1]FATT+ORD+P.O.'!$A$3:$I$99,6,FALSE),"") ->  | E101: =IFERROR(VLOOKUP(B101,'[1]FATT+ORD+P.O.'!$A$3:$I$99,7,FALSE),"") -> 
F102: 0
